Workbook

Sheet ES(16)
B2: Excel Business Statistical Analysis:
B8: Introduction to Probability
B9: Experiments, Sample Points, Events and then Probability
B12: Excel Business Statistics 16
B17: Excel Statistical Analysis 7: Cross Tabulation, Visualizations, AND Logical Tests, Simpson’s Paradox
B18: =LEN(B17) -> 100
C19: =LEN(C18) -> 0
H23: Microsoft 365 Excel

Sheet ES(17)
B2: Excel Business Statistical Analysis:
B8: Logical Tests for Probability
B9: AND, OR, NOT and the COUNTIFS & FILTER functions!
B12: Excel Business Statistics 17
B17: Excel Statistical Analysis 7: Cross Tabulation, Visualizations, AND Logical Tests, Simpson’s Paradox
B18: =LEN(B17) -> 100
C19: =LEN(C18) -> 0
H23: Microsoft 365 Excel

Sheet ES(18)
B2: Excel Business Statistical Analysis:
B8: Addition Law of Probability:
B9: OR Logical Test
B12: Excel Business Statistics 18
B17: Excel Statistical Analysis 7: Cross Tabulation, Visualizations, AND Logical Tests, Simpson’s Paradox
B18: =LEN(B17) -> 100
C19: =LEN(C18) -> 0
H23: Microsoft 365 Excel

Sheet ES(19)
B2: Excel Business Statistical Analysis:
B8: Conditional Probability
B12: Excel Business Statistics 19
B17: Excel Statistical Analysis 7: Cross Tabulation, Visualizations, AND Logical Tests, Simpson’s Paradox
B18: =LEN(B17) -> 100
C19: =LEN(C18) -> 0
H23: Microsoft 365 Excel

Sheet ES(20)
B2: Excel Business Statistical Analysis:
B8: Joint Probability Table
B12: Excel Business Statistics 20
B17: Excel Statistical Analysis 7: Cross Tabulation, Visualizations, AND Logical Tests, Simpson’s Paradox
B18: =LEN(B17) -> 100
C19: =LEN(C18) -> 0
H23: Microsoft 365 Excel

Sheet ES(21)
B2: Excel Business Statistical Analysis:
B8: Multiplication Law of Probability:
B9: AND Logical Test (Probability Tree too)
B12: Excel Business Statistics 21
B17: Excel Statistical Analysis 7: Cross Tabulation, Visualizations, AND Logical Tests, Simpson’s Paradox
B18: =LEN(B17) -> 100
C19: =LEN(C18) -> 0
H23: Microsoft 365 Excel

Sheet ES(22)
B2: Excel Business Statistical Analysis:
B8: Bayes' Theorem
B12: Excel Business Statistics 22
B17: Excel Statistical Analysis 7: Cross Tabulation, Visualizations, AND Logical Tests, Simpson’s Paradox
B18: =LEN(B17) -> 100
C19: =LEN(C18) -> 0
H23: Microsoft 365 Excel

Sheet Topics
B2: Chapter 4
B4: Introduction to Probability
B7: Video 16 | C7: Introduction to Probability: Sample Points, Events & Probability
B8: Video 17 | C8: Logical Tests for Probability with COUNTIFS and the FILTER functions
B9: Video 18 | C9: Adding Law of Probability: OR Logical Test
B10: Video 19 | C10: Conditional Probability
B11: Video 20 | C11: Joint Probability Table
B12: Video 21 | C12: Multiplication Law of Probability: AND Logical Test. Probability Tree too
B13: Video 22 | C13: Bayes' Theorem

Sheet Probability Notes
B2: Introduction To Probability Chapter 4 Notes by excelisfun
B3: Probability | L3: Ctrl + P to print all 26 pages of notes : )
B4: Probability = likelihood = chance = possibility
B5: Probability is a numerical measure, a number between 0 and 1 (inclusive), that indicates the likelihood that an event will occur in the unknown future.
B6: Probability is never known with certainty. It is only an estimate.
B7: Probability is an estimate of an event that may occur in the future.
B8: Probability is never negative.
B9: Probability is never greater than 1.
B10: A percentage change amount is not probability. Remember, you can have an increase in sales of 110% (>1) or a decrease in sales of -25% (<0), but those are NOT probabilities.
B11: Probability represents parts out of 100, where you can have 0 to 100 parts out of 100. If the probability of a sale for any one sales call is 0.20, this means that in a random test you would expect to make 20 sales for every 100 sales calls.
B12: Examples:
B13: 1) Probability that you will roll a 6 with a die = P(roll six) = 1/6 = 0.1667 = 16.67%
B14: 2) Probability that a randomly selected student in my class will earn an A = P(Earn A) = 0.10 = 10%
B15: 3) On Jan. 25, 2022, a Casino estimated probability that the KC Chiefs would win super bowl = P(win) = 0.43 =43%
B16: 4) On Jan 31, 2022, the probability that the KC Chiefs would win super bowl = P(win) = 0 = 0%
B17: 5) The probability that it will rain in Seattle next year = approximately 1 = 100%
B19: Methods for estimating probability:
B20: Classical Probability = All outcomes equally likely. Example: probability of rolling a 3 with one die = 1/6 = 0.1666.
B22: Relative Frequency Probability = Use past data to create relative frequency distribution. Example: probability of getting an A in a class based on past data = 5/50 = 1/10 = 0.10
B24: Subjective Probability = Expert judgement because outcomes are not equally likely and there is little past data. Example: Casino estimates that the probability that KC Chiefs will win Super Bowl = 0.43
B25: Random Experiment
B26: A process that generates well defined Experimental Outcomes (Sample Points).
B27: On any single repetition or trial or step of the experiment, one and only one of the possible experimental outcomes (sample points) can occur.
B28: The experimental outcome that occurs on any trial is determined solely by change.
B29: Sample Space for a random experiment
B30: A set of all experimental outcomes for a random experiment.
B31: It is not always possible to list all experimental outcomes.
B32: Examples of 1-step random experiment:
B33: Random Experiment: | F33: Sample Space:
B34: 1) Roll a die | F34: 1,2,3,4,5,6
B36: 2) Select a product for inspection | F36: Defect, Not Defect
B38: 3) Play Super Bowl | F38: Win, Lose
B40: 4) Play NFL game | F40: Win, Lose, Tie
B42: Examples of multi-step random experiment:
B43: Random Experiment: | F43: Sample Space:
B44: 1) Flip coin two times | F44: (H,H), (H,T), (T,H), (T,T)
B46: 2) Roll two die (dice) | F46: =_xlfn.TEXTJOIN(", ",,"("&_xlfn.ANCHORARRAY('Probability Notes'!C125)&","&_xlfn.ANCHORARRAY('Probability Notes'!D124)&")") -> (1,1), (1,2), (1,3), (1,4), (1,5), (1,6), (2,1), (2,2), (2,3), (2,4), (2,5), (2,6), (3,1), (3,2), (3,3), (3,4), (3,5), (3,6), (4,1), (4,2), (4,3), (4,4), (4,5), (4,6), (5,1), (5,2), (5,3), (5,4), (5,5), (5,6), (6,1), (6,2), (6,3), (6,4), (6,5), (6,6)
B47: 3) 2-step building zoning process | F47: (Positive Recommendation, Approve), (Positive Recommendation, Disapprove), (Negative Recommendation, Approve), (Negative Recommendation, Disapprove)
B49: Use Tree Diagram to visualize Sample Space and show all experimental outcomes (sample points):
B51: Three Examples for random experiment flipping a coin three times:
B53: 1) Worksheet Cells & Formatting:
E54: Step 1 | F54: Step 2 | G54: Step 3 | H54: Sample Space
G56: Head | H56: (H, H, H)
F57: Head
G58: Tail | H58: (H, H, T)
E59: Head
G60: Head | H60: (H, T, H)
F61: Tail
G62: Tail | H62: (H, T, T)
B63: Flip a Coin 3 Times.
G64: Head | H64: (T, H, H)
F65: Head
G66: Tail | H66: (T, H, T)
E67: Tail
G68: Head | H68: (T, T, H)
F69: Tail
G70: Tail | H70: (T, T, T)
B71: 2) Excel Smart Art Horizontal Hierarchy :
B87: 3) Drawing on Paper:
B120: Use Table Format to visualize Sample Space and show all experimental outcomes (sample points):
B122: Example of table to visualize all sample points for a two-step random experiment of throwing two die:
C124: Die1/Die2 | D124: =_xlfn.SEQUENCE(,6) -> 1 | E124: 2 | F124: 3 | G124: 4 | H124: 5 | I124: 6
C125: =_xlfn.SEQUENCE(6) -> 1 | D125: ="("&_xlfn.ANCHORARRAY(C125)&","&_xlfn.ANCHORARRAY(D124)&") = "&_xlfn.ANCHORARRAY(C125)+_xlfn.ANCHORARRAY(D124) -> (1,1) = 2 | E125: (1,2) = 3 | F125: (1,3) = 4 | G125: (1,4) = 5 | H125: (1,5) = 6 | I125: (1,6) = 7
C126: 2 | D126: (2,1) = 3 | E126: (2,2) = 4 | F126: (2,3) = 5 | G126: (2,4) = 6 | H126: (2,5) = 7 | I126: (2,6) = 8
C127: 3 | D127: (3,1) = 4 | E127: (3,2) = 5 | F127: (3,3) = 6 | G127: (3,4) = 7 | H127: (3,5) = 8 | I127: (3,6) = 9
C128: 4 | D128: (4,1) = 5 | E128: (4,2) = 6 | F128: (4,3) = 7 | G128: (4,4) = 8 | H128: (4,5) = 9 | I128: (4,6) = 10
C129: 5 | D129: (5,1) = 6 | E129: (5,2) = 7 | F129: (5,3) = 8 | G129: (5,4) = 9 | H129: (5,5) = 10 | I129: (5,6) = 11
C130: 6 | D130: (6,1) = 7 | E130: (6,2) = 8 | F130: (6,3) = 9 | G130: (6,4) = 10 | H130: (6,5) = 11 | I130: (6,6) = 12
C132: =_xlfn.IFNA("Die 1 formula: "&_xlfn.FORMULATEXT(C125),"") -> Die 1 formula: =SEQUENCE(6)
C133: =_xlfn.IFNA("Die 2 formula: "&_xlfn.FORMULATEXT(D124),"") -> Die 2 formula: =SEQUENCE(,6)
C134: =_xlfn.IFNA("Inside formula: "&_xlfn.FORMULATEXT(D125),"") -> Inside formula: ="("&C125#&","&D124#&") = "&C125#+D124#
B136: Counting Rule for Multi-Step Random Experiment
B137: Total number of experimental outcomes (sample points) = size of sample space = n1 * n2 * … nk
B138: k = Number of steps or trials in the random experiment
B139: n1 = number of possible outcomes in step 1
B140: n2 = number of possible outcomes in step 2
B141: nk = number of possible outcomes in last step
B142: Examples:
B143: 1) Roll two die. k = 2, n1 = 6, n2 = 6. Total experiments outcomes = 6*6 = 36 | L143: Flip coin two times. k = 2, n1 = 2, n2 = 2. Total experiments outcomes = 2*2 = 4
B145: 2) Determine lock code with 3 spots and 10 digits. What are the number of total experimental outcomes (total possible lock codes)?
B147: Number slots for lock code: | E147: k | F147: 3
B148: ="Digits: "&_xlfn.TEXTJOIN(", ",,_xlfn.SEQUENCE(,10)) -> Digits: 1, 2, 3, 4, 5, 6, 7, 8, 9, 10 | E148: n1 | F148: 10
B149: ="Digits: "&_xlfn.TEXTJOIN(", ",,_xlfn.SEQUENCE(,10)) -> Digits: 1, 2, 3, 4, 5, 6, 7, 8, 9, 10 | E149: n2 | F149: 10
B150: ="Digits: "&_xlfn.TEXTJOIN(", ",,_xlfn.SEQUENCE(,10)) -> Digits: 1, 2, 3, 4, 5, 6, 7, 8, 9, 10 | E150: n3 | F150: 10
C151: Total lock possibilities: | F151: =F148*F149*F150 -> 1000 | G151: =_xlfn.IFNA(" "&F148&"*"&F149&"*"&F150&" or "&F148&"^"&F147,"") -> 10*10*10 or 10^3
B153: 3) Deli offers 2 rolls, 4 meats and 3 cheeses. k = 3, n1 = 2, n2 = 4, n3 = 3. What are the number of total experimental outcomes (total number of different sandwiches) if you get one of each?
B155: # steps in building sandwich: | E155: k | F155: 3
B156: Number rolls | E156: n1 | F156: 2
B157: Number meats | E157: n2 | F157: 4
E158: n3 | F158: 3
C159: Total lock possibilities: | F159: =F156*F157*F158 -> 24 | G159: =_xlfn.IFNA(" "&F156&"*"&F157&"*"&F158,"") -> 2*4*3
B162: Sometimes we have to decide on sample space with combinations or permutations, where you select n objects from a set of N objects.
B164: Example of the difference between a Combination and a Permutation:
B165: If we select the letters A, B, C, one after the other and you cannot repeat (example: A, A, A not allowed)
C167: Permutations | E167: Combinations
C168: Order Matters | E168: Order Does Not Matter | G168: * You can pick the letters in any
C169: A, B, C | E169: A, B, C | G169: order, but just one time.
C170: A, C, B
C171: B, A, C
C172: B, C, A
C173: C, A, B
C174: C, B, C
B175: Total | C175: =COUNTA(C169:C174) -> 6 | E175: =COUNTA(E169:E174) -> 1
B178: Counting Rule for Combinations, Order Does Not Matter
B179: When experiment involves selecting n objects from a set of N objects, and the order of the items is not considered, like: (2,1) is the same as (1,2), then: Total number of experimental outcomes (sample points) = size of sample space =
B183: N = count of all objects (population) | G183: 7 | H183: Population Size
B184: n = count of objects selected (sample size) | G184: 3 | H184: Sample Size
B185: In Excel use function: COMBIN(N,n) | G185: =COMBIN(G183,G184) -> 35 | H185: Total combinations
G186: =_xlfn.IFNA("=COMBIN("&G183&","&G184&")","") -> =COMBIN(7,3)
B187: Note: Factorial (from your algebra class) is represented by ! Example: 5! = 5*4*3*2*1 = 120, and: 0! = 1.
B188: Examples:
B189: 1) Find all possible combinations of sample size 3 from a set of 7 numbers = 7!/(3!*(7-3)!) = (7*6*5*4*3*2*1)/(3*2*1*(4*3*2*1)) = (7*6*5)/(3*2*1*) = 7*5 = 35
B191: 2) Find all combinations a for a basketball team that has 13 players and 5 can play in a game, assuming a player can play any position = 13!/(5!*(13-5) = (13*12*11*10*9)/(5*4*3*2*1) = (13*3*11*2*3)/2 = 1287
B193: Counting Rule for Permutations, Order Matters
B194: When experiment involves selecting n objects from a set of N objects, and the order of the items is considered, like: (2,1) is different than (1,2), then: Total number of experimental outcomes (sample points) = size of sample space =
M195: Good site for other types of combinations and permutations, and for a description of why these formulas are valid:
M196: https://www.mathsisfun.com/combinatorics/combinations-permutations.html
B198: N = count of all objects (population) | G198: 5 | H198: Population Size
B199: n = count of objects selected (sample size) | G199: 5 | H199: Sample Size
B200: In Excel use function: PERMUT(N,n) | G200: =PERMUT(G198,G199) -> 120 | H200: Total permutations
G201: =_xlfn.IFNA("=PERMUT("&G198&","&G199&")","") -> =PERMUT(5,5)
B202: Examples:
B203: 1) Find total possible arrangements for 5 employees in 5 different offices = 5!/(5-5)! = (5*4*3*2*1)/0! = 120/1 = 120
B204: 2) Find total possible arrangements for 5 employees in 3 different offices = 5!/(5-3)! = (5*4*3*2*1)/2! = 120/2 = 60
B206: =M195&" "&M196 -> Good site for other types of combinations and permutations, and for a description of why these formulas are valid: https://www.mathsisfun.com/combinatorics/combinations-permutations.html
B208: Basic Requirements for Assigning Probabilities
B209: 1] The probability for each experimental outcome (sample point) must be between 0 and 1, inclusive.
B210: 0 <= P(Ei) <= 1 for all i, where: Ei = ith experimental outcome and P(Ei) = Probability.
B212: 2] The sum of the probabilities for all experimental outcomes (sample points) from the sample space must be equal to 1.
B213: P(E1) + P(E2) + … + P(En) = 1, where there are n experimental outcomes.
B215: Event
B216: A collection of one or more experimental outcomes (sample points).
B217: Examples:
B218: 1) The event roll a 7 with dice has the following sample points: (1,6), (2,5), (3,4), (4,3), (5,2), (6,1).
B220: 2) The event get one or more tails in two flips of a coin has the following sample points: (T,T), (H,T), (T,H)
B222: 3) The event sold a Quad from a list of products sold: Quad,Carlota,Quad,Sunshine, has the following sample points: (Quad,Quad).
B224: Note: Sample points and events provide the foundation for the study of probability.
B225: Probability of an Event
B226: The probability of an event is equal to the sum of the probabilities of the experimental outcomes (sample points) in the event.
B228: Examples:
B229: 1) Event = Roll a 7 with dice
B230: Sample points = (1,6), (2,5), (3,4), (4,3), (5,2), (6,1)
B231: Probability = P(Roll 7) = 1/36+1/36+1/36+1/36+1/36+1/36 = 6/36 = 1/6 = 0.1667
B233: All sample points for experiment "roll dice":
C235: Die1/Die2 | D235: =_xlfn.SEQUENCE(,6) -> 1 | E235: 2 | F235: 3 | G235: 4 | H235: 5 | I235: 6
C236: =_xlfn.SEQUENCE(6) -> 1 | D236: ="("&_xlfn.ANCHORARRAY(C236)&","&_xlfn.ANCHORARRAY(D235)&") = "&_xlfn.ANCHORARRAY(C236)+_xlfn.ANCHORARRAY(D235) -> (1,1) = 2 | E236: (1,2) = 3 | F236: (1,3) = 4 | G236: (1,4) = 5 | H236: (1,5) = 6 | I236: (1,6) = 7
C237: 2 | D237: (2,1) = 3 | E237: (2,2) = 4 | F237: (2,3) = 5 | G237: (2,4) = 6 | H237: (2,5) = 7 | I237: (2,6) = 8
C238: 3 | D238: (3,1) = 4 | E238: (3,2) = 5 | F238: (3,3) = 6 | G238: (3,4) = 7 | H238: (3,5) = 8 | I238: (3,6) = 9
C239: 4 | D239: (4,1) = 5 | E239: (4,2) = 6 | F239: (4,3) = 7 | G239: (4,4) = 8 | H239: (4,5) = 9 | I239: (4,6) = 10
C240: 5 | D240: (5,1) = 6 | E240: (5,2) = 7 | F240: (5,3) = 8 | G240: (5,4) = 9 | H240: (5,5) = 10 | I240: (5,6) = 11
C241: 6 | D241: (6,1) = 7 | E241: (6,2) = 8 | F241: (6,3) = 9 | G241: (6,4) = 10 | H241: (6,5) = 11 | I241: (6,6) = 12
B243: All probabilities for experiment "roll dice":
C245: Die1/Die2 | D245: =_xlfn.SEQUENCE(,6) -> 1 | E245: 2 | F245: 3 | G245: 4 | H245: 5 | I245: 6
C246: =_xlfn.SEQUENCE(6) -> 1 | D246: =_xlfn.SEQUENCE(6,6,1,0)&"/"&6^2 -> 1/36 | E246: 1/36 | F246: 1/36 | G246: 1/36 | H246: 1/36 | I246: 1/36
C247: 2 | D247: 1/36 | E247: 1/36 | F247: 1/36 | G247: 1/36 | H247: 1/36 | I247: 1/36
C248: 3 | D248: 1/36 | E248: 1/36 | F248: 1/36 | G248: 1/36 | H248: 1/36 | I248: 1/36
C249: 4 | D249: 1/36 | E249: 1/36 | F249: 1/36 | G249: 1/36 | H249: 1/36 | I249: 1/36
C250: 5 | D250: 1/36 | E250: 1/36 | F250: 1/36 | G250: 1/36 | H250: 1/36 | I250: 1/36
C251: 6 | D251: 1/36 | E251: 1/36 | F251: 1/36 | G251: 1/36 | H251: 1/36 | I251: 1/36
H252: Total | I252: =36/36 -> 1
B253: Probability Requirement #1 is met: each 1/36 probability is between 0 and 1.
B254: Probability Requirement #2 is met: sum of all probability equals 1: 1/36*36 = 1.
B256: 2) Event = Get 2 tails in three flips of a coin
B257: ="Sample points = "&_xlfn.TEXTJOIN(", ",,F267:F269) -> Sample points = (H, T, T), (T, H, T), (T, T, H)
B258: Probability = P(2T in 3 Tries) = 1/8+1/8+1/8 = 3/8 = 0.375
B260: All probabilities for experiment "flip fair coin three times":
C262: Step 1 | D262: Step 2 | E262: Step 3 | F262: Sample Space | G262: P(SP)
C263: H | D263: H | E263: H | F263: ="("&C263:C270&", "&D263:D270&", "&E263:E270&")" -> (H, H, H) | G263: =_xlfn.SEQUENCE(8,,1,0)&"/"&8 -> 1/8
C264: H | D264: H | E264: T | F264: (H, H, T) | G264: 1/8
C265: H | D265: T | E265: H | F265: (H, T, H) | G265: 1/8
C266: T | D266: H | E266: H | F266: (T, H, H) | G266: 1/8
C267: H | D267: T | E267: T | F267: (H, T, T) | G267: 1/8
C268: T | D268: H | E268: T | F268: (T, H, T) | G268: 1/8
C269: T | D269: T | E269: H | F269: (T, T, H) | G269: 1/8
C270: T | D270: T | E270: T | F270: (T, T, T) | G270: 1/8
F271: Total | G271: =8/8 -> 1
B273: Probability Requirement #1 is met: each 1/8 probability is between 0 and 1.
B274: Probability Requirement #2 is met: sum of all probability equals 1: 1/8*8 = 1.
B276: 3) Event = Use 2 or more banquet rooms at Isaac's Italian Restaurant on a weekend day.
B277: "Sample points" from pre-made frequency distribution = 2 rooms used, 3 rooms used, 4 rooms used.
B278: ="Probability = P(Rooms Used>=2) = "&ROUND(I285,2)&" + "&ROUND(I286,2)&" = "&ROUND(I287,2)&" = "&ROUND(SUM(I285:I287),2)&", or, ("&H285&" + "&H286&" + "&H287&")/"&H288&" = "&SUM(H285:H287)&"/"&H288&" = "&ROUND(SUM(H285:H287)/H288,2) -> Probability = P(Rooms Used>=2) = 0.43 + 0.27 = 0.08 = 0.78, or, (45 + 28 + 8)/104 = 81/104 = 0.78
B280: Summary of all 104 sample points & probabilities into a frequency distribution:
G282: # Rooms Used in Day (x) | H282: Frequency | I282: % Frequency or P(x)
G283: 0 | H283: 2 | I283: 0.01923076923
G284: 1 | H284: 21 | I284: 0.2019230769
F285: =H285:H287&" sample points @ 1/"&H288&" probability each "&_xlfn.UNICHAR(10142) -> 45 sample points @ 1/104 probability each ➞ | G285: 2 | H285: 45 | I285: 0.4326923077
F286: 28 sample points @ 1/104 probability each ➞ | G286: 3 | H286: 28 | I286: 0.2692307692
F287: 8 sample points @ 1/104 probability each ➞ | G287: 4 | H287: 8 | I287: 0.07692307692
G288: Total | H288: 104 | I288: 1
B289: Probability Requirement #1 is met: each probability is between 0 and 1.
B290: ="Probability Requirement #2 is met: sum of all probability equals 1: "&_xlfn.TEXTJOIN("+",,TEXT(I283:I287,"0%"))&" = "&I288 -> Probability Requirement #2 is met: sum of all probability equals 1: 2%+20%+43%+27%+8% = 1
B293: Venn Diagram | G293: Name | H293: Hair Color | I293: Eye Color
B294: Diagram to show relationship between different events | G294: Sioux | H294: Brown | I294: Hazel
B295: and the sample space for an experiment. | G295: Chin | H295: Black | I295: Blue
B296: Rectangle = sample space = all sample points possible. | G296: Shelia | H296: Black | I296: Brown
B297: Circle = Event (one or more sample points). | G297: Gigi | H297: Brown | I297: Hazel
G298: Tyrone | H298: Black | I298: Brown
B299: Event Black Hair | G299: Lin | H299: Blond | I299: Brown
G300: Ducky | H300: Brown | I300: Brown
G301: Kip | H301: Brown | I301: Hazel
... 569 more rows

Sheet Restaurant
B2: Isaac's Italian Restaurant has 4 banquet rooms that are used on weekends
B3: Data collected: Number of rooms used in a day over the past year.
B4: Chapter 5: Empirical Discrete Distibution
C6: X = Random Discrete Variable = Number of Rooms Used for the Day
B8: Date | C8: # Rooms Used in Day | D8: Day | I8: # Rooms Used in Day | J8: Frequency | K8: % Frequency
B9: 2020-01-04 | C9: 1 | D9: =TEXT(B9,"ddd") -> Sat | I9: 0 | J9: 2 | K9: 0.01923076923
B10: 2020-01-05 | C10: 2 | D10: =TEXT(B10,"ddd") -> Sun | I10: 1 | J10: 21 | K10: 0.2019230769
B11: =B9+7 -> 2020-01-11 | C11: 4 | D11: Sat | I11: 2 | J11: 45 | K11: 0.4326923077
B12: =B10+7 -> 2020-01-12 | C12: 3 | D12: Sun | I12: 3 | J12: 28 | K12: 0.2692307692
B13: 2020-01-18 | C13: 3 | D13: Sat | I13: 4 | J13: 8 | K13: 0.07692307692
B14: 2020-01-19 | C14: 2 | D14: Sun | I14: Grand Total | J14: 104 | K14: 1
B15: 2020-01-25 | C15: 2 | D15: Sat
B16: 2020-01-26 | C16: 2 | D16: Sun
B17: 2020-02-01 | C17: 4 | D17: Sat
B18: 2020-02-02 | C18: 1 | D18: Sun
B19: 2020-02-08 | C19: 2 | D19: Sat
B20: 2020-02-09 | C20: 2 | D20: Sun
B21: 2020-02-15 | C21: 2 | D21: Sat
B22: 2020-02-16 | C22: 1 | D22: Sun
B23: 2020-02-22 | C23: 1 | D23: Sat
B24: 2020-02-23 | C24: 2 | D24: Sun
B25: 2020-02-29 | C25: 2 | D25: Sat
B26: 2020-03-01 | C26: 2 | D26: Sun
B27: 2020-03-07 | C27: 4 | D27: Sat
B28: 2020-03-08 | C28: 2 | D28: Sun
B29: 2020-03-14 | C29: 3 | D29: Sat
B30: 2020-03-15 | C30: 2 | D30: Sun
B31: 2020-03-21 | C31: 3 | D31: Sat
B32: 2020-03-22 | C32: 3 | D32: Sun
B33: 2020-03-28 | C33: 2 | D33: Sat
B34: 2020-03-29 | C34: 2 | D34: Sun
B35: 2020-04-04 | C35: 2 | D35: Sat
B36: 2020-04-05 | C36: 2 | D36: Sun
B37: 2020-04-11 | C37: 3 | D37: Sat
B38: 2020-04-12 | C38: 3 | D38: Sun
B39: 2020-04-18 | C39: 1 | D39: Sat
B40: 2020-04-19 | C40: 1 | D40: Sun
B41: 2020-04-25 | C41: 3 | D41: Sat
B42: 2020-04-26 | C42: 3 | D42: Sun
B43: 2020-05-02 | C43: 1 | D43: Sat
B44: 2020-05-03 | C44: 3 | D44: Sun
B45: 2020-05-09 | C45: 2 | D45: Sat
B46: 2020-05-10 | C46: 3 | D46: Sun
B47: 2020-05-16 | C47: 1 | D47: Sat
B48: 2020-05-17 | C48: 1 | D48: Sun
B49: 2020-05-23 | C49: 2 | D49: Sat
B50: 2020-05-24 | C50: 1 | D50: Sun
B51: 2020-05-30 | C51: 1 | D51: Sat
B52: 2020-05-31 | C52: 4 | D52: Sun
B53: 2020-06-06 | C53: 3 | D53: Sat
B54: 2020-06-07 | C54: 1 | D54: Sun
B55: 2020-06-13 | C55: 3 | D55: Sat
B56: 2020-06-14 | C56: 2 | D56: Sun
B57: 2020-06-20 | C57: 2 | D57: Sat
B58: 2020-06-21 | C58: 2 | D58: Sun
B59: 2020-06-27 | C59: 2 | D59: Sat
B60: 2020-06-28 | C60: 3 | D60: Sun
B61: 2020-07-04 | C61: 3 | D61: Sat
B62: 2020-07-05 | C62: 2 | D62: Sun
B63: 2020-07-11 | C63: 2 | D63: Sat
B64: 2020-07-12 | C64: 2 | D64: Sun
B65: 2020-07-18 | C65: 1 | D65: Sat
B66: 2020-07-19 | C66: 2 | D66: Sun
B67: 2020-07-25 | C67: 2 | D67: Sat
B68: 2020-07-26 | C68: 3 | D68: Sun
B69: 2020-08-01 | C69: 0 | D69: Sat
B70: 2020-08-02 | C70: 3 | D70: Sun
B71: 2020-08-08 | C71: 4 | D71: Sat
B72: 2020-08-09 | C72: 3 | D72: Sun
B73: 2020-08-15 | C73: 1 | D73: Sat
B74: 2020-08-16 | C74: 2 | D74: =TEXT(B74,"ddd") -> Sun
B75: 2020-08-22 | C75: 2 | D75: Sat
B76: =B74+7 -> 2020-08-23 | C76: 1 | D76: Sun
B77: 2020-08-29 | C77: 2 | D77: Sat
B78: 2020-08-30 | C78: 3 | D78: Sun
B79: 2020-09-05 | C79: 2 | D79: Sat
B80: 2020-09-06 | C80: 2 | D80: Sun
B81: 2020-09-12 | C81: 3 | D81: Sat
B82: 2020-09-13 | C82: 3 | D82: Sun
B83: 2020-09-19 | C83: 1 | D83: Sat
B84: 2020-09-20 | C84: 1 | D84: Sun
B85: 2020-09-26 | C85: 2 | D85: Sat
B86: 2020-09-27 | C86: 1 | D86: Sun
B87: 2020-10-03 | C87: 3 | D87: Sat
B88: 2020-10-04 | C88: 3 | D88: Sun
B89: 2020-10-10 | C89: 2 | D89: Sat
B90: 2020-10-11 | C90: 2 | D90: Sun
B91: 2020-10-17 | C91: 2 | D91: Sat
B92: 2020-10-18 | C92: 2 | D92: Sun
B93: 2020-10-24 | C93: 1 | D93: Sat
B94: 2020-10-25 | C94: 2 | D94: Sun
B95: 2020-10-31 | C95: 4 | D95: Sat
B96: 2020-11-01 | C96: 0 | D96: Sun
B97: 2020-11-07 | C97: 4 | D97: Sat
B98: 2020-11-08 | C98: 2 | D98: Sun
B99: 2020-11-14 | C99: 1 | D99: Sat
B100: 2020-11-15 | C100: 3 | D100: Sun
B101: 2020-11-21 | C101: 4 | D101: Sat
B102: 2020-11-22 | C102: 3 | D102: Sun
B103: 2020-11-28 | C103: 3 | D103: Sat
B104: 2020-11-29 | C104: 2 | D104: Sun
B105: 2020-12-05 | C105: 1 | D105: Sat
B106: 2020-12-06 | C106: 3 | D106: Sun
B107: 2020-12-12 | C107: 2 | D107: Sat
B108: 2020-12-13 | C108: 2 | D108: Sun
B109: 2020-12-19 | C109: 2 | D109: Sat
B110: 2020-12-20 | C110: 3 | D110: Sun
B111: 2020-12-26 | C111: 2 | D111: Sat
B112: 2020-12-27 | C112: 2 | D112: Sun

Sheet Dice
B4: Use Table Format to visualize Sample Space and show all experimental outcomes (sample points):
B6: Example of table to visualize all sample points for a two-step random experiment of throwing two die:
C8: Die1/Die2
C16: =_xlfn.IFNA("Die 1 formula: "&_xlfn.FORMULATEXT(C9),"") -> 
C17: =_xlfn.IFNA("Die 2 formula: "&_xlfn.FORMULATEXT(D8),"") -> 
C18: =_xlfn.IFNA("Inside formula: "&_xlfn.FORMULATEXT(D9),"") -> 

Sheet Dice (an)
B4: Use Table Format to visualize Sample Space and show all experimental outcomes (sample points):
B6: Example of table to visualize all sample points for a two-step random experiment of throwing two die:
C8: Die1/Die2 | D8: =_xlfn.SEQUENCE(,6) -> 1 | E8: 2 | F8: 3 | G8: 4 | H8: 5 | I8: 6
C9: =_xlfn.SEQUENCE(6) -> 1 | D9: ="("&_xlfn.ANCHORARRAY(C9)&", "&_xlfn.ANCHORARRAY(D8)&") = "&_xlfn.ANCHORARRAY(C9)+_xlfn.ANCHORARRAY(D8) -> (1, 1) = 2 | E9: (1, 2) = 3 | F9: (1, 3) = 4 | G9: (1, 4) = 5 | H9: (1, 5) = 6 | I9: (1, 6) = 7 | N9: From comments at YouTube from ExcelLambda (just for fun):
C10: 2 | D10: (2, 1) = 3 | E10: (2, 2) = 4 | F10: (2, 3) = 5 | G10: (2, 4) = 6 | H10: (2, 5) = 7 | I10: (2, 6) = 8 | N10: =_xlfn.MAKEARRAY(6,6,_xlfn.LAMBDA(_xlpm.r,_xlpm.c,"("&_xlpm.r&", "&_xlpm.c&") = "&_xlpm.r+_xlpm.c)) -> (1, 1) = 2 | O10: (1, 2) = 3 | P10: (1, 3) = 4 | Q10: (1, 4) = 5 | R10: (1, 5) = 6 | S10: (1, 6) = 7
C11: 3 | D11: (3, 1) = 4 | E11: (3, 2) = 5 | F11: (3, 3) = 6 | G11: (3, 4) = 7 | H11: (3, 5) = 8 | I11: (3, 6) = 9 | N11: (2, 1) = 3 | O11: (2, 2) = 4 | P11: (2, 3) = 5 | Q11: (2, 4) = 6 | R11: (2, 5) = 7 | S11: (2, 6) = 8
C12: 4 | D12: (4, 1) = 5 | E12: (4, 2) = 6 | F12: (4, 3) = 7 | G12: (4, 4) = 8 | H12: (4, 5) = 9 | I12: (4, 6) = 10 | N12: (3, 1) = 4 | O12: (3, 2) = 5 | P12: (3, 3) = 6 | Q12: (3, 4) = 7 | R12: (3, 5) = 8 | S12: (3, 6) = 9
C13: 5 | D13: (5, 1) = 6 | E13: (5, 2) = 7 | F13: (5, 3) = 8 | G13: (5, 4) = 9 | H13: (5, 5) = 10 | I13: (5, 6) = 11 | N13: (4, 1) = 5 | O13: (4, 2) = 6 | P13: (4, 3) = 7 | Q13: (4, 4) = 8 | R13: (4, 5) = 9 | S13: (4, 6) = 10
C14: 6 | D14: (6, 1) = 7 | E14: (6, 2) = 8 | F14: (6, 3) = 9 | G14: (6, 4) = 10 | H14: (6, 5) = 11 | I14: (6, 6) = 12 | N14: (5, 1) = 6 | O14: (5, 2) = 7 | P14: (5, 3) = 8 | Q14: (5, 4) = 9 | R14: (5, 5) = 10 | S14: (5, 6) = 11
N15: (6, 1) = 7 | O15: (6, 2) = 8 | P15: (6, 3) = 9 | Q15: (6, 4) = 10 | R15: (6, 5) = 11 | S15: (6, 6) = 12
C16: =_xlfn.IFNA("Die 1 formula: "&_xlfn.FORMULATEXT(C9),"") -> Die 1 formula: =SEQUENCE(6)
C17: =_xlfn.IFNA("Die 2 formula: "&_xlfn.FORMULATEXT(D8),"") -> Die 2 formula: =SEQUENCE(,6)
C18: =_xlfn.IFNA("Inside formula: "&_xlfn.FORMULATEXT(D9),"") -> Inside formula: ="("&C9#&", "&D8#&") = "&C9#+D8#
N20: From comments at YouTube from DRSteele (just for fun):
N21: =_xlfn.UNICHAR(RANDBETWEEN(0,5)+9856) -> ⚄ | O21: Hit F9 key to roll dice

Sheet Counting
B2: Counting Rule for Multi-Step Random Experiment
B3: Total number of experimental outcomes (sample points) = size of sample space = n1 * n2 * … nk
B4: k = Number of steps or trials in the random experiment
B5: n1 = number of possible outcomes in step 1
B6: n2 = number of possible outcomes in step 2
B7: nk = number of possible outcomes in last step
B8: Examples:
B9: 1) Roll two die. k = 2, n1 = 6, n2 = 6. Total experiments outcomes = 6*6 = 36
B11: 2) Determine lock code with 3 spots and 10 digits. What are the number of total experimental outcomes (total possible lock codes)?
B13: Number slots for lock code: | E13: k | F13: 3
B14: ="Digits: "&_xlfn.TEXTJOIN(", ",,_xlfn.SEQUENCE(,10)) -> Digits: 1, 2, 3, 4, 5, 6, 7, 8, 9, 10 | E14: n1 | F14: 10
B15: ="Digits: "&_xlfn.TEXTJOIN(", ",,_xlfn.SEQUENCE(,10)) -> Digits: 1, 2, 3, 4, 5, 6, 7, 8, 9, 10 | E15: n2 | F15: 10
B16: ="Digits: "&_xlfn.TEXTJOIN(", ",,_xlfn.SEQUENCE(,10)) -> Digits: 1, 2, 3, 4, 5, 6, 7, 8, 9, 10 | E16: n3 | F16: 10
C17: Total lock possibilities: | G17: =_xlfn.IFNA(" "&F14&"*"&F15&"*"&F16&" or "&F14&"^"&F13,"") -> 10*10*10 or 10^3
B19: 3) Deli offers 2 rolls, 4 meats and 3 cheeses. k = 3, n1 = 2, n2 = 4, n3 = 3. What are the number of total experimental outcomes (total number of different sandwiches) if you get one of each?
B21: # steps in building sandwich: | E21: k | F21: 3
B22: Number rolls | E22: n1 | F22: 2
B23: Number meats | E23: n2 | F23: 4
E24: n3 | F24: 3
C25: Total lock possibilities: | G25: =_xlfn.IFNA(" "&F22&"*"&F23&"*"&F24,"") -> 2*4*3
B28: Sometimes we have to decide on sample space with combinations or permutations, where you select n objects from a set of N objects.
B30: Example of the difference between a Combination and a Permutation:
B31: If we select the letters A, B, C, one after the other and you cannot repeat (example: A, A, A not allowed)
C33: Permutations | E33: Combinations
C34: Order Matters | E34: Order Does Not Matter | G34: * You can pick the letters in any
C35: A, B, C | E35: A, B, C | G35: order, but just one time.
C36: A, C, B
C37: B, A, C
C38: B, C, A
C39: C, A, B
C40: C, B, C
B41: Total | C41: =COUNTA(C35:C40) -> 6 | E41: =COUNTA(E35:E40) -> 1
B44: Counting Rule for Combinations, Order Does Not Matter
B45: When experiment involves selecting n objects from a set of N objects, and the order of the items is not considered, like: (2,1) is the same as (1,2), then: Total number of experimental outcomes (sample points) = size of sample space =
B49: N = count of all objects (population) | G49: 7 | H49: Population Size
B50: n = count of objects selected (sample size) | G50: 3 | H50: Sample Size
B51: In Excel use function: COMBIN(N,n) | H51: Total combinations
G52: =_xlfn.IFNA("=COMBIN("&G49&","&G50&")","") -> =COMBIN(7,3)
B53: Note: Factorial (from your algebra class) is represented by ! Example: 5! = 5*4*3*2*1 = 120, and: 0! = 1.
B54: Examples:
B55: 1) Find all possible combinations of sample size 3 from a set of 7 numbers = 7!/(3!*(7-3)!) = (7*6*5*4*3*2*1)/(3*2*1*(4*3*2*1)) = (7*6*5)/(3*2*1*) = 7*5 = 35
B57: 2) Find all combinations a for a basketball team that has 13 players and 5 can play in a game, assuming a player can play any position = 13!/(5!*(13-5) = (13*12*11*10*9)/(5*4*3*2*1) = (13*3*11*2*3)/2 = 1287
B59: Counting Rule for Permutations, Order Matters
B60: When experiment involves selecting n objects from a set of N objects, and the order of the items is considered, like: (2,1) is different than (1,2), then: Total number of experimental outcomes (sample points) = size of sample space =
B64: N = count of all objects (population) | G64: 5 | H64: Population Size
B65: n = count of objects selected (sample size) | G65: 5 | H65: Sample Size
B66: In Excel use function: PERMUT(N,n) | H66: Total permutations
G67: =_xlfn.IFNA("=PERMUT("&G64&","&G65&")","") -> =PERMUT(5,5)
B68: Examples:
B69: 1) Find total possible arrangements for 5 employees in 5 different offices = 5!/(5-5)! = (5*4*3*2*1)/0! = 120/1 = 120
B70: 2) Find total possible arrangements for 5 employees in 3 different offices = 5!/(5-3)! = (5*4*3*2*1)/2! = 120/2 = 60
L71: Five Employees: | N71: Names: | P71: Permutations for 5 Offices: | T71: All Unique? | U71: =ROWS(_xlfn.UNIQUE(P74:T193)) -> 120
B72: =M73&" "&M74 ->  | N72: June
N73: Tyrone | P73: Office 1 | Q73: Office 2 | R73: Office 3 | S73: Office 4 | T73: Office 5
N74: Gigi | P74: June | Q74: Tyrone | R74: Gigi | S74: Dino | T74: Sioux
N75: Dino | P75: June | Q75: Tyrone | R75: Gigi | S75: Sioux | T75: Dino
N76: Sioux | P76: June | Q76: Tyrone | R76: Dino | S76: Gigi | T76: Sioux
P77: June | Q77: Tyrone | R77: Dino | S77: Sioux | T77: Gigi
P78: June | Q78: Tyrone | R78: Sioux | S78: Gigi | T78: Dino
P79: June | Q79: Tyrone | R79: Sioux | S79: Dino | T79: Gigi
P80: June | Q80: Gigi | R80: Tyrone | S80: Dino | T80: Sioux
P81: June | Q81: Gigi | R81: Tyrone | S81: Sioux | T81: Dino
P82: June | Q82: Gigi | R82: Dino | S82: Tyrone | T82: Sioux
P83: June | Q83: Gigi | R83: Dino | S83: Sioux | T83: Tyrone
P84: June | Q84: Gigi | R84: Sioux | S84: Tyrone | T84: Dino
P85: June | Q85: Gigi | R85: Sioux | S85: Dino | T85: Tyrone
P86: June | Q86: Dino | R86: Tyrone | S86: Gigi | T86: Sioux
P87: June | Q87: Dino | R87: Tyrone | S87: Sioux | T87: Gigi
P88: June | Q88: Dino | R88: Gigi | S88: Tyrone | T88: Sioux
P89: June | Q89: Dino | R89: Gigi | S89: Sioux | T89: Tyrone
P90: June | Q90: Dino | R90: Sioux | S90: Tyrone | T90: Gigi
P91: June | Q91: Dino | R91: Sioux | S91: Gigi | T91: Tyrone
P92: June | Q92: Sioux | R92: Tyrone | S92: Gigi | T92: Dino
P93: June | Q93: Sioux | R93: Tyrone | S93: Dino | T93: Gigi
P94: June | Q94: Sioux | R94: Gigi | S94: Tyrone | T94: Dino
P95: June | Q95: Sioux | R95: Gigi | S95: Dino | T95: Tyrone
P96: June | Q96: Sioux | R96: Dino | S96: Tyrone | T96: Gigi
P97: June | Q97: Sioux | R97: Dino | S97: Gigi | T97: Tyrone
P98: Tyrone | Q98: June | R98: Gigi | S98: Dino | T98: Sioux
P99: Tyrone | Q99: June | R99: Gigi | S99: Sioux | T99: Dino
P100: Tyrone | Q100: June | R100: Dino | S100: Gigi | T100: Sioux
P101: Tyrone | Q101: June | R101: Dino | S101: Sioux | T101: Gigi
P102: Tyrone | Q102: June | R102: Sioux | S102: Gigi | T102: Dino
P103: Tyrone | Q103: June | R103: Sioux | S103: Dino | T103: Gigi
P104: Tyrone | Q104: Gigi | R104: June | S104: Dino | T104: Sioux
P105: Tyrone | Q105: Gigi | R105: June | S105: Sioux | T105: Dino
P106: Tyrone | Q106: Gigi | R106: Dino | S106: June | T106: Sioux
P107: Tyrone | Q107: Gigi | R107: Dino | S107: Sioux | T107: June
P108: Tyrone | Q108: Gigi | R108: Sioux | S108: June | T108: Dino
P109: Tyrone | Q109: Gigi | R109: Sioux | S109: Dino | T109: June
P110: Tyrone | Q110: Dino | R110: June | S110: Gigi | T110: Sioux
P111: Tyrone | Q111: Dino | R111: June | S111: Sioux | T111: Gigi
P112: Tyrone | Q112: Dino | R112: Gigi | S112: June | T112: Sioux
P113: Tyrone | Q113: Dino | R113: Gigi | S113: Sioux | T113: June
P114: Tyrone | Q114: Dino | R114: Sioux | S114: June | T114: Gigi
P115: Tyrone | Q115: Dino | R115: Sioux | S115: Gigi | T115: June
P116: Tyrone | Q116: Sioux | R116: June | S116: Gigi | T116: Dino
P117: Tyrone | Q117: Sioux | R117: June | S117: Dino | T117: Gigi
P118: Tyrone | Q118: Sioux | R118: Gigi | S118: June | T118: Dino
P119: Tyrone | Q119: Sioux | R119: Gigi | S119: Dino | T119: June
P120: Tyrone | Q120: Sioux | R120: Dino | S120: June | T120: Gigi
P121: Tyrone | Q121: Sioux | R121: Dino | S121: Gigi | T121: June
P122: Gigi | Q122: June | R122: Tyrone | S122: Dino | T122: Sioux
P123: Gigi | Q123: June | R123: Tyrone | S123: Sioux | T123: Dino
P124: Gigi | Q124: June | R124: Dino | S124: Tyrone | T124: Sioux
P125: Gigi | Q125: June | R125: Dino | S125: Sioux | T125: Tyrone
P126: Gigi | Q126: June | R126: Sioux | S126: Tyrone | T126: Dino
P127: Gigi | Q127: June | R127: Sioux | S127: Dino | T127: Tyrone
P128: Gigi | Q128: Tyrone | R128: June | S128: Dino | T128: Sioux
P129: Gigi | Q129: Tyrone | R129: June | S129: Sioux | T129: Dino
P130: Gigi | Q130: Tyrone | R130: Dino | S130: June | T130: Sioux
P131: Gigi | Q131: Tyrone | R131: Dino | S131: Sioux | T131: June
P132: Gigi | Q132: Tyrone | R132: Sioux | S132: June | T132: Dino
P133: Gigi | Q133: Tyrone | R133: Sioux | S133: Dino | T133: June
P134: Gigi | Q134: Dino | R134: June | S134: Tyrone | T134: Sioux
P135: Gigi | Q135: Dino | R135: June | S135: Sioux | T135: Tyrone
P136: Gigi | Q136: Dino | R136: Tyrone | S136: June | T136: Sioux
P137: Gigi | Q137: Dino | R137: Tyrone | S137: Sioux | T137: June
P138: Gigi | Q138: Dino | R138: Sioux | S138: June | T138: Tyrone
P139: Gigi | Q139: Dino | R139: Sioux | S139: Tyrone | T139: June
P140: Gigi | Q140: Sioux | R140: June | S140: Tyrone | T140: Dino
P141: Gigi | Q141: Sioux | R141: June | S141: Dino | T141: Tyrone
P142: Gigi | Q142: Sioux | R142: Tyrone | S142: June | T142: Dino
P143: Gigi | Q143: Sioux | R143: Tyrone | S143: Dino | T143: June
P144: Gigi | Q144: Sioux | R144: Dino | S144: June | T144: Tyrone
P145: Gigi | Q145: Sioux | R145: Dino | S145: Tyrone | T145: June
P146: Dino | Q146: June | R146: Tyrone | S146: Gigi | T146: Sioux
P147: Dino | Q147: June | R147: Tyrone | S147: Sioux | T147: Gigi
P148: Dino | Q148: June | R148: Gigi | S148: Tyrone | T148: Sioux
P149: Dino | Q149: June | R149: Gigi | S149: Sioux | T149: Tyrone
P150: Dino | Q150: June | R150: Sioux | S150: Tyrone | T150: Gigi
P151: Dino | Q151: June | R151: Sioux | S151: Gigi | T151: Tyrone
P152: Dino | Q152: Tyrone | R152: June | S152: Gigi | T152: Sioux
P153: Dino | Q153: Tyrone | R153: June | S153: Sioux | T153: Gigi
P154: Dino | Q154: Tyrone | R154: Gigi | S154: June | T154: Sioux
P155: Dino | Q155: Tyrone | R155: Gigi | S155: Sioux | T155: June
P156: Dino | Q156: Tyrone | R156: Sioux | S156: June | T156: Gigi
P157: Dino | Q157: Tyrone | R157: Sioux | S157: Gigi | T157: June
P158: Dino | Q158: Gigi | R158: June | S158: Tyrone | T158: Sioux
P159: Dino | Q159: Gigi | R159: June | S159: Sioux | T159: Tyrone
P160: Dino | Q160: Gigi | R160: Tyrone | S160: June | T160: Sioux
P161: Dino | Q161: Gigi | R161: Tyrone | S161: Sioux | T161: June
P162: Dino | Q162: Gigi | R162: Sioux | S162: June | T162: Tyrone
P163: Dino | Q163: Gigi | R163: Sioux | S163: Tyrone | T163: June
P164: Dino | Q164: Sioux | R164: June | S164: Tyrone | T164: Gigi
P165: Dino | Q165: Sioux | R165: June | S165: Gigi | T165: Tyrone
P166: Dino | Q166: Sioux | R166: Tyrone | S166: June | T166: Gigi
P167: Dino | Q167: Sioux | R167: Tyrone | S167: Gigi | T167: June
P168: Dino | Q168: Sioux | R168: Gigi | S168: June | T168: Tyrone
P169: Dino | Q169: Sioux | R169: Gigi | S169: Tyrone | T169: June
P170: Sioux | Q170: June | R170: Tyrone | S170: Gigi | T170: Dino
P171: Sioux | Q171: June | R171: Tyrone | S171: Dino | T171: Gigi
P172: Sioux | Q172: June | R172: Gigi | S172: Tyrone | T172: Dino
P173: Sioux | Q173: June | R173: Gigi | S173: Dino | T173: Tyrone
P174: Sioux | Q174: June | R174: Dino | S174: Tyrone | T174: Gigi
P175: Sioux | Q175: June | R175: Dino | S175: Gigi | T175: Tyrone
P176: Sioux | Q176: Tyrone | R176: June | S176: Gigi | T176: Dino
P177: Sioux | Q177: Tyrone | R177: June | S177: Dino | T177: Gigi
P178: Sioux | Q178: Tyrone | R178: Gigi | S178: June | T178: Dino
P179: Sioux | Q179: Tyrone | R179: Gigi | S179: Dino | T179: June
P180: Sioux | Q180: Tyrone | R180: Dino | S180: June | T180: Gigi
P181: Sioux | Q181: Tyrone | R181: Dino | S181: Gigi | T181: June
P182: Sioux | Q182: Gigi | R182: June | S182: Tyrone | T182: Dino
P183: Sioux | Q183: Gigi | R183: June | S183: Dino | T183: Tyrone
P184: Sioux | Q184: Gigi | R184: Tyrone | S184: June | T184: Dino
P185: Sioux | Q185: Gigi | R185: Tyrone | S185: Dino | T185: June
P186: Sioux | Q186: Gigi | R186: Dino | S186: June | T186: Tyrone
P187: Sioux | Q187: Gigi | R187: Dino | S187: Tyrone | T187: June
P188: Sioux | Q188: Dino | R188: June | S188: Tyrone | T188: Gigi
P189: Sioux | Q189: Dino | R189: June | S189: Gigi | T189: Tyrone
P190: Sioux | Q190: Dino | R190: Tyrone | S190: June | T190: Gigi
P191: Sioux | Q191: Dino | R191: Tyrone | S191: Gigi | T191: June
P192: Sioux | Q192: Dino | R192: Gigi | S192: June | T192: Tyrone
P193: Sioux | Q193: Dino | R193: Gigi | S193: Tyrone | T193: June

Sheet Counting (an)
B2: Counting Rule for Multi-Step Random Experiment
B3: Total number of experimental outcomes (sample points) = size of sample space = n1 * n2 * … nk
B4: k = Number of steps or trials in the random experiment
B5: n1 = number of possible outcomes in step 1
B6: n2 = number of possible outcomes in step 2
B7: nk = number of possible outcomes in last step
B8: Examples:
B9: 1) Roll two die. k = 2, n1 = 6, n2 = 6. Total experiments outcomes = 6*6 = 36
B11: 2) Determine lock code with 3 spots and 10 digits. What are the number of total experimental outcomes (total possible lock codes)?
B13: Number slots for lock code: | E13: k | F13: 3
B14: ="Digits: "&_xlfn.TEXTJOIN(", ",,_xlfn.SEQUENCE(,10)) -> Digits: 1, 2, 3, 4, 5, 6, 7, 8, 9, 10 | E14: n1 | F14: 10
B15: ="Digits: "&_xlfn.TEXTJOIN(", ",,_xlfn.SEQUENCE(,10)) -> Digits: 1, 2, 3, 4, 5, 6, 7, 8, 9, 10 | E15: n2 | F15: 10
B16: ="Digits: "&_xlfn.TEXTJOIN(", ",,_xlfn.SEQUENCE(,10)) -> Digits: 1, 2, 3, 4, 5, 6, 7, 8, 9, 10 | E16: n3 | F16: 10
C17: Total lock possibilities: | F17: =F14^F13 -> 1000 | G17: =_xlfn.IFNA(" "&F14&"*"&F15&"*"&F16&" or "&F14&"^"&F13,"") -> 10*10*10 or 10^3
B19: 3) Deli offers 2 rolls, 4 meats and 3 cheeses. k = 3, n1 = 2, n2 = 4, n3 = 3. What are the number of total experimental outcomes (total number of different sandwiches) if you get one of each?
B21: # steps in building sandwich: | E21: k | F21: 3
B22: Number rolls | E22: n1 | F22: 2
B23: Number meats | E23: n2 | F23: 4
E24: n3 | F24: 3
C25: Total lock possibilities: | F25: =F22*F23*F24 -> 24 | G25: =_xlfn.IFNA(" "&F22&"*"&F23&"*"&F24,"") -> 2*4*3
B28: Sometimes we have to decide on sample space with combinations or permutations, where you select n objects from a set of N objects.
B30: Example of the difference between a Combination and a Permutation:
B31: If we select the letters A, B, C, one after the other and you cannot repeat (example: A, A, A not allowed)
C33: Permutations | E33: Combinations
C34: Order Matters | E34: Order Does Not Matter | G34: * You can pick the letters in any
C35: A, B, C | E35: A, B, C | G35: order, but just one time.
C36: A, C, B
C37: B, A, C
C38: B, C, A
C39: C, A, B
C40: C, B, C
B41: Total | C41: =COUNTA(C35:C40) -> 6 | E41: =COUNTA(E35:E40) -> 1
B44: Counting Rule for Combinations, Order Does Not Matter
B45: When experiment involves selecting n objects from a set of N objects, and the order of the items is not considered, like: (2,1) is the same as (1,2), then: Total number of experimental outcomes (sample points) = size of sample space =
B49: N = count of all objects (population) | G49: 7 | H49: Population Size
B50: n = count of objects selected (sample size) | G50: 3 | H50: Sample Size
B51: In Excel use function: COMBIN(N,n) | G51: =COMBIN(G49,G50) -> 35 | H51: Total combinations
G52: =_xlfn.IFNA("=COMBIN("&G49&","&G50&")","") -> =COMBIN(7,3)
B53: Note: Factorial (from your algebra class) is represented by ! Example: 5! = 5*4*3*2*1 = 120, and: 0! = 1.
B54: Examples:
B55: 1) Find all possible combinations of sample size 3 from a set of 7 numbers = 7!/(3!*(7-3)!) = (7*6*5*4*3*2*1)/(3*2*1*(4*3*2*1)) = (7*6*5)/(3*2*1*) = 7*5 = 35
B57: 2) Find all combinations a for a basketball team that has 13 players and 5 can play in a game, assuming a player can play any position = 13!/(5!*(13-5) = (13*12*11*10*9)/(5*4*3*2*1) = (13*3*11*2*3)/2 = 1287
B59: Counting Rule for Permutations, Order Matters
B60: When experiment involves selecting n objects from a set of N objects, and the order of the items is considered, like: (2,1) is different than (1,2), then: Total number of experimental outcomes (sample points) = size of sample space =
B64: N = count of all objects (population) | G64: 5 | H64: Population Size
B65: n = count of objects selected (sample size) | G65: 5 | H65: Sample Size
B66: In Excel use function: PERMUT(N,n) | G66: =PERMUT(G64,G65) -> 120 | H66: Total permutations
G67: =_xlfn.IFNA("=PERMUT("&G64&","&G65&")","") -> =PERMUT(5,5)
B68: Examples:
B69: 1) Find total possible arrangements for 5 employees in 5 different offices = 5!/(5-5)! = (5*4*3*2*1)/0! = 120/1 = 120
B70: 2) Find total possible arrangements for 5 employees in 3 different offices = 5!/(5-3)! = (5*4*3*2*1)/2! = 120/2 = 60
L71: Five Employees: | N71: Names: | P71: Permutations for 5 Offices: | U71: All Unique? | V71: =ROWS(_xlfn.UNIQUE(P74:T193)) -> 120
B72: =M61&" "&M62 ->  | N72: June
N73: Tyrone | P73: Office 1 | Q73: Office 2 | R73: Office 3 | S73: Office 4 | T73: Office 5
N74: Gigi | P74: June | Q74: Tyrone | R74: Gigi | S74: Dino | T74: Sioux
N75: Dino | P75: June | Q75: Tyrone | R75: Gigi | S75: Sioux | T75: Dino
N76: Sioux | P76: June | Q76: Tyrone | R76: Dino | S76: Gigi | T76: Sioux
P77: June | Q77: Tyrone | R77: Dino | S77: Sioux | T77: Gigi
P78: June | Q78: Tyrone | R78: Sioux | S78: Gigi | T78: Dino
P79: June | Q79: Tyrone | R79: Sioux | S79: Dino | T79: Gigi
P80: June | Q80: Gigi | R80: Tyrone | S80: Dino | T80: Sioux
P81: June | Q81: Gigi | R81: Tyrone | S81: Sioux | T81: Dino
P82: June | Q82: Gigi | R82: Dino | S82: Tyrone | T82: Sioux
P83: June | Q83: Gigi | R83: Dino | S83: Sioux | T83: Tyrone
P84: June | Q84: Gigi | R84: Sioux | S84: Tyrone | T84: Dino
P85: June | Q85: Gigi | R85: Sioux | S85: Dino | T85: Tyrone
P86: June | Q86: Dino | R86: Tyrone | S86: Gigi | T86: Sioux
P87: June | Q87: Dino | R87: Tyrone | S87: Sioux | T87: Gigi
P88: June | Q88: Dino | R88: Gigi | S88: Tyrone | T88: Sioux
P89: June | Q89: Dino | R89: Gigi | S89: Sioux | T89: Tyrone
P90: June | Q90: Dino | R90: Sioux | S90: Tyrone | T90: Gigi
P91: June | Q91: Dino | R91: Sioux | S91: Gigi | T91: Tyrone
P92: June | Q92: Sioux | R92: Tyrone | S92: Gigi | T92: Dino
P93: June | Q93: Sioux | R93: Tyrone | S93: Dino | T93: Gigi
P94: June | Q94: Sioux | R94: Gigi | S94: Tyrone | T94: Dino
P95: June | Q95: Sioux | R95: Gigi | S95: Dino | T95: Tyrone
P96: June | Q96: Sioux | R96: Dino | S96: Tyrone | T96: Gigi
P97: June | Q97: Sioux | R97: Dino | S97: Gigi | T97: Tyrone
P98: Tyrone | Q98: June | R98: Gigi | S98: Dino | T98: Sioux
P99: Tyrone | Q99: June | R99: Gigi | S99: Sioux | T99: Dino
P100: Tyrone | Q100: June | R100: Dino | S100: Gigi | T100: Sioux
P101: Tyrone | Q101: June | R101: Dino | S101: Sioux | T101: Gigi
P102: Tyrone | Q102: June | R102: Sioux | S102: Gigi | T102: Dino
P103: Tyrone | Q103: June | R103: Sioux | S103: Dino | T103: Gigi
P104: Tyrone | Q104: Gigi | R104: June | S104: Dino | T104: Sioux
P105: Tyrone | Q105: Gigi | R105: June | S105: Sioux | T105: Dino
P106: Tyrone | Q106: Gigi | R106: Dino | S106: June | T106: Sioux
P107: Tyrone | Q107: Gigi | R107: Dino | S107: Sioux | T107: June
P108: Tyrone | Q108: Gigi | R108: Sioux | S108: June | T108: Dino
P109: Tyrone | Q109: Gigi | R109: Sioux | S109: Dino | T109: June
P110: Tyrone | Q110: Dino | R110: June | S110: Gigi | T110: Sioux
P111: Tyrone | Q111: Dino | R111: June | S111: Sioux | T111: Gigi
P112: Tyrone | Q112: Dino | R112: Gigi | S112: June | T112: Sioux
P113: Tyrone | Q113: Dino | R113: Gigi | S113: Sioux | T113: June
P114: Tyrone | Q114: Dino | R114: Sioux | S114: June | T114: Gigi
P115: Tyrone | Q115: Dino | R115: Sioux | S115: Gigi | T115: June
P116: Tyrone | Q116: Sioux | R116: June | S116: Gigi | T116: Dino
P117: Tyrone | Q117: Sioux | R117: June | S117: Dino | T117: Gigi
P118: Tyrone | Q118: Sioux | R118: Gigi | S118: June | T118: Dino
P119: Tyrone | Q119: Sioux | R119: Gigi | S119: Dino | T119: June
P120: Tyrone | Q120: Sioux | R120: Dino | S120: June | T120: Gigi
P121: Tyrone | Q121: Sioux | R121: Dino | S121: Gigi | T121: June
P122: Gigi | Q122: June | R122: Tyrone | S122: Dino | T122: Sioux
P123: Gigi | Q123: June | R123: Tyrone | S123: Sioux | T123: Dino
P124: Gigi | Q124: June | R124: Dino | S124: Tyrone | T124: Sioux
P125: Gigi | Q125: June | R125: Dino | S125: Sioux | T125: Tyrone
P126: Gigi | Q126: June | R126: Sioux | S126: Tyrone | T126: Dino
P127: Gigi | Q127: June | R127: Sioux | S127: Dino | T127: Tyrone
P128: Gigi | Q128: Tyrone | R128: June | S128: Dino | T128: Sioux
P129: Gigi | Q129: Tyrone | R129: June | S129: Sioux | T129: Dino
P130: Gigi | Q130: Tyrone | R130: Dino | S130: June | T130: Sioux
P131: Gigi | Q131: Tyrone | R131: Dino | S131: Sioux | T131: June
P132: Gigi | Q132: Tyrone | R132: Sioux | S132: June | T132: Dino
P133: Gigi | Q133: Tyrone | R133: Sioux | S133: Dino | T133: June
P134: Gigi | Q134: Dino | R134: June | S134: Tyrone | T134: Sioux
P135: Gigi | Q135: Dino | R135: June | S135: Sioux | T135: Tyrone
P136: Gigi | Q136: Dino | R136: Tyrone | S136: June | T136: Sioux
P137: Gigi | Q137: Dino | R137: Tyrone | S137: Sioux | T137: June
P138: Gigi | Q138: Dino | R138: Sioux | S138: June | T138: Tyrone
P139: Gigi | Q139: Dino | R139: Sioux | S139: Tyrone | T139: June
P140: Gigi | Q140: Sioux | R140: June | S140: Tyrone | T140: Dino
P141: Gigi | Q141: Sioux | R141: June | S141: Dino | T141: Tyrone
P142: Gigi | Q142: Sioux | R142: Tyrone | S142: June | T142: Dino
P143: Gigi | Q143: Sioux | R143: Tyrone | S143: Dino | T143: June
P144: Gigi | Q144: Sioux | R144: Dino | S144: June | T144: Tyrone
P145: Gigi | Q145: Sioux | R145: Dino | S145: Tyrone | T145: June
P146: Dino | Q146: June | R146: Tyrone | S146: Gigi | T146: Sioux
P147: Dino | Q147: June | R147: Tyrone | S147: Sioux | T147: Gigi
P148: Dino | Q148: June | R148: Gigi | S148: Tyrone | T148: Sioux
P149: Dino | Q149: June | R149: Gigi | S149: Sioux | T149: Tyrone
P150: Dino | Q150: June | R150: Sioux | S150: Tyrone | T150: Gigi
P151: Dino | Q151: June | R151: Sioux | S151: Gigi | T151: Tyrone
P152: Dino | Q152: Tyrone | R152: June | S152: Gigi | T152: Sioux
P153: Dino | Q153: Tyrone | R153: June | S153: Sioux | T153: Gigi
P154: Dino | Q154: Tyrone | R154: Gigi | S154: June | T154: Sioux
P155: Dino | Q155: Tyrone | R155: Gigi | S155: Sioux | T155: June
P156: Dino | Q156: Tyrone | R156: Sioux | S156: June | T156: Gigi
P157: Dino | Q157: Tyrone | R157: Sioux | S157: Gigi | T157: June
P158: Dino | Q158: Gigi | R158: June | S158: Tyrone | T158: Sioux
P159: Dino | Q159: Gigi | R159: June | S159: Sioux | T159: Tyrone
P160: Dino | Q160: Gigi | R160: Tyrone | S160: June | T160: Sioux
P161: Dino | Q161: Gigi | R161: Tyrone | S161: Sioux | T161: June
P162: Dino | Q162: Gigi | R162: Sioux | S162: June | T162: Tyrone
P163: Dino | Q163: Gigi | R163: Sioux | S163: Tyrone | T163: June
P164: Dino | Q164: Sioux | R164: June | S164: Tyrone | T164: Gigi
P165: Dino | Q165: Sioux | R165: June | S165: Gigi | T165: Tyrone
P166: Dino | Q166: Sioux | R166: Tyrone | S166: June | T166: Gigi
P167: Dino | Q167: Sioux | R167: Tyrone | S167: Gigi | T167: June
P168: Dino | Q168: Sioux | R168: Gigi | S168: June | T168: Tyrone
P169: Dino | Q169: Sioux | R169: Gigi | S169: Tyrone | T169: June
P170: Sioux | Q170: June | R170: Tyrone | S170: Gigi | T170: Dino
P171: Sioux | Q171: June | R171: Tyrone | S171: Dino | T171: Gigi
P172: Sioux | Q172: June | R172: Gigi | S172: Tyrone | T172: Dino
P173: Sioux | Q173: June | R173: Gigi | S173: Dino | T173: Tyrone
P174: Sioux | Q174: June | R174: Dino | S174: Tyrone | T174: Gigi
P175: Sioux | Q175: June | R175: Dino | S175: Gigi | T175: Tyrone
P176: Sioux | Q176: Tyrone | R176: June | S176: Gigi | T176: Dino
P177: Sioux | Q177: Tyrone | R177: June | S177: Dino | T177: Gigi
P178: Sioux | Q178: Tyrone | R178: Gigi | S178: June | T178: Dino
P179: Sioux | Q179: Tyrone | R179: Gigi | S179: Dino | T179: June
P180: Sioux | Q180: Tyrone | R180: Dino | S180: June | T180: Gigi
P181: Sioux | Q181: Tyrone | R181: Dino | S181: Gigi | T181: June
P182: Sioux | Q182: Gigi | R182: June | S182: Tyrone | T182: Dino
P183: Sioux | Q183: Gigi | R183: June | S183: Dino | T183: Tyrone
P184: Sioux | Q184: Gigi | R184: Tyrone | S184: June | T184: Dino
P185: Sioux | Q185: Gigi | R185: Tyrone | S185: Dino | T185: June
P186: Sioux | Q186: Gigi | R186: Dino | S186: June | T186: Tyrone
P187: Sioux | Q187: Gigi | R187: Dino | S187: Tyrone | T187: June
P188: Sioux | Q188: Dino | R188: June | S188: Tyrone | T188: Gigi
P189: Sioux | Q189: Dino | R189: June | S189: Gigi | T189: Tyrone
P190: Sioux | Q190: Dino | R190: Tyrone | S190: June | T190: Gigi
P191: Sioux | Q191: Dino | R191: Tyrone | S191: Gigi | T191: June
P192: Sioux | Q192: Dino | R192: Gigi | S192: June | T192: Tyrone
P193: Sioux | Q193: Dino | R193: Gigi | S193: Tyrone | T193: June

Sheet Combin
B2: Population | C2: =ROWS(B8:C14) -> 7 | E2: Used in Chapter 7 (Central Limit Theorem)
B3: Sample size | C3: 3
B4: Combinations | C4: =COMBIN(C2,C3) -> 35 | E4: =_xlfn.IFNA(ADDRESS(ROW(C4),COLUMN(C4),4)&": "&_xlfn.FORMULATEXT(C4),"") -> C4: =COMBIN(C2,C3)
B7: Sales Rep | C7: Sales | E7: Sales Rep 1 | F7: Sales Rep 2 | G7: Sales Rep 3 | H7: Sales 1 | I7: Sales 2 | J7: Sales 3 | K7: Xbar
B8: Jo | C8: 185 | E8: Jo | F8: Sioux | G8: Chin | H8: =_xlfn.XLOOKUP(E8:G42,B8:B14,C8:C14) -> 185 | I8: 250 | J8: 210 | K8: =AVERAGE(H8:J8) -> 215
B9: Sioux | C9: 250 | E9: Jo | F9: Sioux | G9: Sheliadawn | H9: 185 | I9: 250 | J9: 310 | K9: =AVERAGE(H9:J9) -> 248.3333333
B10: Chin | C10: 210 | E10: Jo | F10: Sioux | G10: Gigi | H10: 185 | I10: 250 | J10: 298 | K10: 244.3333333
B11: Sheliadawn | C11: 310 | E11: Jo | F11: Sioux | G11: Tyrone | H11: 185 | I11: 250 | J11: 402 | K11: 279
B12: Gigi | C12: 298 | E12: Jo | F12: Sioux | G12: Kip | H12: 185 | I12: 250 | J12: 370 | K12: 268.3333333
B13: Tyrone | C13: 402 | E13: Jo | F13: Chin | G13: Sheliadawn | H13: 185 | I13: 210 | J13: 310 | K13: 235
B14: Kip | C14: 370 | E14: Jo | F14: Chin | G14: Gigi | H14: 185 | I14: 210 | J14: 298 | K14: 231
E15: Jo | F15: Chin | G15: Tyrone | H15: 185 | I15: 210 | J15: 402 | K15: 265.6666667
E16: Jo | F16: Chin | G16: Kip | H16: 185 | I16: 210 | J16: 370 | K16: 255
E17: Jo | F17: Sheliadawn | G17: Gigi | H17: 185 | I17: 310 | J17: 298 | K17: 264.3333333
E18: Jo | F18: Sheliadawn | G18: Tyrone | H18: 185 | I18: 310 | J18: 402 | K18: 299
E19: Jo | F19: Sheliadawn | G19: Kip | H19: 185 | I19: 310 | J19: 370 | K19: 288.3333333
E20: Jo | F20: Gigi | G20: Tyrone | H20: 185 | I20: 298 | J20: 402 | K20: 295
E21: Jo | F21: Gigi | G21: Kip | H21: 185 | I21: 298 | J21: 370 | K21: 284.3333333
E22: Jo | F22: Tyrone | G22: Kip | H22: 185 | I22: 402 | J22: 370 | K22: 319
E23: Sioux | F23: Chin | G23: Sheliadawn | H23: 250 | I23: 210 | J23: 310 | K23: 256.6666667
E24: Sioux | F24: Chin | G24: Gigi | H24: 250 | I24: 210 | J24: 298 | K24: 252.6666667
E25: Sioux | F25: Chin | G25: Tyrone | H25: 250 | I25: 210 | J25: 402 | K25: 287.3333333
E26: Sioux | F26: Chin | G26: Kip | H26: 250 | I26: 210 | J26: 370 | K26: 276.6666667
E27: Sioux | F27: Sheliadawn | G27: Gigi | H27: 250 | I27: 310 | J27: 298 | K27: 286
E28: Sioux | F28: Sheliadawn | G28: Tyrone | H28: 250 | I28: 310 | J28: 402 | K28: 320.6666667
E29: Sioux | F29: Sheliadawn | G29: Kip | H29: 250 | I29: 310 | J29: 370 | K29: 310
E30: Sioux | F30: Gigi | G30: Tyrone | H30: 250 | I30: 298 | J30: 402 | K30: 316.6666667
E31: Sioux | F31: Gigi | G31: Kip | H31: 250 | I31: 298 | J31: 370 | K31: 306
E32: Sioux | F32: Tyrone | G32: Kip | H32: 250 | I32: 402 | J32: 370 | K32: 340.6666667
E33: Chin | F33: Sheliadawn | G33: Gigi | H33: 210 | I33: 310 | J33: 298 | K33: 272.6666667
E34: Chin | F34: Sheliadawn | G34: Tyrone | H34: 210 | I34: 310 | J34: 402 | K34: 307.3333333
E35: Chin | F35: Sheliadawn | G35: Kip | H35: 210 | I35: 310 | J35: 370 | K35: 296.6666667
E36: Chin | F36: Gigi | G36: Tyrone | H36: 210 | I36: 298 | J36: 402 | K36: 303.3333333
E37: Chin | F37: Gigi | G37: Kip | H37: 210 | I37: 298 | J37: 370 | K37: 292.6666667
E38: Chin | F38: Tyrone | G38: Kip | H38: 210 | I38: 402 | J38: 370 | K38: 327.3333333
E39: Sheliadawn | F39: Gigi | G39: Tyrone | H39: 310 | I39: 298 | J39: 402 | K39: 336.6666667
E40: Sheliadawn | F40: Gigi | G40: Kip | H40: 310 | I40: 298 | J40: 370 | K40: 326
E41: Sheliadawn | F41: Tyrone | G41: Kip | H41: 310 | I41: 402 | J41: 370 | K41: 360.6666667
E42: Gigi | F42: Tyrone | G42: Kip | H42: 298 | I42: 402 | J42: 370 | K42: 356.6666667

Sheet Retrofit
B2: Sound Home Earthquake Retrofitting | H2: Sample Points and Relative Frequency
B3: Two steps for basic retrofit projects: Design and then Construction.
B4: Goal: The company needs to estimate the probability that it will take 1 month or less to complete a project.
B5: Past company records show these possibilities:
B6: Step 1: Design. Usually it takes 1 or 2 weeks to design | E6: n1 | F6: 2
B7: Step 2: Construction: Usually takes 2 to 4 weeks to complete | E7: n2 | F7: 3
E8: Total Sample Points:
B10: List all sample points?
H13: Variable of Interest and Relative Frequency
G22: Goal: | H22: P(<=4 weeks)
B24: Looking at the tree diagram it looks like 3 of the experimental outcomes match the 1 or fewer month requirement.
B25: But the manager does not think that each experimental outcome is equally likely. This is not a classical probability situation like flipping a coin or rolling dice.
B26: The manager thinks it would be best to look at past project records to determine probabilities.
B27: Past company records show this set of records for similar projects: | F27: Total Records = Total Sample Points:

Sheet Retrofit (an)
B2: Sound Home Earthquake Retrofitting | H2: Sample Points and Relative Frequency
B3: Two steps for basic retrofit projects: Design and then Construction.
B4: Goal: The company needs to estimate the probability that it will take 1 month or less to complete a project. | H4: Sample Point | I4: Frequency | J4: % Frequency
B5: Past company records show these possibilities: | H5: (1, 2) | I5: 6 | J5: 0.2
B6: Step 1: Design. Usually it takes 1 or 2 weeks to design | E6: n1 | F6: 2 | H6: (1, 3) | I6: 12 | J6: 0.4
B7: Step 2: Construction: Usually takes 2 to 4 weeks to complete | E7: n2 | F7: 3 | H7: (1, 4) | I7: 4 | J7: 0.1333333333
E8: Total Sample Points: | F8: =F7*F6 -> 6 | H8: (2, 2) | I8: 2 | J8: 0.06666666667
H9: (2, 3) | I9: 5 | J9: 0.1666666667
B10: List all sample points? | H10: (2, 4) | I10: 1 | J10: 0.03333333333
H11: Grand Total | I11: 30 | J11: 1
H13: Variable of Interest and Relative Frequency
H15: Total Weeks | I15: Frequency | J15: Probability
H16: 3 | I16: 6 | J16: 0.2
H17: 4 | I17: 14 | J17: 0.4666666667
H18: 5 | I18: 9 | J18: 0.3
H19: 6 | I19: 1 | J19: 0.03333333333
H20: Grand Total | I20: 30 | J20: 1
G22: Goal: | H22: P(<=4 weeks) | I22: =SUM(J5:J6,J8) -> 0.6666666667 | J22: =SUM(J16:J17) -> 0.6666666667
B24: Looking at the tree diagram it looks like 3 of the experimental outcomes match the 1 or fewer month requirement.
B25: But the manager does not think that each experimental outcome is equally likely. This is not a classical probability situation like flipping a coin or rolling dice.
B26: The manager thinks it would be best to look at past project records to determine probabilities.
B27: Past company records show this set of records for similar projects: | F27: Total Records = Total Sample Points:
B30: Date | C30: Project | D30: Design time (weeks) | E30: Construction time (weeks) | F30: Sample Point | G30: Total Weeks
B31: 2018-01-14 | C31: 2752 SW Seola Lane ,98146 | D31: 2 | E31: 3 | F31: ="("&'Retrofit (an)'!$D31&", "&'Retrofit (an)'!$E31&")" -> (2, 3) | G31: =SUM('Retrofit (an)'!$D31:$E31) -> 5
B32: 2018-02-08 | C32: 2157 62nd Avenue S ,98118 | D32: 1 | E32: 2 | F32: ="("&'Retrofit (an)'!$D32&", "&'Retrofit (an)'!$E32&")" -> (1, 2) | G32: =SUM('Retrofit (an)'!$D32:$E32) -> 3
B33: 2018-07-02 | C33: 8682 NE 80th Street ,98115 | D33: 1 | E33: 2 | F33: ="("&'Retrofit (an)'!$D33&", "&'Retrofit (an)'!$E33&")" -> (1, 2) | G33: =SUM('Retrofit (an)'!$D33:$E33) -> 3
B34: 2018-07-24 | C34: 2274 S Mount Baker Circle ,98144 | D34: 1 | E34: 2 | F34: ="("&'Retrofit (an)'!$D34&", "&'Retrofit (an)'!$E34&")" -> (1, 2) | G34: =SUM('Retrofit (an)'!$D34:$E34) -> 3
B35: 2018-08-26 | C35: 362 E McGraw Street ,98112 | D35: 1 | E35: 4 | F35: ="("&'Retrofit (an)'!$D35&", "&'Retrofit (an)'!$E35&")" -> (1, 4) | G35: =SUM('Retrofit (an)'!$D35:$E35) -> 5
B36: 2018-09-29 | C36: 8354 NW 191st Lane ,98177 | D36: 2 | E36: 3 | F36: ="("&'Retrofit (an)'!$D36&", "&'Retrofit (an)'!$E36&")" -> (2, 3) | G36: =SUM('Retrofit (an)'!$D36:$E36) -> 5
B37: 2018-11-10 | C37: 2216 E Galer Street ,98112 | D37: 1 | E37: 3 | F37: ="("&'Retrofit (an)'!$D37&", "&'Retrofit (an)'!$E37&")" -> (1, 3) | G37: =SUM('Retrofit (an)'!$D37:$E37) -> 4
B38: 2018-12-03 | C38: 5232 Terry Avenue N ,98109 | D38: 1 | E38: 2 | F38: ="("&'Retrofit (an)'!$D38&", "&'Retrofit (an)'!$E38&")" -> (1, 2) | G38: =SUM('Retrofit (an)'!$D38:$E38) -> 3
B39: 2019-01-22 | C39: 8402 26th Ct S ,98168 | D39: 1 | E39: 3 | F39: ="("&'Retrofit (an)'!$D39&", "&'Retrofit (an)'!$E39&")" -> (1, 3) | G39: =SUM('Retrofit (an)'!$D39:$E39) -> 4
B40: 2019-03-19 | C40: 8223 Lewis Pl SW ,98116 | D40: 2 | E40: 2 | F40: ="("&'Retrofit (an)'!$D40&", "&'Retrofit (an)'!$E40&")" -> (2, 2) | G40: =SUM('Retrofit (an)'!$D40:$E40) -> 4
B41: 2019-06-07 | C41: 3749 Princeton Avenue NE ,98115 | D41: 1 | E41: 3 | F41: ="("&'Retrofit (an)'!$D41&", "&'Retrofit (an)'!$E41&")" -> (1, 3) | G41: =SUM('Retrofit (an)'!$D41:$E41) -> 4
B42: 2019-06-19 | C42: 6428 N 178th Lane ,98133 | D42: 2 | E42: 3 | F42: ="("&'Retrofit (an)'!$D42&", "&'Retrofit (an)'!$E42&")" -> (2, 3) | G42: =SUM('Retrofit (an)'!$D42:$E42) -> 5
B43: 2019-11-08 | C43: 5846 Rockery Drive S ,98118 | D43: 1 | E43: 3 | F43: ="("&'Retrofit (an)'!$D43&", "&'Retrofit (an)'!$E43&")" -> (1, 3) | G43: =SUM('Retrofit (an)'!$D43:$E43) -> 4
B44: 2019-11-13 | C44: 9739 SW Heinze Way ,98136 | D44: 1 | E44: 3 | F44: ="("&'Retrofit (an)'!$D44&", "&'Retrofit (an)'!$E44&")" -> (1, 3) | G44: =SUM('Retrofit (an)'!$D44:$E44) -> 4
B45: 2020-01-25 | C45: 4168 S 234th Street ,98198 | D45: 1 | E45: 3 | F45: ="("&'Retrofit (an)'!$D45&", "&'Retrofit (an)'!$E45&")" -> (1, 3) | G45: =SUM('Retrofit (an)'!$D45:$E45) -> 4
B46: 2020-01-26 | C46: 972 5th Pl S ,98168 | D46: 1 | E46: 2 | F46: ="("&'Retrofit (an)'!$D46&", "&'Retrofit (an)'!$E46&")" -> (1, 2) | G46: =SUM('Retrofit (an)'!$D46:$E46) -> 3
B47: 2020-03-22 | C47: 1203 7th Pl S ,98148 | D47: 1 | E47: 4 | F47: ="("&'Retrofit (an)'!$D47&", "&'Retrofit (an)'!$E47&")" -> (1, 4) | G47: =SUM('Retrofit (an)'!$D47:$E47) -> 5
B48: 2020-04-06 | C48: 7216 SW 102nd Lane ,98146 | D48: 2 | E48: 3 | F48: ="("&'Retrofit (an)'!$D48&", "&'Retrofit (an)'!$E48&")" -> (2, 3) | G48: =SUM('Retrofit (an)'!$D48:$E48) -> 5
B49: 2020-05-13 | C49: 3291 S Stevens Street ,98144 | D49: 1 | E49: 3 | F49: ="("&'Retrofit (an)'!$D49&", "&'Retrofit (an)'!$E49&")" -> (1, 3) | G49: =SUM('Retrofit (an)'!$D49:$E49) -> 4
B50: 2020-06-10 | C50: 3688 39th Avenue S ,98144 | D50: 1 | E50: 2 | F50: ="("&'Retrofit (an)'!$D50&", "&'Retrofit (an)'!$E50&")" -> (1, 2) | G50: =SUM('Retrofit (an)'!$D50:$E50) -> 3
B51: 2020-06-16 | C51: 9674 34th Lane S ,98188 | D51: 2 | E51: 4 | F51: ="("&'Retrofit (an)'!$D51&", "&'Retrofit (an)'!$E51&")" -> (2, 4) | G51: =SUM('Retrofit (an)'!$D51:$E51) -> 6
B52: 2020-08-09 | C52: 2542 1st Avenue SW ,98146 | D52: 1 | E52: 3 | F52: ="("&'Retrofit (an)'!$D52&", "&'Retrofit (an)'!$E52&")" -> (1, 3) | G52: =SUM('Retrofit (an)'!$D52:$E52) -> 4
B53: 2020-09-07 | C53: 7258 N 194th Street ,98133 | D53: 2 | E53: 3 | F53: ="("&'Retrofit (an)'!$D53&", "&'Retrofit (an)'!$E53&")" -> (2, 3) | G53: =SUM('Retrofit (an)'!$D53:$E53) -> 5
B54: 2020-09-14 | C54: 2573 W Cramer Street ,98199 | D54: 1 | E54: 4 | F54: ="("&'Retrofit (an)'!$D54&", "&'Retrofit (an)'!$E54&")" -> (1, 4) | G54: =SUM('Retrofit (an)'!$D54:$E54) -> 5
B55: 2021-02-20 | C55: 1540 Maiden Lane E ,98112 | D55: 1 | E55: 3 | F55: ="("&'Retrofit (an)'!$D55&", "&'Retrofit (an)'!$E55&")" -> (1, 3) | G55: =SUM('Retrofit (an)'!$D55:$E55) -> 4
B56: 2021-03-07 | C56: 3391 S 180th Place ,98188 | D56: 1 | E56: 3 | F56: ="("&'Retrofit (an)'!$D56&", "&'Retrofit (an)'!$E56&")" -> (1, 3) | G56: =SUM('Retrofit (an)'!$D56:$E56) -> 4
B57: 2021-03-25 | C57: 9172 64th Avenue SW ,98116 | D57: 1 | E57: 3 | F57: ="("&'Retrofit (an)'!$D57&", "&'Retrofit (an)'!$E57&")" -> (1, 3) | G57: =SUM('Retrofit (an)'!$D57:$E57) -> 4
B58: 2021-05-01 | C58: 5367 Meridian Ct N ,98133 | D58: 1 | E58: 4 | F58: ="("&'Retrofit (an)'!$D58&", "&'Retrofit (an)'!$E58&")" -> (1, 4) | G58: =SUM('Retrofit (an)'!$D58:$E58) -> 5
B59: 2021-05-18 | C59: 2220 N 102nd Street ,98133 | D59: 1 | E59: 3 | F59: ="("&'Retrofit (an)'!$D59&", "&'Retrofit (an)'!$E59&")" -> (1, 3) | G59: =SUM('Retrofit (an)'!$D59:$E59) -> 4
B60: 2021-08-31 | C60: 5597 32nd Avenue ,98122 | D60: 2 | E60: 2 | F60: ="("&'Retrofit (an)'!$D60&", "&'Retrofit (an)'!$E60&")" -> (2, 2) | G60: =SUM('Retrofit (an)'!$D60:$E60) -> 4

Sheet V(17)
B2: Logical Tests Used for Counting Sample Points | G2: Name | H2: HairColor | I2: EyeColor
G3: Sioux | H3: Brown | I3: Hazel
B4: Event Black Hair | G4: Chin | H4: Black | I4: Blue
G5: Shelia | H5: Black | I5: Brown
G6: Gigi | H6: Brown | I6: Hazel
G7: Tyrone | H7: Black | I7: Brown
G8: Lin | H8: Blond | I8: Brown
G9: Ducky | H9: Brown | I9: Brown
G10: Kip | H10: Brown | I10: Hazel
B11: Event Brown Hair | G11: Linda | H11: Red | I11: Blue
G12: Jo | H12: Pink | I12: Green
G13: Total Records:
F15: 1) Single Condition Logical Test: Equal to Brown Hair
F16: Condition | G16: Brown
F17: Count | H17: =_xlfn.IFNA(_xlfn.FORMULATEXT(G17),"") -> 
B19: Event NOT Brown Hair | F19: ="P("&G16&")" -> P(Brown) | H19: =_xlfn.IFNA(_xlfn.FORMULATEXT(G19),"") -> 
F20: 2) Not Logical Test: NOT Brown Hair
F21: Condition | G21: =G16 -> Brown
F22: Count | H22: =_xlfn.IFNA(_xlfn.FORMULATEXT(G22),"") -> 
F24: ="P(NOT "&LEFT($G$16,2)&".)" -> P(NOT Br.) | H24: =_xlfn.IFNA(_xlfn.FORMULATEXT(G24),"") -> 
F25: Complement Rule: If P(B), then P(Not B) = 1 - P(B)
F26: ="P(NOT "&LEFT($G$16,2)&".)" -> P(NOT Br.) | H26: =IF(ISBLANK(G26),""," 1-"&G19) -> 
B27: Event Brown Hair OR Black Hair
F28: 3a) OR Logical Test for Mutually Exclusive Events (One Column):
F29: Brown Hair OR Black Hair | P29: Best version if you have many OR conditions:
F30: Condition | G30: Brown | L30: Name | M30: Hair Color | N30: Eye Color | P30: Alternatives:
F31: Condition | G31: Black | L31: Sioux | M31: Brown | N31: Hazel | P31: Brown Hair OR Hazel Eyes
F32: Count | L32: Chin | M32: Black | N32: Blue | P32: Condition | Q32: Brown | R32: Hair
F33: =_xlfn.IFNA(_xlfn.FORMULATEXT(G32),"") ->  | L33: Shelia | M33: Black | N33: Brown | P33: Condition | Q33: Hazel | R33: Eyes
F34: Count | L34: Gigi | M34: Brown | N34: Hazel | P34: Count | Q34: =ROWS(_xlfn._xlws.FILTER(M31:M40,ISNUMBER(_xlfn.XMATCH(M31:M40,Q32:Q33)))) -> 4
B35: Event Brown Hair OR Hazel Eyes | F35: =_xlfn.IFNA(_xlfn.FORMULATEXT(G34),"") ->  | L35: Tyrone | M35: Black | N35: Brown | P35: =_xlfn.IFNA(_xlfn.FORMULATEXT(Q34),"") -> =ROWS(FILTER(M31:M40,ISNUMBER(XMATCH(M31:M40,Q32:Q33))))
L36: Lin | M36: Blond | N36: Brown
F37: 3b) OR Logical Test for Events that are not Mutually Exclusive | L37: Ducky | M37: Brown | N37: Brown | P37: Alternatives:
F38: Brown Hair OR Hazel Eyes | I38: (Two Columns): | L38: Kip | M38: Brown | N38: Hazel | P38: Brown Hair OR Hazel Eyes
F39: Condition | G39: Brown | H39: Hair | L39: Linda | M39: Red | N39: Blue | P39: Condition | Q39: Brown | R39: Hair
F40: Condition | G40: Hazel | H40: Eyes | L40: Jo | M40: Pink | N40: Green | P40: Condition | Q40: Hazel | R40: Eyes
F41: Count | L41: Total Records: | N41: =ROWS(L31:N40) -> 10 | P41: Count | Q41: =SUM(--((M31:M40=G39)+(N31:N40=G40)>0)) -> 4
F42: =_xlfn.IFNA(_xlfn.FORMULATEXT(G41),"") ->  | P42: =_xlfn.IFNA(_xlfn.FORMULATEXT(Q41),"") -> =SUM(--((M31:M40=G39)+(N31:N40=G40)>0))
B43: Event Brown Hair AND Hazel Eyes | F43: Count
F44: =_xlfn.IFNA(_xlfn.FORMULATEXT(G43),"") ->  | P44: Alternatives:
E45: =_xlfn.IFNA(_xlfn.FORMULATEXT(G46),"") ->  | P45: Brown Hair OR Hazel Eyes
F46: 4) AND Logical Test: Brown Hair AND Hazel Eyes | P46: Condition | Q46: Brown | R46: Hair
F47: Condition | G47: Brown | H47: Hair | P47: Condition | Q47: Hazel | R47: Eyes
F48: Condition | G48: Hazel | H48: Eyes | P48: Count | Q48: =SUM(IF((M31:M40=G39)+(N31:N40=G40),1)) -> 4
F49: Count | P49: =_xlfn.IFNA(_xlfn.FORMULATEXT(Q48),"") -> =SUM(IF((M31:M40=G39)+(N31:N40=G40),1))
F50: =_xlfn.IFNA(_xlfn.FORMULATEXT(G49),"") -> 
B53: Logical Tests Used for Filtering Sample Points | G53: Name | H53: HairColor | I53: EyeColor
B54: We can use the FILTER array function to filter a data set | G54: Sioux | H54: Brown | I54: Hazel
B55: in order to see specified sample points. | G55: Chin | H55: Black | I55: Blue
G56: Shelia | H56: Black | I56: Brown
B57: FILTER(ArrayToFilter,LogicalTestArray) | G57: Gigi | H57: Brown | I57: Hazel
B58: ArrayToFilter & LogicalTestArray must be same size. | G58: Tyrone | H58: Black | I58: Brown
B59: OR Logical Test uses + in direct array operation. | G59: Lin | H59: Blond | I59: Brown
B60: AND Logical Test uses * in direct array operation. | G60: Ducky | H60: Brown | I60: Brown
B61: TRUE or any non-zero number = TRUE. | G61: Kip | H61: Brown | I61: Hazel
B62: FALSE or 0 = FALSE. | G62: Linda | H62: Red | I62: Blue
G63: Jo | H63: Pink | I63: Green
G64: Total Records:
B65: Event Brown Hair
F66: 1) Single Condition Logical Test: Equal to Brown Hair
F67: Condition | G67: Brown | H67: Matching Rows:
E69: =_xlfn.IFNA(_xlfn.FORMULATEXT(I68),"") -> 
B73: Event Brown Hair OR Black Hair | F73: 3a) OR Logical Test for Mutually Exclusive Events (One Column):
F74: Brown Hair OR Black Hair
F75: Condition | G75: Brown | H75: Matching Rows:
F76: Condition | G76: Black
F78: =_xlfn.IFNA(_xlfn.FORMULATEXT(I76),"") -> 
B81: Event Brown Hair OR Hazel Eyes
F84: 3b) OR Logical Test for Events that are not Mutually Exclusive
I85: (Two Columns):
F86: Brown Hair OR Hazel Eyes
F87: Condition | G87: Brown | H87: Hair | I87: Matching Rows:
F88: Condition | G88: Hazel | H88: Eyes
F90: =_xlfn.IFNA(_xlfn.FORMULATEXT(I88),"") -> 
F93: 4) AND Logical Test: Brown Hair AND Hazel Eyes
B94: Event Brown Hair AND Hazel Eyes | F94: Condition | G94: Brown | H94: Hair | I94: Matching Rows:
F95: Condition | G95: Hazel | H95: Eyes
E96: =_xlfn.IFNA(_xlfn.FORMULATEXT(G98),"") -> 
F97: =_xlfn.IFNA(_xlfn.FORMULATEXT(I95),"") -> 

Sheet V(17an)
B2: Logical Tests Used for Counting Sample Points | G2: Name | H2: HairColor | I2: EyeColor
G3: Sioux | H3: Brown | I3: Hazel
B4: Event Black Hair | G4: Chin | H4: Black | I4: Blue
G5: Shelia | H5: Black | I5: Brown
G6: Gigi | H6: Brown | I6: Hazel
G7: Tyrone | H7: Black | I7: Brown
G8: Lin | H8: Blond | I8: Brown
G9: Ducky | H9: Brown | I9: Brown
G10: Kip | H10: Brown | I10: Hazel
B11: Event Brown Hair | G11: Linda | H11: Red | I11: Blue
G12: Jo | H12: Pink | I12: Green
G13: Total Records: | I13: =ROWS(G3:I12) -> 10
F15: 1) Single Condition Logical Test: Equal to Brown Hair
F16: Condition | G16: Brown
F17: Count | G17: =COUNTIFS(H3:H12,G16) -> 4 | H17: =_xlfn.IFNA(_xlfn.FORMULATEXT(G17),"") -> =COUNTIFS(H3:H12,G16)
B19: Event NOT Brown Hair | F19: ="P("&G16&")" -> P(Brown) | G19: =G17/I13 -> 0.4 | H19: =_xlfn.IFNA(_xlfn.FORMULATEXT(G19),"") -> =G17/I13
F20: 2) Not Logical Test: NOT Brown Hair
F21: Condition | G21: =G16 -> Brown
F22: Count | G22: =COUNTIFS(H3:H12,"<>"&G21) -> 6 | H22: =_xlfn.IFNA(_xlfn.FORMULATEXT(G22),"") -> =COUNTIFS(H3:H12,"<>"&G21)
F24: ="P(NOT "&LEFT($G$16,2)&".)" -> P(NOT Br.) | G24: =G22/I13 -> 0.6 | H24: =_xlfn.IFNA(_xlfn.FORMULATEXT(G24),"") -> =G22/I13
F25: Complement Rule: If P(B), then P(Not B) = 1 - P(B)
F26: ="P(NOT "&LEFT($G$16,2)&".)" -> P(NOT Br.) | G26: =1-G19 -> 0.6 | H26: =IF(ISBLANK(G26),""," 1-"&G19) -> 1-0.4
B27: Event Brown Hair OR Black Hair
F28: 3a) OR Logical Test for Mutually Exclusive Events (One Column):
F29: Brown Hair OR Black Hair | P29: Best version if you have many OR conditions:
F30: Condition | G30: Brown | L30: Name | M30: Hair Color | N30: Eye Color | P30: Alternatives:
F31: Condition | G31: Black | L31: Sioux | M31: Brown | N31: Hazel | P31: Brown Hair OR Hazel Eyes
F32: Count | G32: =ROWS(_xlfn._xlws.FILTER(M31:M40,(M31:M40=G30)+(M31:M40=G31))) -> 7 | L32: Chin | M32: Black | N32: Blue | P32: Condition | Q32: Brown | R32: Hair
F33: =_xlfn.IFNA(_xlfn.FORMULATEXT(G32),"") -> =ROWS(FILTER(M31:M40,(M31:M40=G30)+(M31:M40=G31))) | L33: Shelia | M33: Black | N33: Brown | P33: Condition | Q33: Hazel | R33: Eyes
F34: Count | G34: =COUNTIFS(M31:M40,G30)+COUNTIFS(M31:M40,G31) -> 7 | L34: Gigi | M34: Brown | N34: Hazel | P34: Count | Q34: =ROWS(_xlfn._xlws.FILTER(M31:M40,ISNUMBER(_xlfn.XMATCH(M31:M40,Q32:Q33)))) -> 4
B35: Event Brown Hair OR Hazel Eyes | F35: =_xlfn.IFNA(_xlfn.FORMULATEXT(G34),"") -> =COUNTIFS(M31:M40,G30)+COUNTIFS(M31:M40,G31) | L35: Tyrone | M35: Black | N35: Brown | P35: =_xlfn.IFNA(_xlfn.FORMULATEXT(Q34),"") -> =ROWS(FILTER(M31:M40,ISNUMBER(XMATCH(M31:M40,Q32:Q33))))
L36: Lin | M36: Blond | N36: Brown
F37: 3b) OR Logical Test for Events that are not Mutually Exclusive | L37: Ducky | M37: Brown | N37: Brown | P37: Alternatives:
F38: Brown Hair OR Hazel Eyes | I38: (Two Columns): | L38: Kip | M38: Brown | N38: Hazel | P38: Brown Hair OR Hazel Eyes
F39: Condition | G39: Brown | H39: Hair | L39: Linda | M39: Red | N39: Blue | P39: Condition | Q39: Brown | R39: Hair
F40: Condition | G40: Hazel | H40: Eyes | L40: Jo | M40: Pink | N40: Green | P40: Condition | Q40: Hazel | R40: Eyes
F41: Count | G41: =ROWS(_xlfn._xlws.FILTER(M31:N40,(M31:M40=G39)+(N31:N40=G40))) -> 4 | L41: Total Records: | N41: =ROWS(L31:N40) -> 10 | P41: Count | Q41: =SUM(--((M31:M40=G39)+(N31:N40=G40)>0)) -> 4
F42: =_xlfn.IFNA(_xlfn.FORMULATEXT(G41),"") -> =ROWS(FILTER(M31:N40,(M31:M40=G39)+(N31:N40=G40))) | P42: =_xlfn.IFNA(_xlfn.FORMULATEXT(Q41),"") -> =SUM(--((M31:M40=G39)+(N31:N40=G40)>0))
B43: Event Brown Hair AND Hazel Eyes | F43: Count | G43: =COUNTIFS(M31:M40,G39)+COUNTIFS(N31:N40,G40)-COUNTIFS(M31:M40,G39,N31:N40,G40) -> 4
F44: =_xlfn.IFNA(_xlfn.FORMULATEXT(G43),"") -> =COUNTIFS(M31:M40,G39)+COUNTIFS(N31:N40,G40)-COUNTIFS(M31:M40,G39,N31:N40,G40) | P44: Alternatives:
E45: =_xlfn.IFNA(_xlfn.FORMULATEXT(G46),"") ->  | P45: Brown Hair OR Hazel Eyes
F46: 4) AND Logical Test: Brown Hair AND Hazel Eyes | P46: Condition | Q46: Brown | R46: Hair
F47: Condition | G47: Brown | H47: Hair | P47: Condition | Q47: Hazel | R47: Eyes
F48: Condition | G48: Hazel | H48: Eyes | P48: Count | Q48: =SUM(IF((M31:M40=G39)+(N31:N40=G40),1)) -> 4
F49: Count | G49: =COUNTIFS(M31:M40,G47,N31:N40,G48) -> 3 | P49: =_xlfn.IFNA(_xlfn.FORMULATEXT(Q48),"") -> =SUM(IF((M31:M40=G39)+(N31:N40=G40),1))
F50: =_xlfn.IFNA(_xlfn.FORMULATEXT(G49),"") -> =COUNTIFS(M31:M40,G47,N31:N40,G48)
B53: Logical Tests Used for Filtering Sample Points | G53: Name | H53: HairColor | I53: EyeColor
B54: We can use the FILTER array function to filter a data set | G54: Sioux | H54: Brown | I54: Hazel
B55: in order to see specified sample points. | G55: Chin | H55: Black | I55: Blue
G56: Shelia | H56: Black | I56: Brown
B57: FILTER(ArrayToFilter,LogicalTestArray) | G57: Gigi | H57: Brown | I57: Hazel
B58: ArrayToFilter & LogicalTestArray must be same size. | G58: Tyrone | H58: Black | I58: Brown
B59: OR Logical Test uses + in direct array operation. | G59: Lin | H59: Blond | I59: Brown
B60: AND Logical Test uses * in direct array operation. | G60: Ducky | H60: Brown | I60: Brown
B61: TRUE or any non-zero number = TRUE. | G61: Kip | H61: Brown | I61: Hazel
B62: FALSE or 0 = FALSE. | G62: Linda | H62: Red | I62: Blue
G63: Jo | H63: Pink | I63: Green
G64: Total Records: | I64: =ROWS(G54:I63) -> 10
B65: Event Brown Hair
F66: 1) Single Condition Logical Test: Equal to Brown Hair
F67: Condition | G67: Brown | H67: Matching Rows:
I68: =_xlfn._xlws.FILTER(H54:H63,H54:H63=G67,"NA") -> Brown
E69: =_xlfn.IFNA(_xlfn.FORMULATEXT(I68),"") -> =FILTER(H54:H63,H54:H63=G67,"NA") | I69: Brown
I70: Brown
I71: Brown
B73: Event Brown Hair OR Black Hair | F73: 3a) OR Logical Test for Mutually Exclusive Events (One Column):
F74: Brown Hair OR Black Hair
F75: Condition | G75: Brown | H75: Matching Rows:
F76: Condition | G76: Black | I76: =_xlfn._xlws.FILTER(H54:H63,(H54:H63=G75)+(H54:H63=G76)) -> Brown
I77: Black
F78: =_xlfn.IFNA(_xlfn.FORMULATEXT(I76),"") -> =FILTER(H54:H63,(H54:H63=G75)+(H54:H63=G76)) | I78: Black
I79: Brown
I80: Black
B81: Event Brown Hair OR Hazel Eyes | I81: Brown
I82: Brown
F84: 3b) OR Logical Test for Events that are not Mutually Exclusive
I85: (Two Columns):
F86: Brown Hair OR Hazel Eyes
F87: Condition | G87: Brown | H87: Hair | I87: Matching Rows:
F88: Condition | G88: Hazel | H88: Eyes | I88: =_xlfn._xlws.FILTER(H54:I63,(H54:H63=G87)+(I54:I63=G88)) -> Brown | J88: Hazel
I89: Brown | J89: Hazel
F90: =_xlfn.IFNA(_xlfn.FORMULATEXT(I88),"") -> =FILTER(H54:I63,(H54:H63=G87)+(I54:I63=G88)) | I90: Brown | J90: Brown
I91: Brown | J91: Hazel
F93: 4) AND Logical Test: Brown Hair AND Hazel Eyes
B94: Event Brown Hair AND Hazel Eyes | F94: Condition | G94: Brown | H94: Hair | I94: Matching Rows:
F95: Condition | G95: Hazel | H95: Eyes | I95: =_xlfn._xlws.FILTER(H54:I63,(H54:H63=G87)*(I54:I63=G88)) -> Brown | J95: Hazel
E96: =_xlfn.IFNA(_xlfn.FORMULATEXT(G98),"") ->  | I96: Brown | J96: Hazel
F97: =_xlfn.IFNA(_xlfn.FORMULATEXT(I95),"") -> =FILTER(H54:I63,(H54:H63=G87)*(I54:I63=G88)) | I97: Brown | J97: Hazel

Sheet V(18)
B2: Using the Addition Law of Probability
B3: Mutually Exclusive Events: P(A OR B) = P(A) + P(B).
B4: Events that are NOT Mutually Exclusive: P(A OR B) = P(A) + P(B) - P(A AND B).
I5: SN | J5: PPM
B6: 4 examples of calculating the probability for an OR Logical Test: | I6: Space | J6: Pike's
B7: 1) From Data Set | H7: Visitor | I7: Needle | J7: Place Market
B8: 2) From Frequency Distribution | H8: 1 | I8: Yes | J8: Yes
B9: 3) From Cross Tabulated Report | H9: 2 | I9: No | J9: Yes
B10: 4) From Pre-determined Probabilities | H10: 3 | I10: No | J10: Yes
H11: 4 | I11: No | J11: No
B12: 1) From Data Set for visitors to Seattle | H12: 5 | I12: Yes | J12: Yes
B13: For a randomly selected Seattle visitor calculate the probability | H13: 6 | I13: Yes | J13: Yes
B14: that they visited the SN or PPM. | H14: 7 | I14: No | J14: No
C15: Condition | D15: Yes | E15: from Space Needle field | H15: 8 | I15: Yes | J15: No
C16: Count | E16: =_xlfn.IFNA(_xlfn.FORMULATEXT(D16),"") ->  | H16: 9 | I16: No | J16: Yes
C17: Condition | D17: Yes | E17: from Pike's Place field | H17: 10 | I17: Yes | J17: Yes
C18: Count | E18: =_xlfn.IFNA(_xlfn.FORMULATEXT(D18),"") ->  | H18: Total Records | J18: =ROWS(PPM) -> 10
C19: Condition | D19: Yes | E19: Visited both sites (AND)
C20: Count | E20: =_xlfn.IFNA(_xlfn.FORMULATEXT(D20),"") -> 
B21: P(SN OR PPM) | E21: =IF(ISBLANK(D21),""," ("&D16&"+"&D18&"-"&D20&")/"&J18) -> 
B22: P(SN OR PPM) | E22: =_xlfn.IFNA(_xlfn.FORMULATEXT(D22),"") -> 
B24: 2) From Frequency Distribution with Mutually Exclusive Categories | I24: Arrival | J24: Frequency
B25: For a randomly selected Delta Airline Passenger calculate the | I25: Early | J25: 100
B26: following probabilities: | I26: On Time | J26: 794
B27: P(Early OR On Time) | E27: =IF(ISBLANK(D27),""," ("&J25&"+"&J26&")/"&J29) ->  | I27: Late | J27: 81
B28: P(Cancelled) | E28: =IF(ISBLANK(D28),""," "&J28&"/"&J29) ->  | I28: Canceled | J28: 25
B29: P(Not Cancelled) | E29: =IF(ISBLANK(D29),""," 1-"&D28) ->  | I29: Grand Total | J29: 1000
B31: 3) From Cross Tabulated Report created from the visitors to Seattle data set
B32: For a randomly selected Seattle visitor calculate the probability
B33: that they visited the SN or PPM. | G33: Frequency | H33: Pike's Place M.
G34: Space N. | H34: =TRANSPOSE(_xlfn._xlws.SORT(_xlfn.UNIQUE(J8:J17))) -> No | I34: Yes | J34: Totals
B35: P(SN OR PPM) | G35: =_xlfn._xlws.SORT(_xlfn.UNIQUE(I8:I17)) -> No | H35: =COUNTIFS(I8:I17,G35:G36,J8:J17,H34:I34) -> 2 | I35: 3 | J35: =SUM(H35:I35) -> 5
D36: =IF(ISBLANK(D35),""," ("&J36&"+"&I37&"-"&I36&")/"&J37) ->  | G36: Yes | H36: 1 | I36: 4 | J36: =SUM(H36:I36) -> 5
G37: Totals | H37: =SUM(H35:H36) -> 3 | I37: =SUM(I35:I36) -> 7 | J37: =SUM(H37:I37) -> 10
B38: 4) From Pre-determined Probabilities
B39: For a randomly selected Seattle visitor calculate the probability
B40: that they visited the SN or PPM.
B41: P(SN) | D41: 0.5
B42: P(PPM) | D42: 0.7
B43: P(SS AND PPM) | D43: 0.4
B44: P(SN OR PPM) | F44: =IF(ISBLANK(E44),""," "&D41&"+"&D42&"-"&D43) -> 
B45: OR might be shown as: P(At least 1 site), or, P(1 or more sites)

Sheet V(18an)
B2: Using the Addition Law of Probability
B3: Mutually Exclusive Events: P(A OR B) = P(A) + P(B).
B4: Events that are NOT Mutually Exclusive: P(A OR B) = P(A) + P(B) - P(A AND B).
I5: SN | J5: PPM
B6: 4 examples of calculating the probability for an OR Logical Test: | I6: Space | J6: Pike's
B7: 1) From Data Set | H7: Visitor | I7: Needle | J7: Place Market
B8: 2) From Frequency Distribution | H8: 1 | I8: Yes | J8: Yes
B9: 3) From Cross Tabulated Report | H9: 2 | I9: No | J9: Yes
B10: 4) From Pre-determined Probabilities | H10: 3 | I10: No | J10: Yes
H11: 4 | I11: No | J11: No
B12: 1) From Data Set for visitors to Seattle | H12: 5 | I12: Yes | J12: Yes
B13: For a randomly selected Seattle visitor calculate the probability | H13: 6 | I13: Yes | J13: Yes
B14: that they visited the SN or PPM. | H14: 7 | I14: No | J14: No
C15: Condition | D15: Yes | E15: from Space Needle field | H15: 8 | I15: Yes | J15: No
C16: Count | D16: =COUNTIFS(I8:I17,D15) -> 5 | E16: =_xlfn.IFNA(_xlfn.FORMULATEXT(D16),"") -> =COUNTIFS(I8:I17,D15) | H16: 9 | I16: No | J16: Yes
C17: Condition | D17: Yes | E17: from Pike's Place field | H17: 10 | I17: Yes | J17: Yes
C18: Count | D18: =COUNTIFS(J8:J17,D17) -> 7 | E18: =_xlfn.IFNA(_xlfn.FORMULATEXT(D18),"") -> =COUNTIFS(J8:J17,D17) | H18: Total Records | J18: =ROWS(PPM) -> 10
C19: Condition | D19: Yes | E19: Visited both sites (AND)
C20: Count | D20: =COUNTIFS(I8:I17,D19,J8:J17,D19) -> 4 | E20: =_xlfn.IFNA(_xlfn.FORMULATEXT(D20),"") -> =COUNTIFS(I8:I17,D19,J8:J17,D19)
B21: P(SN OR PPM) | D21: =(D16+D18-D20)/J18 -> 0.8 | E21: =IF(ISBLANK(D21),""," ("&D16&"+"&D18&"-"&D20&")/"&J18) -> (5+7-4)/10
B22: P(SN OR PPM) | D22: =ROWS(_xlfn._xlws.FILTER(H8:H17,(I8:I17=D19)+(J8:J17=D19)))/J18 -> 0.8 | E22: =_xlfn.IFNA(_xlfn.FORMULATEXT(D22),"") -> =ROWS(FILTER(H8:H17,(I8:I17=D19)+(J8:J17=D19)))/J18
B24: 2) From Frequency Distribution with Mutually Exclusive Categories | I24: Arrival | J24: Frequency
B25: For a randomly selected Delta Airline Passenger calculate the | I25: Early | J25: 100
B26: following probabilities: | I26: On Time | J26: 794
B27: P(Early OR On Time) | D27: =(J25+J26)/J29 -> 0.894 | E27: =IF(ISBLANK(D27),""," ("&J25&"+"&J26&")/"&J29) -> (100+794)/1000 | I27: Late | J27: 81
B28: P(Cancelled) | D28: =J28/J29 -> 0.025 | E28: =IF(ISBLANK(D28),""," "&J28&"/"&J29) -> 25/1000 | I28: Canceled | J28: 25
B29: P(Not Cancelled) | D29: =1-D28 -> 0.975 | E29: =IF(ISBLANK(D29),""," 1-"&D28) -> 1-0.025 | I29: Grand Total | J29: 1000
B31: 3) From Cross Tabulated Report created from the visitors to Seattle data set
B32: For a randomly selected Seattle visitor calculate the probability
B33: that they visited the SN or PPM. | G33: Frequency | H33: Pike's Place M.
G34: Space N. | H34: =TRANSPOSE(_xlfn._xlws.SORT(_xlfn.UNIQUE(J8:J17))) -> No | I34: Yes | J34: Totals
B35: P(SN OR PPM) | D35: =(J36+I37-I36)/J37 -> 0.8 | G35: =_xlfn._xlws.SORT(_xlfn.UNIQUE(I8:I17)) -> No | H35: =COUNTIFS(I8:I17,G35:G36,J8:J17,H34:I34) -> 2 | I35: 3 | J35: =SUM(H35:I35) -> 5
D36: =IF(ISBLANK(D35),""," ("&J36&"+"&I37&"-"&I36&")/"&J37) -> (5+7-4)/10 | G36: Yes | H36: 1 | I36: 4 | J36: =SUM(H36:I36) -> 5
G37: Totals | H37: =SUM(H35:H36) -> 3 | I37: =SUM(I35:I36) -> 7 | J37: =SUM(H37:I37) -> 10
B38: 4) From Pre-determined Probabilities
B39: For a randomly selected Seattle visitor calculate the probability
B40: that they visited the SN or PPM.
B41: P(SN) | D41: 0.5
B42: P(PPM) | D42: 0.7
B43: P(SS AND PPM) | D43: 0.4
B44: P(SN OR PPM) | E44: =D41+D42-D43 -> 0.8 | F44: =IF(ISBLANK(E44),""," "&D41&"+"&D42&"-"&D43) -> 0.5+0.7-0.4
B45: OR might be shown as: P(At least 1 site), or, P(1 or more sites)

Sheet Seattle(1)
AL1: Creat Table:
B2: Travel survey of people who visit Seattle
AL3: Visitor | AM3: Visit Space Needle? | AN3: Visit Pike's Place Market? | AO3: Visit Alki Beach?
B4: Visitor | C4: Visit Space Needle? | D4: Visit Pike's Place Market? | L4: P(Space Needle) | O4: =_xlfn.IFNA(_xlfn.FORMULATEXT(M4),"") ->  | AL4: ="Visitor "&_xlfn.SEQUENCE(200) -> Visitor 1 | AM4: =IF(_xlfn.SEQUENCE(200)<=45+45,"Yes","No") -> Yes | AN4: =IF(_xlfn.SEQUENCE(200)<=65+65,"Yes","No") -> Yes | AO4: =IF(_xlfn.SEQUENCE(200)<=25+35,"Yes","No") -> Yes
B5: Visitor 1 | C5: Yes | D5: Yes | L5: P(Pike's Place Market) | O5: =_xlfn.IFNA(_xlfn.FORMULATEXT(M5),"") ->  | AL5: Visitor 2 | AM5: Yes | AN5: Yes | AO5: Yes
B6: Visitor 2 | C6: No | D6: No | L6: P(Space Needle AND Pike's Place Market) | O6: =_xlfn.IFNA(_xlfn.FORMULATEXT(M6),"") ->  | AL6: Visitor 3 | AM6: Yes | AN6: Yes | AO6: Yes
B7: Visitor 3 | C7: Yes | D7: Yes | L7: P(Space Needle OR Pike's Place Market) | O7: =_xlfn.IFNA(_xlfn.FORMULATEXT(M7),"") ->  | AL7: Visitor 4 | AM7: Yes | AN7: Yes | AO7: Yes
B8: Visitor 4 | C8: Yes | D8: Yes | L8: =_xlfn.IFNA(_xlfn.FORMULATEXT(H8),"") ->  | AL8: Visitor 5 | AM8: Yes | AN8: Yes | AO8: Yes
B9: Visitor 5 | C9: Yes | D9: Yes | AL9: Visitor 6 | AM9: Yes | AN9: Yes | AO9: Yes
B10: Visitor 6 | C10: Yes | D10: No | AL10: Visitor 7 | AM10: Yes | AN10: Yes | AO10: Yes
B11: Visitor 7 | C11: No | D11: Yes | AL11: Visitor 8 | AM11: Yes | AN11: Yes | AO11: Yes
B12: Visitor 8 | C12: Yes | D12: Yes | AL12: Visitor 9 | AM12: Yes | AN12: Yes | AO12: Yes
B13: Visitor 9 | C13: Yes | D13: Yes | AL13: Visitor 10 | AM13: Yes | AN13: Yes | AO13: Yes
B14: Visitor 10 | C14: No | D14: Yes | AL14: Visitor 11 | AM14: Yes | AN14: Yes | AO14: Yes
B15: Visitor 11 | C15: No | D15: Yes | AL15: Visitor 12 | AM15: Yes | AN15: Yes | AO15: Yes
B16: Visitor 12 | C16: No | D16: Yes | AL16: Visitor 13 | AM16: Yes | AN16: Yes | AO16: Yes
B17: Visitor 13 | C17: Yes | D17: Yes | AL17: Visitor 14 | AM17: Yes | AN17: Yes | AO17: Yes
B18: Visitor 14 | C18: No | D18: Yes | AL18: Visitor 15 | AM18: Yes | AN18: Yes | AO18: Yes
B19: Visitor 15 | C19: Yes | D19: Yes | AL19: Visitor 16 | AM19: Yes | AN19: Yes | AO19: Yes
B20: Visitor 16 | C20: Yes | D20: Yes | AL20: Visitor 17 | AM20: Yes | AN20: Yes | AO20: Yes
B21: Visitor 17 | C21: Yes | D21: Yes | AL21: Visitor 18 | AM21: Yes | AN21: Yes | AO21: Yes
B22: Visitor 18 | C22: No | D22: No | AL22: Visitor 19 | AM22: Yes | AN22: Yes | AO22: Yes
B23: Visitor 19 | C23: No | D23: No | AL23: Visitor 20 | AM23: Yes | AN23: Yes | AO23: Yes
B24: Visitor 20 | C24: No | D24: Yes | AL24: Visitor 21 | AM24: Yes | AN24: Yes | AO24: Yes
B25: Visitor 21 | C25: No | D25: No | AL25: Visitor 22 | AM25: Yes | AN25: Yes | AO25: Yes
B26: Visitor 22 | C26: No | D26: No | AL26: Visitor 23 | AM26: Yes | AN26: Yes | AO26: Yes
B27: Visitor 23 | C27: Yes | D27: Yes | AL27: Visitor 24 | AM27: Yes | AN27: Yes | AO27: Yes
B28: Visitor 24 | C28: No | D28: Yes | AL28: Visitor 25 | AM28: Yes | AN28: Yes | AO28: Yes
B29: Visitor 25 | C29: No | D29: Yes | AL29: Visitor 26 | AM29: Yes | AN29: Yes | AO29: Yes
B30: Visitor 26 | C30: Yes | D30: Yes | AL30: Visitor 27 | AM30: Yes | AN30: Yes | AO30: Yes
B31: Visitor 27 | C31: Yes | D31: Yes | AL31: Visitor 28 | AM31: Yes | AN31: Yes | AO31: Yes
B32: Visitor 28 | C32: No | D32: No | AL32: Visitor 29 | AM32: Yes | AN32: Yes | AO32: Yes
B33: Visitor 29 | C33: Yes | D33: Yes | AL33: Visitor 30 | AM33: Yes | AN33: Yes | AO33: Yes
B34: Visitor 30 | C34: No | D34: Yes | AL34: Visitor 31 | AM34: Yes | AN34: Yes | AO34: Yes
B35: Visitor 31 | C35: Yes | D35: Yes | AL35: Visitor 32 | AM35: Yes | AN35: Yes | AO35: Yes
B36: Visitor 32 | C36: Yes | D36: Yes | AL36: Visitor 33 | AM36: Yes | AN36: Yes | AO36: Yes
B37: Visitor 33 | C37: No | D37: Yes | AL37: Visitor 34 | AM37: Yes | AN37: Yes | AO37: Yes
B38: Visitor 34 | C38: Yes | D38: Yes | AL38: Visitor 35 | AM38: Yes | AN38: Yes | AO38: Yes
B39: Visitor 35 | C39: Yes | D39: Yes | AL39: Visitor 36 | AM39: Yes | AN39: Yes | AO39: Yes
B40: Visitor 36 | C40: Yes | D40: Yes | AL40: Visitor 37 | AM40: Yes | AN40: Yes | AO40: Yes
B41: Visitor 37 | C41: No | D41: Yes | AL41: Visitor 38 | AM41: Yes | AN41: Yes | AO41: Yes
B42: Visitor 38 | C42: Yes | D42: No | AL42: Visitor 39 | AM42: Yes | AN42: Yes | AO42: Yes
B43: Visitor 39 | C43: No | D43: No | AL43: Visitor 40 | AM43: Yes | AN43: Yes | AO43: Yes
B44: Visitor 40 | C44: No | D44: Yes | AL44: Visitor 41 | AM44: Yes | AN44: Yes | AO44: Yes
B45: Visitor 41 | C45: Yes | D45: Yes | AL45: Visitor 42 | AM45: Yes | AN45: Yes | AO45: Yes
B46: Visitor 42 | C46: No | D46: Yes | AL46: Visitor 43 | AM46: Yes | AN46: Yes | AO46: Yes
B47: Visitor 43 | C47: No | D47: No | AL47: Visitor 44 | AM47: Yes | AN47: Yes | AO47: Yes
B48: Visitor 44 | C48: No | D48: No | AL48: Visitor 45 | AM48: Yes | AN48: Yes | AO48: Yes
B49: Visitor 45 | C49: No | D49: No | AL49: Visitor 46 | AM49: Yes | AN49: Yes | AO49: Yes
B50: Visitor 46 | C50: No | D50: Yes | AL50: Visitor 47 | AM50: Yes | AN50: Yes | AO50: Yes
B51: Visitor 47 | C51: Yes | D51: Yes | AL51: Visitor 48 | AM51: Yes | AN51: Yes | AO51: Yes
B52: Visitor 48 | C52: Yes | D52: No | AL52: Visitor 49 | AM52: Yes | AN52: Yes | AO52: Yes
B53: Visitor 49 | C53: No | D53: Yes | AL53: Visitor 50 | AM53: Yes | AN53: Yes | AO53: Yes
B54: Visitor 50 | C54: No | D54: Yes | AL54: Visitor 51 | AM54: Yes | AN54: Yes | AO54: Yes
B55: Visitor 51 | C55: No | D55: No | AL55: Visitor 52 | AM55: Yes | AN55: Yes | AO55: Yes
B56: Visitor 52 | C56: No | D56: Yes | AL56: Visitor 53 | AM56: Yes | AN56: Yes | AO56: Yes
B57: Visitor 53 | C57: No | D57: Yes | AL57: Visitor 54 | AM57: Yes | AN57: Yes | AO57: Yes
B58: Visitor 54 | C58: Yes | D58: Yes | AL58: Visitor 55 | AM58: Yes | AN58: Yes | AO58: Yes
B59: Visitor 55 | C59: Yes | D59: Yes | AL59: Visitor 56 | AM59: Yes | AN59: Yes | AO59: Yes
B60: Visitor 56 | C60: No | D60: Yes | AL60: Visitor 57 | AM60: Yes | AN60: Yes | AO60: Yes
B61: Visitor 57 | C61: No | D61: No | AL61: Visitor 58 | AM61: Yes | AN61: Yes | AO61: Yes
B62: Visitor 58 | C62: No | D62: No | AL62: Visitor 59 | AM62: Yes | AN62: Yes | AO62: Yes
B63: Visitor 59 | C63: No | D63: Yes | AL63: Visitor 60 | AM63: Yes | AN63: Yes | AO63: Yes
B64: Visitor 60 | C64: No | D64: No | AL64: Visitor 61 | AM64: Yes | AN64: Yes | AO64: No
B65: Visitor 61 | C65: Yes | D65: Yes | AL65: Visitor 62 | AM65: Yes | AN65: Yes | AO65: No
B66: Visitor 62 | C66: Yes | D66: No | AL66: Visitor 63 | AM66: Yes | AN66: Yes | AO66: No
B67: Visitor 63 | C67: No | D67: Yes | AL67: Visitor 64 | AM67: Yes | AN67: Yes | AO67: No
B68: Visitor 64 | C68: Yes | D68: No | AL68: Visitor 65 | AM68: Yes | AN68: Yes | AO68: No
B69: Visitor 65 | C69: No | D69: Yes | AL69: Visitor 66 | AM69: Yes | AN69: Yes | AO69: No
B70: Visitor 66 | C70: Yes | D70: Yes | AL70: Visitor 67 | AM70: Yes | AN70: Yes | AO70: No
B71: Visitor 67 | C71: Yes | D71: Yes | AL71: Visitor 68 | AM71: Yes | AN71: Yes | AO71: No
B72: Visitor 68 | C72: No | D72: Yes | AL72: Visitor 69 | AM72: Yes | AN72: Yes | AO72: No
B73: Visitor 69 | C73: Yes | D73: No | AL73: Visitor 70 | AM73: Yes | AN73: Yes | AO73: No
B74: Visitor 70 | C74: Yes | D74: Yes | AL74: Visitor 71 | AM74: Yes | AN74: Yes | AO74: No
B75: Visitor 71 | C75: No | D75: No | AL75: Visitor 72 | AM75: Yes | AN75: Yes | AO75: No
B76: Visitor 72 | C76: Yes | D76: Yes | AL76: Visitor 73 | AM76: Yes | AN76: Yes | AO76: No
B77: Visitor 73 | C77: No | D77: No | AL77: Visitor 74 | AM77: Yes | AN77: Yes | AO77: No
B78: Visitor 74 | C78: Yes | D78: Yes | AL78: Visitor 75 | AM78: Yes | AN78: Yes | AO78: No
B79: Visitor 75 | C79: No | D79: No | AL79: Visitor 76 | AM79: Yes | AN79: Yes | AO79: No
B80: Visitor 76 | C80: No | D80: Yes | AL80: Visitor 77 | AM80: Yes | AN80: Yes | AO80: No
B81: Visitor 77 | C81: Yes | D81: Yes | AL81: Visitor 78 | AM81: Yes | AN81: Yes | AO81: No
B82: Visitor 78 | C82: Yes | D82: Yes | AL82: Visitor 79 | AM82: Yes | AN82: Yes | AO82: No
B83: Visitor 79 | C83: Yes | D83: Yes | AL83: Visitor 80 | AM83: Yes | AN83: Yes | AO83: No
B84: Visitor 80 | C84: No | D84: No | AL84: Visitor 81 | AM84: Yes | AN84: Yes | AO84: No
B85: Visitor 81 | C85: Yes | D85: Yes | AL85: Visitor 82 | AM85: Yes | AN85: Yes | AO85: No
B86: Visitor 82 | C86: Yes | D86: Yes | AL86: Visitor 83 | AM86: Yes | AN86: Yes | AO86: No
B87: Visitor 83 | C87: No | D87: No | AL87: Visitor 84 | AM87: Yes | AN87: Yes | AO87: No
B88: Visitor 84 | C88: No | D88: No | AL88: Visitor 85 | AM88: Yes | AN88: Yes | AO88: No
B89: Visitor 85 | C89: Yes | D89: Yes | AL89: Visitor 86 | AM89: Yes | AN89: Yes | AO89: No
B90: Visitor 86 | C90: No | D90: No | AL90: Visitor 87 | AM90: Yes | AN90: Yes | AO90: No
B91: Visitor 87 | C91: Yes | D91: Yes | AL91: Visitor 88 | AM91: Yes | AN91: Yes | AO91: No
B92: Visitor 88 | C92: No | D92: Yes | AL92: Visitor 89 | AM92: Yes | AN92: Yes | AO92: No
B93: Visitor 89 | C93: Yes | D93: Yes | AL93: Visitor 90 | AM93: Yes | AN93: Yes | AO93: No
B94: Visitor 90 | C94: Yes | D94: Yes | AL94: Visitor 91 | AM94: No | AN94: Yes | AO94: No
B95: Visitor 91 | C95: No | D95: Yes | AL95: Visitor 92 | AM95: No | AN95: Yes | AO95: No
B96: Visitor 92 | C96: No | D96: Yes | AL96: Visitor 93 | AM96: No | AN96: Yes | AO96: No
B97: Visitor 93 | C97: No | D97: No | AL97: Visitor 94 | AM97: No | AN97: Yes | AO97: No
B98: Visitor 94 | C98: No | D98: No | AL98: Visitor 95 | AM98: No | AN98: Yes | AO98: No
B99: Visitor 95 | C99: No | D99: No | AL99: Visitor 96 | AM99: No | AN99: Yes | AO99: No
B100: Visitor 96 | C100: No | D100: No | AL100: Visitor 97 | AM100: No | AN100: Yes | AO100: No
B101: Visitor 97 | C101: Yes | D101: Yes | AL101: Visitor 98 | AM101: No | AN101: Yes | AO101: No
B102: Visitor 98 | C102: No | D102: No | AL102: Visitor 99 | AM102: No | AN102: Yes | AO102: No
B103: Visitor 99 | C103: No | D103: No | AL103: Visitor 100 | AM103: No | AN103: Yes | AO103: No
B104: Visitor 100 | C104: No | D104: No | AL104: Visitor 101 | AM104: No | AN104: Yes | AO104: No
B105: Visitor 101 | C105: No | D105: Yes | AL105: Visitor 102 | AM105: No | AN105: Yes | AO105: No
B106: Visitor 102 | C106: Yes | D106: Yes | AL106: Visitor 103 | AM106: No | AN106: Yes | AO106: No
B107: Visitor 103 | C107: No | D107: No | AL107: Visitor 104 | AM107: No | AN107: Yes | AO107: No
B108: Visitor 104 | C108: Yes | D108: Yes | AL108: Visitor 105 | AM108: No | AN108: Yes | AO108: No
B109: Visitor 105 | C109: Yes | D109: Yes | AL109: Visitor 106 | AM109: No | AN109: Yes | AO109: No
B110: Visitor 106 | C110: Yes | D110: Yes | AL110: Visitor 107 | AM110: No | AN110: Yes | AO110: No
B111: Visitor 107 | C111: Yes | D111: Yes | AL111: Visitor 108 | AM111: No | AN111: Yes | AO111: No
B112: Visitor 108 | C112: No | D112: No | AL112: Visitor 109 | AM112: No | AN112: Yes | AO112: No
B113: Visitor 109 | C113: No | D113: No | AL113: Visitor 110 | AM113: No | AN113: Yes | AO113: No
B114: Visitor 110 | C114: No | D114: No | AL114: Visitor 111 | AM114: No | AN114: Yes | AO114: No
B115: Visitor 111 | C115: Yes | D115: Yes | AL115: Visitor 112 | AM115: No | AN115: Yes | AO115: No
B116: Visitor 112 | C116: No | D116: No | AL116: Visitor 113 | AM116: No | AN116: Yes | AO116: No
B117: Visitor 113 | C117: No | D117: No | AL117: Visitor 114 | AM117: No | AN117: Yes | AO117: No
B118: Visitor 114 | C118: No | D118: Yes | AL118: Visitor 115 | AM118: No | AN118: Yes | AO118: No
B119: Visitor 115 | C119: No | D119: No | AL119: Visitor 116 | AM119: No | AN119: Yes | AO119: No
B120: Visitor 116 | C120: No | D120: Yes | AL120: Visitor 117 | AM120: No | AN120: Yes | AO120: No
B121: Visitor 117 | C121: Yes | D121: No | AL121: Visitor 118 | AM121: No | AN121: Yes | AO121: No
B122: Visitor 118 | C122: No | D122: Yes | AL122: Visitor 119 | AM122: No | AN122: Yes | AO122: No
B123: Visitor 119 | C123: No | D123: No | AL123: Visitor 120 | AM123: No | AN123: Yes | AO123: No
B124: Visitor 120 | C124: Yes | D124: Yes | AL124: Visitor 121 | AM124: No | AN124: Yes | AO124: No
B125: Visitor 121 | C125: No | D125: No | AL125: Visitor 122 | AM125: No | AN125: Yes | AO125: No
B126: Visitor 122 | C126: No | D126: No | AL126: Visitor 123 | AM126: No | AN126: Yes | AO126: No
B127: Visitor 123 | C127: No | D127: Yes | AL127: Visitor 124 | AM127: No | AN127: Yes | AO127: No
B128: Visitor 124 | C128: Yes | D128: Yes | AL128: Visitor 125 | AM128: No | AN128: Yes | AO128: No
B129: Visitor 125 | C129: Yes | D129: No | AL129: Visitor 126 | AM129: No | AN129: Yes | AO129: No
B130: Visitor 126 | C130: No | D130: Yes | AL130: Visitor 127 | AM130: No | AN130: Yes | AO130: No
B131: Visitor 127 | C131: No | D131: No | AL131: Visitor 128 | AM131: No | AN131: Yes | AO131: No
B132: Visitor 128 | C132: Yes | D132: Yes | AL132: Visitor 129 | AM132: No | AN132: Yes | AO132: No
B133: Visitor 129 | C133: Yes | D133: Yes | AL133: Visitor 130 | AM133: No | AN133: Yes | AO133: No
B134: Visitor 130 | C134: Yes | D134: No | AL134: Visitor 131 | AM134: No | AN134: No | AO134: No
B135: Visitor 131 | C135: No | D135: Yes | AL135: Visitor 132 | AM135: No | AN135: No | AO135: No
B136: Visitor 132 | C136: Yes | D136: Yes | AL136: Visitor 133 | AM136: No | AN136: No | AO136: No
B137: Visitor 133 | C137: No | D137: No | AL137: Visitor 134 | AM137: No | AN137: No | AO137: No
B138: Visitor 134 | C138: Yes | D138: Yes | AL138: Visitor 135 | AM138: No | AN138: No | AO138: No
B139: Visitor 135 | C139: Yes | D139: Yes | AL139: Visitor 136 | AM139: No | AN139: No | AO139: No
B140: Visitor 136 | C140: Yes | D140: Yes | AL140: Visitor 137 | AM140: No | AN140: No | AO140: No
B141: Visitor 137 | C141: No | D141: No | AL141: Visitor 138 | AM141: No | AN141: No | AO141: No
B142: Visitor 138 | C142: Yes | D142: Yes | AL142: Visitor 139 | AM142: No | AN142: No | AO142: No
B143: Visitor 139 | C143: Yes | D143: Yes | AL143: Visitor 140 | AM143: No | AN143: No | AO143: No
B144: Visitor 140 | C144: No | D144: No | AL144: Visitor 141 | AM144: No | AN144: No | AO144: No
B145: Visitor 141 | C145: No | D145: Yes | AL145: Visitor 142 | AM145: No | AN145: No | AO145: No
B146: Visitor 142 | C146: Yes | D146: Yes | AL146: Visitor 143 | AM146: No | AN146: No | AO146: No
B147: Visitor 143 | C147: No | D147: Yes | AL147: Visitor 144 | AM147: No | AN147: No | AO147: No
B148: Visitor 144 | C148: Yes | D148: Yes | AL148: Visitor 145 | AM148: No | AN148: No | AO148: No
B149: Visitor 145 | C149: Yes | D149: No | AL149: Visitor 146 | AM149: No | AN149: No | AO149: No
B150: Visitor 146 | C150: No | D150: Yes | AL150: Visitor 147 | AM150: No | AN150: No | AO150: No
B151: Visitor 147 | C151: No | D151: Yes | AL151: Visitor 148 | AM151: No | AN151: No | AO151: No
B152: Visitor 148 | C152: No | D152: Yes | AL152: Visitor 149 | AM152: No | AN152: No | AO152: No
B153: Visitor 149 | C153: Yes | D153: Yes | AL153: Visitor 150 | AM153: No | AN153: No | AO153: No
B154: Visitor 150 | C154: Yes | D154: Yes | AL154: Visitor 151 | AM154: No | AN154: No | AO154: No
B155: Visitor 151 | C155: No | D155: Yes | AL155: Visitor 152 | AM155: No | AN155: No | AO155: No
B156: Visitor 152 | C156: No | D156: No | AL156: Visitor 153 | AM156: No | AN156: No | AO156: No
B157: Visitor 153 | C157: Yes | D157: Yes | AL157: Visitor 154 | AM157: No | AN157: No | AO157: No
B158: Visitor 154 | C158: Yes | D158: Yes | AL158: Visitor 155 | AM158: No | AN158: No | AO158: No
B159: Visitor 155 | C159: Yes | D159: No | AL159: Visitor 156 | AM159: No | AN159: No | AO159: No
B160: Visitor 156 | C160: No | D160: Yes | AL160: Visitor 157 | AM160: No | AN160: No | AO160: No
B161: Visitor 157 | C161: Yes | D161: Yes | AL161: Visitor 158 | AM161: No | AN161: No | AO161: No
B162: Visitor 158 | C162: No | D162: No | AL162: Visitor 159 | AM162: No | AN162: No | AO162: No
B163: Visitor 159 | C163: No | D163: No | AL163: Visitor 160 | AM163: No | AN163: No | AO163: No
B164: Visitor 160 | C164: No | D164: Yes | AL164: Visitor 161 | AM164: No | AN164: No | AO164: No
B165: Visitor 161 | C165: Yes | D165: Yes | AL165: Visitor 162 | AM165: No | AN165: No | AO165: No
B166: Visitor 162 | C166: No | D166: No | AL166: Visitor 163 | AM166: No | AN166: No | AO166: No
B167: Visitor 163 | C167: Yes | D167: Yes | AL167: Visitor 164 | AM167: No | AN167: No | AO167: No
B168: Visitor 164 | C168: No | D168: Yes | AL168: Visitor 165 | AM168: No | AN168: No | AO168: No
B169: Visitor 165 | C169: Yes | D169: Yes | AL169: Visitor 166 | AM169: No | AN169: No | AO169: No
B170: Visitor 166 | C170: No | D170: No | AL170: Visitor 167 | AM170: No | AN170: No | AO170: No
B171: Visitor 167 | C171: No | D171: No | AL171: Visitor 168 | AM171: No | AN171: No | AO171: No
B172: Visitor 168 | C172: No | D172: No | AL172: Visitor 169 | AM172: No | AN172: No | AO172: No
B173: Visitor 169 | C173: No | D173: Yes | AL173: Visitor 170 | AM173: No | AN173: No | AO173: No
B174: Visitor 170 | C174: Yes | D174: Yes | AL174: Visitor 171 | AM174: No | AN174: No | AO174: No
B175: Visitor 171 | C175: No | D175: No | AL175: Visitor 172 | AM175: No | AN175: No | AO175: No
B176: Visitor 172 | C176: No | D176: No | AL176: Visitor 173 | AM176: No | AN176: No | AO176: No
B177: Visitor 173 | C177: Yes | D177: Yes | AL177: Visitor 174 | AM177: No | AN177: No | AO177: No
B178: Visitor 174 | C178: No | D178: No | AL178: Visitor 175 | AM178: No | AN178: No | AO178: No
B179: Visitor 175 | C179: Yes | D179: Yes | AL179: Visitor 176 | AM179: No | AN179: No | AO179: No
B180: Visitor 176 | C180: No | D180: Yes | AL180: Visitor 177 | AM180: No | AN180: No | AO180: No
B181: Visitor 177 | C181: No | D181: Yes | AL181: Visitor 178 | AM181: No | AN181: No | AO181: No
B182: Visitor 178 | C182: No | D182: Yes | AL182: Visitor 179 | AM182: No | AN182: No | AO182: No
B183: Visitor 179 | C183: Yes | D183: Yes | AL183: Visitor 180 | AM183: No | AN183: No | AO183: No
B184: Visitor 180 | C184: Yes | D184: Yes | AL184: Visitor 181 | AM184: No | AN184: No | AO184: No
B185: Visitor 181 | C185: No | D185: No | AL185: Visitor 182 | AM185: No | AN185: No | AO185: No
B186: Visitor 182 | C186: No | D186: No | AL186: Visitor 183 | AM186: No | AN186: No | AO186: No
B187: Visitor 183 | C187: Yes | D187: Yes | AL187: Visitor 184 | AM187: No | AN187: No | AO187: No
B188: Visitor 184 | C188: No | D188: No | AL188: Visitor 185 | AM188: No | AN188: No | AO188: No
B189: Visitor 185 | C189: Yes | D189: Yes | AL189: Visitor 186 | AM189: No | AN189: No | AO189: No
B190: Visitor 186 | C190: No | D190: No | AL190: Visitor 187 | AM190: No | AN190: No | AO190: No
B191: Visitor 187 | C191: Yes | D191: No | AL191: Visitor 188 | AM191: No | AN191: No | AO191: No
B192: Visitor 188 | C192: No | D192: Yes | AL192: Visitor 189 | AM192: No | AN192: No | AO192: No
B193: Visitor 189 | C193: Yes | D193: Yes | AL193: Visitor 190 | AM193: No | AN193: No | AO193: No
B194: Visitor 190 | C194: No | D194: No | AL194: Visitor 191 | AM194: No | AN194: No | AO194: No
B195: Visitor 191 | C195: Yes | D195: Yes | AL195: Visitor 192 | AM195: No | AN195: No | AO195: No
B196: Visitor 192 | C196: No | D196: Yes | AL196: Visitor 193 | AM196: No | AN196: No | AO196: No
B197: Visitor 193 | C197: Yes | D197: Yes | AL197: Visitor 194 | AM197: No | AN197: No | AO197: No
B198: Visitor 194 | C198: Yes | D198: Yes | AL198: Visitor 195 | AM198: No | AN198: No | AO198: No
B199: Visitor 195 | C199: No | D199: No | AL199: Visitor 196 | AM199: No | AN199: No | AO199: No
B200: Visitor 196 | C200: No | D200: Yes | AL200: Visitor 197 | AM200: No | AN200: No | AO200: No
... 4 more rows

Sheet Seattle(1an)
AL1: Creat Table:
B2: Travel survey of people who visit Seattle
AL3: Visitor | AM3: Visit Space Needle? | AN3: Visit Pike's Place Market? | AO3: Visit Alki Beach?
B4: Visitor | C4: Visit Space Needle? | D4: Visit Pike's Place Market? | F4: Count of Visitor | G4: Pike's Place Market | L4: P(Space Needle) | M4: =I7/I8 -> 0.45 | O4: =_xlfn.IFNA(_xlfn.FORMULATEXT(M4),"") -> =I7/I8 | AL4: ="Visitor "&_xlfn.SEQUENCE(200) -> Visitor 1 | AM4: =IF(_xlfn.SEQUENCE(200)<=45+45,"Yes","No") -> Yes | AN4: =IF(_xlfn.SEQUENCE(200)<=65+65,"Yes","No") -> Yes | AO4: =IF(_xlfn.SEQUENCE(200)<=25+35,"Yes","No") -> Yes
B5: Visitor 1 | C5: Yes | D5: Yes | F5: Space Needle | G5: No | H5: Yes | I5: Grand Total | L5: P(Pike's Place Market) | M5: =H8/I8 -> 0.65 | O5: =_xlfn.IFNA(_xlfn.FORMULATEXT(M5),"") -> =H8/I8 | AL5: Visitor 2 | AM5: Yes | AN5: Yes | AO5: Yes
B6: Visitor 2 | C6: No | D6: No | F6: No | G6: 58 | H6: 52 | I6: 110 | L6: P(Space Needle AND Pike's Place Market) | M6: =H7/I8 -> 0.39 | O6: =_xlfn.IFNA(_xlfn.FORMULATEXT(M6),"") -> =H7/I8 | AL6: Visitor 3 | AM6: Yes | AN6: Yes | AO6: Yes
B7: Visitor 3 | C7: Yes | D7: Yes | F7: Yes | G7: 12 | H7: 78 | I7: 90 | L7: P(Space Needle OR Pike's Place Market) | M7: =M4+M5-M6 -> 0.71 | O7: =_xlfn.IFNA(_xlfn.FORMULATEXT(M7),"") -> =M4+M5-M6 | AL7: Visitor 4 | AM7: Yes | AN7: Yes | AO7: Yes
B8: Visitor 4 | C8: Yes | D8: Yes | F8: Grand Total | G8: 70 | H8: 130 | I8: 200 | L8: =_xlfn.IFNA(_xlfn.FORMULATEXT(H8),"") ->  | AL8: Visitor 5 | AM8: Yes | AN8: Yes | AO8: Yes
B9: Visitor 5 | C9: Yes | D9: Yes | AL9: Visitor 6 | AM9: Yes | AN9: Yes | AO9: Yes
B10: Visitor 6 | C10: Yes | D10: No | AL10: Visitor 7 | AM10: Yes | AN10: Yes | AO10: Yes
B11: Visitor 7 | C11: No | D11: Yes | AL11: Visitor 8 | AM11: Yes | AN11: Yes | AO11: Yes
B12: Visitor 8 | C12: Yes | D12: Yes | AL12: Visitor 9 | AM12: Yes | AN12: Yes | AO12: Yes
B13: Visitor 9 | C13: Yes | D13: Yes | AL13: Visitor 10 | AM13: Yes | AN13: Yes | AO13: Yes
B14: Visitor 10 | C14: No | D14: Yes | AL14: Visitor 11 | AM14: Yes | AN14: Yes | AO14: Yes
B15: Visitor 11 | C15: No | D15: Yes | AL15: Visitor 12 | AM15: Yes | AN15: Yes | AO15: Yes
B16: Visitor 12 | C16: No | D16: Yes | AL16: Visitor 13 | AM16: Yes | AN16: Yes | AO16: Yes
B17: Visitor 13 | C17: Yes | D17: Yes | AL17: Visitor 14 | AM17: Yes | AN17: Yes | AO17: Yes
B18: Visitor 14 | C18: No | D18: Yes | AL18: Visitor 15 | AM18: Yes | AN18: Yes | AO18: Yes
B19: Visitor 15 | C19: Yes | D19: Yes | AL19: Visitor 16 | AM19: Yes | AN19: Yes | AO19: Yes
B20: Visitor 16 | C20: Yes | D20: Yes | AL20: Visitor 17 | AM20: Yes | AN20: Yes | AO20: Yes
B21: Visitor 17 | C21: Yes | D21: Yes | AL21: Visitor 18 | AM21: Yes | AN21: Yes | AO21: Yes
B22: Visitor 18 | C22: No | D22: No | AL22: Visitor 19 | AM22: Yes | AN22: Yes | AO22: Yes
B23: Visitor 19 | C23: No | D23: No | AL23: Visitor 20 | AM23: Yes | AN23: Yes | AO23: Yes
B24: Visitor 20 | C24: No | D24: Yes | AL24: Visitor 21 | AM24: Yes | AN24: Yes | AO24: Yes
B25: Visitor 21 | C25: No | D25: No | AL25: Visitor 22 | AM25: Yes | AN25: Yes | AO25: Yes
B26: Visitor 22 | C26: No | D26: No | AL26: Visitor 23 | AM26: Yes | AN26: Yes | AO26: Yes
B27: Visitor 23 | C27: Yes | D27: Yes | AL27: Visitor 24 | AM27: Yes | AN27: Yes | AO27: Yes
B28: Visitor 24 | C28: No | D28: Yes | AL28: Visitor 25 | AM28: Yes | AN28: Yes | AO28: Yes
B29: Visitor 25 | C29: No | D29: Yes | AL29: Visitor 26 | AM29: Yes | AN29: Yes | AO29: Yes
B30: Visitor 26 | C30: Yes | D30: Yes | AL30: Visitor 27 | AM30: Yes | AN30: Yes | AO30: Yes
B31: Visitor 27 | C31: Yes | D31: Yes | AL31: Visitor 28 | AM31: Yes | AN31: Yes | AO31: Yes
B32: Visitor 28 | C32: No | D32: No | AL32: Visitor 29 | AM32: Yes | AN32: Yes | AO32: Yes
B33: Visitor 29 | C33: Yes | D33: Yes | AL33: Visitor 30 | AM33: Yes | AN33: Yes | AO33: Yes
B34: Visitor 30 | C34: No | D34: Yes | AL34: Visitor 31 | AM34: Yes | AN34: Yes | AO34: Yes
B35: Visitor 31 | C35: Yes | D35: Yes | AL35: Visitor 32 | AM35: Yes | AN35: Yes | AO35: Yes
B36: Visitor 32 | C36: Yes | D36: Yes | AL36: Visitor 33 | AM36: Yes | AN36: Yes | AO36: Yes
B37: Visitor 33 | C37: No | D37: Yes | AL37: Visitor 34 | AM37: Yes | AN37: Yes | AO37: Yes
B38: Visitor 34 | C38: Yes | D38: Yes | AL38: Visitor 35 | AM38: Yes | AN38: Yes | AO38: Yes
B39: Visitor 35 | C39: Yes | D39: Yes | AL39: Visitor 36 | AM39: Yes | AN39: Yes | AO39: Yes
B40: Visitor 36 | C40: Yes | D40: Yes | AL40: Visitor 37 | AM40: Yes | AN40: Yes | AO40: Yes
B41: Visitor 37 | C41: No | D41: Yes | AL41: Visitor 38 | AM41: Yes | AN41: Yes | AO41: Yes
B42: Visitor 38 | C42: Yes | D42: No | AL42: Visitor 39 | AM42: Yes | AN42: Yes | AO42: Yes
B43: Visitor 39 | C43: No | D43: No | AL43: Visitor 40 | AM43: Yes | AN43: Yes | AO43: Yes
B44: Visitor 40 | C44: No | D44: Yes | AL44: Visitor 41 | AM44: Yes | AN44: Yes | AO44: Yes
B45: Visitor 41 | C45: Yes | D45: Yes | AL45: Visitor 42 | AM45: Yes | AN45: Yes | AO45: Yes
B46: Visitor 42 | C46: No | D46: Yes | AL46: Visitor 43 | AM46: Yes | AN46: Yes | AO46: Yes
B47: Visitor 43 | C47: No | D47: No | AL47: Visitor 44 | AM47: Yes | AN47: Yes | AO47: Yes
B48: Visitor 44 | C48: No | D48: No | AL48: Visitor 45 | AM48: Yes | AN48: Yes | AO48: Yes
B49: Visitor 45 | C49: No | D49: No | AL49: Visitor 46 | AM49: Yes | AN49: Yes | AO49: Yes
B50: Visitor 46 | C50: No | D50: Yes | AL50: Visitor 47 | AM50: Yes | AN50: Yes | AO50: Yes
B51: Visitor 47 | C51: Yes | D51: Yes | AL51: Visitor 48 | AM51: Yes | AN51: Yes | AO51: Yes
B52: Visitor 48 | C52: Yes | D52: No | AL52: Visitor 49 | AM52: Yes | AN52: Yes | AO52: Yes
B53: Visitor 49 | C53: No | D53: Yes | AL53: Visitor 50 | AM53: Yes | AN53: Yes | AO53: Yes
B54: Visitor 50 | C54: No | D54: Yes | AL54: Visitor 51 | AM54: Yes | AN54: Yes | AO54: Yes
B55: Visitor 51 | C55: No | D55: No | AL55: Visitor 52 | AM55: Yes | AN55: Yes | AO55: Yes
B56: Visitor 52 | C56: No | D56: Yes | AL56: Visitor 53 | AM56: Yes | AN56: Yes | AO56: Yes
B57: Visitor 53 | C57: No | D57: Yes | AL57: Visitor 54 | AM57: Yes | AN57: Yes | AO57: Yes
B58: Visitor 54 | C58: Yes | D58: Yes | AL58: Visitor 55 | AM58: Yes | AN58: Yes | AO58: Yes
B59: Visitor 55 | C59: Yes | D59: Yes | AL59: Visitor 56 | AM59: Yes | AN59: Yes | AO59: Yes
B60: Visitor 56 | C60: No | D60: Yes | AL60: Visitor 57 | AM60: Yes | AN60: Yes | AO60: Yes
B61: Visitor 57 | C61: No | D61: No | AL61: Visitor 58 | AM61: Yes | AN61: Yes | AO61: Yes
B62: Visitor 58 | C62: No | D62: No | AL62: Visitor 59 | AM62: Yes | AN62: Yes | AO62: Yes
B63: Visitor 59 | C63: No | D63: Yes | AL63: Visitor 60 | AM63: Yes | AN63: Yes | AO63: Yes
B64: Visitor 60 | C64: No | D64: No | AL64: Visitor 61 | AM64: Yes | AN64: Yes | AO64: No
B65: Visitor 61 | C65: Yes | D65: Yes | AL65: Visitor 62 | AM65: Yes | AN65: Yes | AO65: No
B66: Visitor 62 | C66: Yes | D66: No | AL66: Visitor 63 | AM66: Yes | AN66: Yes | AO66: No
B67: Visitor 63 | C67: No | D67: Yes | AL67: Visitor 64 | AM67: Yes | AN67: Yes | AO67: No
B68: Visitor 64 | C68: Yes | D68: No | AL68: Visitor 65 | AM68: Yes | AN68: Yes | AO68: No
B69: Visitor 65 | C69: No | D69: Yes | AL69: Visitor 66 | AM69: Yes | AN69: Yes | AO69: No
B70: Visitor 66 | C70: Yes | D70: Yes | AL70: Visitor 67 | AM70: Yes | AN70: Yes | AO70: No
B71: Visitor 67 | C71: Yes | D71: Yes | AL71: Visitor 68 | AM71: Yes | AN71: Yes | AO71: No
B72: Visitor 68 | C72: No | D72: Yes | AL72: Visitor 69 | AM72: Yes | AN72: Yes | AO72: No
B73: Visitor 69 | C73: Yes | D73: No | AL73: Visitor 70 | AM73: Yes | AN73: Yes | AO73: No
B74: Visitor 70 | C74: Yes | D74: Yes | AL74: Visitor 71 | AM74: Yes | AN74: Yes | AO74: No
B75: Visitor 71 | C75: No | D75: No | AL75: Visitor 72 | AM75: Yes | AN75: Yes | AO75: No
B76: Visitor 72 | C76: Yes | D76: Yes | AL76: Visitor 73 | AM76: Yes | AN76: Yes | AO76: No
B77: Visitor 73 | C77: No | D77: No | AL77: Visitor 74 | AM77: Yes | AN77: Yes | AO77: No
B78: Visitor 74 | C78: Yes | D78: Yes | AL78: Visitor 75 | AM78: Yes | AN78: Yes | AO78: No
B79: Visitor 75 | C79: No | D79: No | AL79: Visitor 76 | AM79: Yes | AN79: Yes | AO79: No
B80: Visitor 76 | C80: No | D80: Yes | AL80: Visitor 77 | AM80: Yes | AN80: Yes | AO80: No
B81: Visitor 77 | C81: Yes | D81: Yes | AL81: Visitor 78 | AM81: Yes | AN81: Yes | AO81: No
B82: Visitor 78 | C82: Yes | D82: Yes | AL82: Visitor 79 | AM82: Yes | AN82: Yes | AO82: No
B83: Visitor 79 | C83: Yes | D83: Yes | AL83: Visitor 80 | AM83: Yes | AN83: Yes | AO83: No
B84: Visitor 80 | C84: No | D84: No | AL84: Visitor 81 | AM84: Yes | AN84: Yes | AO84: No
B85: Visitor 81 | C85: Yes | D85: Yes | AL85: Visitor 82 | AM85: Yes | AN85: Yes | AO85: No
B86: Visitor 82 | C86: Yes | D86: Yes | AL86: Visitor 83 | AM86: Yes | AN86: Yes | AO86: No
B87: Visitor 83 | C87: No | D87: No | AL87: Visitor 84 | AM87: Yes | AN87: Yes | AO87: No
B88: Visitor 84 | C88: No | D88: No | AL88: Visitor 85 | AM88: Yes | AN88: Yes | AO88: No
B89: Visitor 85 | C89: Yes | D89: Yes | AL89: Visitor 86 | AM89: Yes | AN89: Yes | AO89: No
B90: Visitor 86 | C90: No | D90: No | AL90: Visitor 87 | AM90: Yes | AN90: Yes | AO90: No
B91: Visitor 87 | C91: Yes | D91: Yes | AL91: Visitor 88 | AM91: Yes | AN91: Yes | AO91: No
B92: Visitor 88 | C92: No | D92: Yes | AL92: Visitor 89 | AM92: Yes | AN92: Yes | AO92: No
B93: Visitor 89 | C93: Yes | D93: Yes | AL93: Visitor 90 | AM93: Yes | AN93: Yes | AO93: No
B94: Visitor 90 | C94: Yes | D94: Yes | AL94: Visitor 91 | AM94: No | AN94: Yes | AO94: No
B95: Visitor 91 | C95: No | D95: Yes | AL95: Visitor 92 | AM95: No | AN95: Yes | AO95: No
B96: Visitor 92 | C96: No | D96: Yes | AL96: Visitor 93 | AM96: No | AN96: Yes | AO96: No
B97: Visitor 93 | C97: No | D97: No | AL97: Visitor 94 | AM97: No | AN97: Yes | AO97: No
B98: Visitor 94 | C98: No | D98: No | AL98: Visitor 95 | AM98: No | AN98: Yes | AO98: No
B99: Visitor 95 | C99: No | D99: No | AL99: Visitor 96 | AM99: No | AN99: Yes | AO99: No
B100: Visitor 96 | C100: No | D100: No | AL100: Visitor 97 | AM100: No | AN100: Yes | AO100: No
B101: Visitor 97 | C101: Yes | D101: Yes | AL101: Visitor 98 | AM101: No | AN101: Yes | AO101: No
B102: Visitor 98 | C102: No | D102: No | AL102: Visitor 99 | AM102: No | AN102: Yes | AO102: No
B103: Visitor 99 | C103: No | D103: No | AL103: Visitor 100 | AM103: No | AN103: Yes | AO103: No
B104: Visitor 100 | C104: No | D104: No | AL104: Visitor 101 | AM104: No | AN104: Yes | AO104: No
B105: Visitor 101 | C105: No | D105: Yes | AL105: Visitor 102 | AM105: No | AN105: Yes | AO105: No
B106: Visitor 102 | C106: Yes | D106: Yes | AL106: Visitor 103 | AM106: No | AN106: Yes | AO106: No
B107: Visitor 103 | C107: No | D107: No | AL107: Visitor 104 | AM107: No | AN107: Yes | AO107: No
B108: Visitor 104 | C108: Yes | D108: Yes | AL108: Visitor 105 | AM108: No | AN108: Yes | AO108: No
B109: Visitor 105 | C109: Yes | D109: Yes | AL109: Visitor 106 | AM109: No | AN109: Yes | AO109: No
B110: Visitor 106 | C110: Yes | D110: Yes | AL110: Visitor 107 | AM110: No | AN110: Yes | AO110: No
B111: Visitor 107 | C111: Yes | D111: Yes | AL111: Visitor 108 | AM111: No | AN111: Yes | AO111: No
B112: Visitor 108 | C112: No | D112: No | AL112: Visitor 109 | AM112: No | AN112: Yes | AO112: No
B113: Visitor 109 | C113: No | D113: No | AL113: Visitor 110 | AM113: No | AN113: Yes | AO113: No
B114: Visitor 110 | C114: No | D114: No | AL114: Visitor 111 | AM114: No | AN114: Yes | AO114: No
B115: Visitor 111 | C115: Yes | D115: Yes | AL115: Visitor 112 | AM115: No | AN115: Yes | AO115: No
B116: Visitor 112 | C116: No | D116: No | AL116: Visitor 113 | AM116: No | AN116: Yes | AO116: No
B117: Visitor 113 | C117: No | D117: No | AL117: Visitor 114 | AM117: No | AN117: Yes | AO117: No
B118: Visitor 114 | C118: No | D118: Yes | AL118: Visitor 115 | AM118: No | AN118: Yes | AO118: No
B119: Visitor 115 | C119: No | D119: No | AL119: Visitor 116 | AM119: No | AN119: Yes | AO119: No
B120: Visitor 116 | C120: No | D120: Yes | AL120: Visitor 117 | AM120: No | AN120: Yes | AO120: No
B121: Visitor 117 | C121: Yes | D121: No | AL121: Visitor 118 | AM121: No | AN121: Yes | AO121: No
B122: Visitor 118 | C122: No | D122: Yes | AL122: Visitor 119 | AM122: No | AN122: Yes | AO122: No
B123: Visitor 119 | C123: No | D123: No | AL123: Visitor 120 | AM123: No | AN123: Yes | AO123: No
B124: Visitor 120 | C124: Yes | D124: Yes | AL124: Visitor 121 | AM124: No | AN124: Yes | AO124: No
B125: Visitor 121 | C125: No | D125: No | AL125: Visitor 122 | AM125: No | AN125: Yes | AO125: No
B126: Visitor 122 | C126: No | D126: No | AL126: Visitor 123 | AM126: No | AN126: Yes | AO126: No
B127: Visitor 123 | C127: No | D127: Yes | AL127: Visitor 124 | AM127: No | AN127: Yes | AO127: No
B128: Visitor 124 | C128: Yes | D128: Yes | AL128: Visitor 125 | AM128: No | AN128: Yes | AO128: No
B129: Visitor 125 | C129: Yes | D129: No | AL129: Visitor 126 | AM129: No | AN129: Yes | AO129: No
B130: Visitor 126 | C130: No | D130: Yes | AL130: Visitor 127 | AM130: No | AN130: Yes | AO130: No
B131: Visitor 127 | C131: No | D131: No | AL131: Visitor 128 | AM131: No | AN131: Yes | AO131: No
B132: Visitor 128 | C132: Yes | D132: Yes | AL132: Visitor 129 | AM132: No | AN132: Yes | AO132: No
B133: Visitor 129 | C133: Yes | D133: Yes | AL133: Visitor 130 | AM133: No | AN133: Yes | AO133: No
B134: Visitor 130 | C134: Yes | D134: No | AL134: Visitor 131 | AM134: No | AN134: No | AO134: No
B135: Visitor 131 | C135: No | D135: Yes | AL135: Visitor 132 | AM135: No | AN135: No | AO135: No
B136: Visitor 132 | C136: Yes | D136: Yes | AL136: Visitor 133 | AM136: No | AN136: No | AO136: No
B137: Visitor 133 | C137: No | D137: No | AL137: Visitor 134 | AM137: No | AN137: No | AO137: No
B138: Visitor 134 | C138: Yes | D138: Yes | AL138: Visitor 135 | AM138: No | AN138: No | AO138: No
B139: Visitor 135 | C139: Yes | D139: Yes | AL139: Visitor 136 | AM139: No | AN139: No | AO139: No
B140: Visitor 136 | C140: Yes | D140: Yes | AL140: Visitor 137 | AM140: No | AN140: No | AO140: No
B141: Visitor 137 | C141: No | D141: No | AL141: Visitor 138 | AM141: No | AN141: No | AO141: No
B142: Visitor 138 | C142: Yes | D142: Yes | AL142: Visitor 139 | AM142: No | AN142: No | AO142: No
B143: Visitor 139 | C143: Yes | D143: Yes | AL143: Visitor 140 | AM143: No | AN143: No | AO143: No
B144: Visitor 140 | C144: No | D144: No | AL144: Visitor 141 | AM144: No | AN144: No | AO144: No
B145: Visitor 141 | C145: No | D145: Yes | AL145: Visitor 142 | AM145: No | AN145: No | AO145: No
B146: Visitor 142 | C146: Yes | D146: Yes | AL146: Visitor 143 | AM146: No | AN146: No | AO146: No
B147: Visitor 143 | C147: No | D147: Yes | AL147: Visitor 144 | AM147: No | AN147: No | AO147: No
B148: Visitor 144 | C148: Yes | D148: Yes | AL148: Visitor 145 | AM148: No | AN148: No | AO148: No
B149: Visitor 145 | C149: Yes | D149: No | AL149: Visitor 146 | AM149: No | AN149: No | AO149: No
B150: Visitor 146 | C150: No | D150: Yes | AL150: Visitor 147 | AM150: No | AN150: No | AO150: No
B151: Visitor 147 | C151: No | D151: Yes | AL151: Visitor 148 | AM151: No | AN151: No | AO151: No
B152: Visitor 148 | C152: No | D152: Yes | AL152: Visitor 149 | AM152: No | AN152: No | AO152: No
B153: Visitor 149 | C153: Yes | D153: Yes | AL153: Visitor 150 | AM153: No | AN153: No | AO153: No
B154: Visitor 150 | C154: Yes | D154: Yes | AL154: Visitor 151 | AM154: No | AN154: No | AO154: No
B155: Visitor 151 | C155: No | D155: Yes | AL155: Visitor 152 | AM155: No | AN155: No | AO155: No
B156: Visitor 152 | C156: No | D156: No | AL156: Visitor 153 | AM156: No | AN156: No | AO156: No
B157: Visitor 153 | C157: Yes | D157: Yes | AL157: Visitor 154 | AM157: No | AN157: No | AO157: No
B158: Visitor 154 | C158: Yes | D158: Yes | AL158: Visitor 155 | AM158: No | AN158: No | AO158: No
B159: Visitor 155 | C159: Yes | D159: No | AL159: Visitor 156 | AM159: No | AN159: No | AO159: No
B160: Visitor 156 | C160: No | D160: Yes | AL160: Visitor 157 | AM160: No | AN160: No | AO160: No
B161: Visitor 157 | C161: Yes | D161: Yes | AL161: Visitor 158 | AM161: No | AN161: No | AO161: No
B162: Visitor 158 | C162: No | D162: No | AL162: Visitor 159 | AM162: No | AN162: No | AO162: No
B163: Visitor 159 | C163: No | D163: No | AL163: Visitor 160 | AM163: No | AN163: No | AO163: No
B164: Visitor 160 | C164: No | D164: Yes | AL164: Visitor 161 | AM164: No | AN164: No | AO164: No
B165: Visitor 161 | C165: Yes | D165: Yes | AL165: Visitor 162 | AM165: No | AN165: No | AO165: No
B166: Visitor 162 | C166: No | D166: No | AL166: Visitor 163 | AM166: No | AN166: No | AO166: No
B167: Visitor 163 | C167: Yes | D167: Yes | AL167: Visitor 164 | AM167: No | AN167: No | AO167: No
B168: Visitor 164 | C168: No | D168: Yes | AL168: Visitor 165 | AM168: No | AN168: No | AO168: No
B169: Visitor 165 | C169: Yes | D169: Yes | AL169: Visitor 166 | AM169: No | AN169: No | AO169: No
B170: Visitor 166 | C170: No | D170: No | AL170: Visitor 167 | AM170: No | AN170: No | AO170: No
B171: Visitor 167 | C171: No | D171: No | AL171: Visitor 168 | AM171: No | AN171: No | AO171: No
B172: Visitor 168 | C172: No | D172: No | AL172: Visitor 169 | AM172: No | AN172: No | AO172: No
B173: Visitor 169 | C173: No | D173: Yes | AL173: Visitor 170 | AM173: No | AN173: No | AO173: No
B174: Visitor 170 | C174: Yes | D174: Yes | AL174: Visitor 171 | AM174: No | AN174: No | AO174: No
B175: Visitor 171 | C175: No | D175: No | AL175: Visitor 172 | AM175: No | AN175: No | AO175: No
B176: Visitor 172 | C176: No | D176: No | AL176: Visitor 173 | AM176: No | AN176: No | AO176: No
B177: Visitor 173 | C177: Yes | D177: Yes | AL177: Visitor 174 | AM177: No | AN177: No | AO177: No
B178: Visitor 174 | C178: No | D178: No | AL178: Visitor 175 | AM178: No | AN178: No | AO178: No
B179: Visitor 175 | C179: Yes | D179: Yes | AL179: Visitor 176 | AM179: No | AN179: No | AO179: No
B180: Visitor 176 | C180: No | D180: Yes | AL180: Visitor 177 | AM180: No | AN180: No | AO180: No
B181: Visitor 177 | C181: No | D181: Yes | AL181: Visitor 178 | AM181: No | AN181: No | AO181: No
B182: Visitor 178 | C182: No | D182: Yes | AL182: Visitor 179 | AM182: No | AN182: No | AO182: No
B183: Visitor 179 | C183: Yes | D183: Yes | AL183: Visitor 180 | AM183: No | AN183: No | AO183: No
B184: Visitor 180 | C184: Yes | D184: Yes | AL184: Visitor 181 | AM184: No | AN184: No | AO184: No
B185: Visitor 181 | C185: No | D185: No | AL185: Visitor 182 | AM185: No | AN185: No | AO185: No
B186: Visitor 182 | C186: No | D186: No | AL186: Visitor 183 | AM186: No | AN186: No | AO186: No
B187: Visitor 183 | C187: Yes | D187: Yes | AL187: Visitor 184 | AM187: No | AN187: No | AO187: No
B188: Visitor 184 | C188: No | D188: No | AL188: Visitor 185 | AM188: No | AN188: No | AO188: No
B189: Visitor 185 | C189: Yes | D189: Yes | AL189: Visitor 186 | AM189: No | AN189: No | AO189: No
B190: Visitor 186 | C190: No | D190: No | AL190: Visitor 187 | AM190: No | AN190: No | AO190: No
B191: Visitor 187 | C191: Yes | D191: No | AL191: Visitor 188 | AM191: No | AN191: No | AO191: No
B192: Visitor 188 | C192: No | D192: Yes | AL192: Visitor 189 | AM192: No | AN192: No | AO192: No
B193: Visitor 189 | C193: Yes | D193: Yes | AL193: Visitor 190 | AM193: No | AN193: No | AO193: No
B194: Visitor 190 | C194: No | D194: No | AL194: Visitor 191 | AM194: No | AN194: No | AO194: No
B195: Visitor 191 | C195: Yes | D195: Yes | AL195: Visitor 192 | AM195: No | AN195: No | AO195: No
B196: Visitor 192 | C196: No | D196: Yes | AL196: Visitor 193 | AM196: No | AN196: No | AO196: No
B197: Visitor 193 | C197: Yes | D197: Yes | AL197: Visitor 194 | AM197: No | AN197: No | AO197: No
B198: Visitor 194 | C198: Yes | D198: Yes | AL198: Visitor 195 | AM198: No | AN198: No | AO198: No
B199: Visitor 195 | C199: No | D199: No | AL199: Visitor 196 | AM199: No | AN199: No | AO199: No
B200: Visitor 196 | C200: No | D200: Yes | AL200: Visitor 197 | AM200: No | AN200: No | AO200: No
... 4 more rows

Sheet Seattle(2)
B2: Survey Question: For Seattle's two tourist sites Space Needle and Pike's Place Market, select one of the following choices: | AO2: Seattle Visitor | AP2: Space Needle | AQ2: Pike's Place Market | AR2: Where Did They Visit?
B3: Only Space Needle | AO3: Visitor 1 | AP3: 1 | AQ3: 1 | AR3: =_xlfn.IFS(SUM(AP3:AQ3)=2,$B$5,SUM(AP3:AQ3)=0,$B$6,AND(AP3=1,AQ3=0),$B$3,TRUE,$B$4) -> Both
B4: Only Pike's Place Market | AO4: Visitor 11 | AP4: 0 | AQ4: 1 | AR4: =_xlfn.IFS(SUM(AP4:AQ4)=2,$B$5,SUM(AP4:AQ4)=0,$B$6,AND(AP4=1,AQ4=0),$B$3,TRUE,$B$4) -> Only Pike's Place Market
B5: Both | AO5: Visitor 2 | AP5: 0 | AQ5: 0 | AR5: =_xlfn.IFS(SUM(AP5:AQ5)=2,$B$5,SUM(AP5:AQ5)=0,$B$6,AND(AP5=1,AQ5=0),$B$3,TRUE,$B$4) -> Neither
B6: Neither | AO6: Visitor 3 | AP6: 1 | AQ6: 1 | AR6: =_xlfn.IFS(SUM(AP6:AQ6)=2,$B$5,SUM(AP6:AQ6)=0,$B$6,AND(AP6=1,AQ6=0),$B$3,TRUE,$B$4) -> Both
AO7: Visitor 4 | AP7: 1 | AQ7: 1 | AR7: =_xlfn.IFS(SUM(AP7:AQ7)=2,$B$5,SUM(AP7:AQ7)=0,$B$6,AND(AP7=1,AQ7=0),$B$3,TRUE,$B$4) -> Both
B8: Results | G8: P(Space Needle) | J8: =_xlfn.IFNA(_xlfn.FORMULATEXT(H8),"") ->  | AO8: Visitor 5 | AP8: 1 | AQ8: 1 | AR8: =_xlfn.IFS(SUM(AP8:AQ8)=2,$B$5,SUM(AP8:AQ8)=0,$B$6,AND(AP8=1,AQ8=0),$B$3,TRUE,$B$4) -> Both
B9: Both | G9: P(Pike's Place Market) | AO9: Visitor 6 | AP9: 1 | AQ9: 0 | AR9: =_xlfn.IFS(SUM(AP9:AQ9)=2,$B$5,SUM(AP9:AQ9)=0,$B$6,AND(AP9=1,AQ9=0),$B$3,TRUE,$B$4) -> Only Space Needle
B10: Only Pike's Place Market | G10: P(Space Needle AND Pike's Place Market) | AO10: Visitor 7 | AP10: 0 | AQ10: 1 | AR10: =_xlfn.IFS(SUM(AP10:AQ10)=2,$B$5,SUM(AP10:AQ10)=0,$B$6,AND(AP10=1,AQ10=0),$B$3,TRUE,$B$4) -> Only Pike's Place Market
B11: Neither | G11: P(Space Needle OR Pike's Place Market) | J11: =_xlfn.IFNA(_xlfn.FORMULATEXT(H11),"") ->  | AO11: Visitor 8 | AP11: 1 | AQ11: 1 | AR11: =_xlfn.IFS(SUM(AP11:AQ11)=2,$B$5,SUM(AP11:AQ11)=0,$B$6,AND(AP11=1,AQ11=0),$B$3,TRUE,$B$4) -> Both
B12: Both | AO12: Visitor 9 | AP12: 1 | AQ12: 1 | AR12: =_xlfn.IFS(SUM(AP12:AQ12)=2,$B$5,SUM(AP12:AQ12)=0,$B$6,AND(AP12=1,AQ12=0),$B$3,TRUE,$B$4) -> Both
B13: Both | AO13: Visitor 10 | AP13: 0 | AQ13: 1 | AR13: =_xlfn.IFS(SUM(AP13:AQ13)=2,$B$5,SUM(AP13:AQ13)=0,$B$6,AND(AP13=1,AQ13=0),$B$3,TRUE,$B$4) -> Only Pike's Place Market
B14: Both | AO14: Visitor 12 | AP14: 0 | AQ14: 1 | AR14: =_xlfn.IFS(SUM(AP14:AQ14)=2,$B$5,SUM(AP14:AQ14)=0,$B$6,AND(AP14=1,AQ14=0),$B$3,TRUE,$B$4) -> Only Pike's Place Market
B15: Only Space Needle | AO15: Visitor 13 | AP15: 1 | AQ15: 1 | AR15: =_xlfn.IFS(SUM(AP15:AQ15)=2,$B$5,SUM(AP15:AQ15)=0,$B$6,AND(AP15=1,AQ15=0),$B$3,TRUE,$B$4) -> Both
B16: Only Pike's Place Market | AO16: Visitor 14 | AP16: 0 | AQ16: 1 | AR16: =_xlfn.IFS(SUM(AP16:AQ16)=2,$B$5,SUM(AP16:AQ16)=0,$B$6,AND(AP16=1,AQ16=0),$B$3,TRUE,$B$4) -> Only Pike's Place Market
B17: Both | AO17: Visitor 15 | AP17: 1 | AQ17: 1 | AR17: =_xlfn.IFS(SUM(AP17:AQ17)=2,$B$5,SUM(AP17:AQ17)=0,$B$6,AND(AP17=1,AQ17=0),$B$3,TRUE,$B$4) -> Both
B18: Both | AO18: Visitor 16 | AP18: 1 | AQ18: 1 | AR18: =_xlfn.IFS(SUM(AP18:AQ18)=2,$B$5,SUM(AP18:AQ18)=0,$B$6,AND(AP18=1,AQ18=0),$B$3,TRUE,$B$4) -> Both
B19: Only Pike's Place Market | AO19: Visitor 17 | AP19: 1 | AQ19: 1 | AR19: =_xlfn.IFS(SUM(AP19:AQ19)=2,$B$5,SUM(AP19:AQ19)=0,$B$6,AND(AP19=1,AQ19=0),$B$3,TRUE,$B$4) -> Both
B20: Only Pike's Place Market | AO20: Visitor 18 | AP20: 0 | AQ20: 0 | AR20: =_xlfn.IFS(SUM(AP20:AQ20)=2,$B$5,SUM(AP20:AQ20)=0,$B$6,AND(AP20=1,AQ20=0),$B$3,TRUE,$B$4) -> Neither
B21: Both | AO21: Visitor 19 | AP21: 0 | AQ21: 0 | AR21: =_xlfn.IFS(SUM(AP21:AQ21)=2,$B$5,SUM(AP21:AQ21)=0,$B$6,AND(AP21=1,AQ21=0),$B$3,TRUE,$B$4) -> Neither
B22: Only Pike's Place Market | AO22: Visitor 20 | AP22: 0 | AQ22: 1 | AR22: =_xlfn.IFS(SUM(AP22:AQ22)=2,$B$5,SUM(AP22:AQ22)=0,$B$6,AND(AP22=1,AQ22=0),$B$3,TRUE,$B$4) -> Only Pike's Place Market
B23: Both | AO23: Visitor 21 | AP23: 0 | AQ23: 0 | AR23: =_xlfn.IFS(SUM(AP23:AQ23)=2,$B$5,SUM(AP23:AQ23)=0,$B$6,AND(AP23=1,AQ23=0),$B$3,TRUE,$B$4) -> Neither
B24: Both | AO24: Visitor 22 | AP24: 0 | AQ24: 0 | AR24: =_xlfn.IFS(SUM(AP24:AQ24)=2,$B$5,SUM(AP24:AQ24)=0,$B$6,AND(AP24=1,AQ24=0),$B$3,TRUE,$B$4) -> Neither
B25: Both | AO25: Visitor 23 | AP25: 1 | AQ25: 1 | AR25: =_xlfn.IFS(SUM(AP25:AQ25)=2,$B$5,SUM(AP25:AQ25)=0,$B$6,AND(AP25=1,AQ25=0),$B$3,TRUE,$B$4) -> Both
B26: Neither | AO26: Visitor 24 | AP26: 0 | AQ26: 1 | AR26: =_xlfn.IFS(SUM(AP26:AQ26)=2,$B$5,SUM(AP26:AQ26)=0,$B$6,AND(AP26=1,AQ26=0),$B$3,TRUE,$B$4) -> Only Pike's Place Market
B27: Neither | AO27: Visitor 25 | AP27: 0 | AQ27: 1 | AR27: =_xlfn.IFS(SUM(AP27:AQ27)=2,$B$5,SUM(AP27:AQ27)=0,$B$6,AND(AP27=1,AQ27=0),$B$3,TRUE,$B$4) -> Only Pike's Place Market
B28: Only Pike's Place Market | AO28: Visitor 26 | AP28: 1 | AQ28: 1 | AR28: =_xlfn.IFS(SUM(AP28:AQ28)=2,$B$5,SUM(AP28:AQ28)=0,$B$6,AND(AP28=1,AQ28=0),$B$3,TRUE,$B$4) -> Both
B29: Neither | AO29: Visitor 27 | AP29: 1 | AQ29: 1 | AR29: =_xlfn.IFS(SUM(AP29:AQ29)=2,$B$5,SUM(AP29:AQ29)=0,$B$6,AND(AP29=1,AQ29=0),$B$3,TRUE,$B$4) -> Both
B30: Neither | AO30: Visitor 28 | AP30: 0 | AQ30: 0 | AR30: =_xlfn.IFS(SUM(AP30:AQ30)=2,$B$5,SUM(AP30:AQ30)=0,$B$6,AND(AP30=1,AQ30=0),$B$3,TRUE,$B$4) -> Neither
B31: Both | AO31: Visitor 29 | AP31: 1 | AQ31: 1 | AR31: =_xlfn.IFS(SUM(AP31:AQ31)=2,$B$5,SUM(AP31:AQ31)=0,$B$6,AND(AP31=1,AQ31=0),$B$3,TRUE,$B$4) -> Both
B32: Only Pike's Place Market | AO32: Visitor 30 | AP32: 0 | AQ32: 1 | AR32: =_xlfn.IFS(SUM(AP32:AQ32)=2,$B$5,SUM(AP32:AQ32)=0,$B$6,AND(AP32=1,AQ32=0),$B$3,TRUE,$B$4) -> Only Pike's Place Market
B33: Only Pike's Place Market | AO33: Visitor 31 | AP33: 1 | AQ33: 1 | AR33: =_xlfn.IFS(SUM(AP33:AQ33)=2,$B$5,SUM(AP33:AQ33)=0,$B$6,AND(AP33=1,AQ33=0),$B$3,TRUE,$B$4) -> Both
B34: Both | AO34: Visitor 32 | AP34: 1 | AQ34: 1 | AR34: =_xlfn.IFS(SUM(AP34:AQ34)=2,$B$5,SUM(AP34:AQ34)=0,$B$6,AND(AP34=1,AQ34=0),$B$3,TRUE,$B$4) -> Both
B35: Both | AO35: Visitor 33 | AP35: 0 | AQ35: 1 | AR35: =_xlfn.IFS(SUM(AP35:AQ35)=2,$B$5,SUM(AP35:AQ35)=0,$B$6,AND(AP35=1,AQ35=0),$B$3,TRUE,$B$4) -> Only Pike's Place Market
B36: Neither | AO36: Visitor 34 | AP36: 1 | AQ36: 1 | AR36: =_xlfn.IFS(SUM(AP36:AQ36)=2,$B$5,SUM(AP36:AQ36)=0,$B$6,AND(AP36=1,AQ36=0),$B$3,TRUE,$B$4) -> Both
B37: Both | AO37: Visitor 35 | AP37: 1 | AQ37: 1 | AR37: =_xlfn.IFS(SUM(AP37:AQ37)=2,$B$5,SUM(AP37:AQ37)=0,$B$6,AND(AP37=1,AQ37=0),$B$3,TRUE,$B$4) -> Both
B38: Only Pike's Place Market | AO38: Visitor 36 | AP38: 1 | AQ38: 1 | AR38: =_xlfn.IFS(SUM(AP38:AQ38)=2,$B$5,SUM(AP38:AQ38)=0,$B$6,AND(AP38=1,AQ38=0),$B$3,TRUE,$B$4) -> Both
B39: Both | AO39: Visitor 37 | AP39: 0 | AQ39: 1 | AR39: =_xlfn.IFS(SUM(AP39:AQ39)=2,$B$5,SUM(AP39:AQ39)=0,$B$6,AND(AP39=1,AQ39=0),$B$3,TRUE,$B$4) -> Only Pike's Place Market
B40: Both | AO40: Visitor 38 | AP40: 1 | AQ40: 0 | AR40: =_xlfn.IFS(SUM(AP40:AQ40)=2,$B$5,SUM(AP40:AQ40)=0,$B$6,AND(AP40=1,AQ40=0),$B$3,TRUE,$B$4) -> Only Space Needle
B41: Only Pike's Place Market | AO41: Visitor 39 | AP41: 0 | AQ41: 0 | AR41: =_xlfn.IFS(SUM(AP41:AQ41)=2,$B$5,SUM(AP41:AQ41)=0,$B$6,AND(AP41=1,AQ41=0),$B$3,TRUE,$B$4) -> Neither
B42: Both | AO42: Visitor 40 | AP42: 0 | AQ42: 1 | AR42: =_xlfn.IFS(SUM(AP42:AQ42)=2,$B$5,SUM(AP42:AQ42)=0,$B$6,AND(AP42=1,AQ42=0),$B$3,TRUE,$B$4) -> Only Pike's Place Market
B43: Both | AO43: Visitor 41 | AP43: 1 | AQ43: 1 | AR43: =_xlfn.IFS(SUM(AP43:AQ43)=2,$B$5,SUM(AP43:AQ43)=0,$B$6,AND(AP43=1,AQ43=0),$B$3,TRUE,$B$4) -> Both
B44: Both | AO44: Visitor 42 | AP44: 0 | AQ44: 1 | AR44: =_xlfn.IFS(SUM(AP44:AQ44)=2,$B$5,SUM(AP44:AQ44)=0,$B$6,AND(AP44=1,AQ44=0),$B$3,TRUE,$B$4) -> Only Pike's Place Market
B45: Only Pike's Place Market | AO45: Visitor 43 | AP45: 0 | AQ45: 0 | AR45: =_xlfn.IFS(SUM(AP45:AQ45)=2,$B$5,SUM(AP45:AQ45)=0,$B$6,AND(AP45=1,AQ45=0),$B$3,TRUE,$B$4) -> Neither
B46: Only Space Needle | AO46: Visitor 44 | AP46: 0 | AQ46: 0 | AR46: =_xlfn.IFS(SUM(AP46:AQ46)=2,$B$5,SUM(AP46:AQ46)=0,$B$6,AND(AP46=1,AQ46=0),$B$3,TRUE,$B$4) -> Neither
B47: Neither | AO47: Visitor 45 | AP47: 0 | AQ47: 0 | AR47: =_xlfn.IFS(SUM(AP47:AQ47)=2,$B$5,SUM(AP47:AQ47)=0,$B$6,AND(AP47=1,AQ47=0),$B$3,TRUE,$B$4) -> Neither
B48: Only Pike's Place Market | AO48: Visitor 46 | AP48: 0 | AQ48: 1 | AR48: =_xlfn.IFS(SUM(AP48:AQ48)=2,$B$5,SUM(AP48:AQ48)=0,$B$6,AND(AP48=1,AQ48=0),$B$3,TRUE,$B$4) -> Only Pike's Place Market
B49: Both | AO49: Visitor 47 | AP49: 1 | AQ49: 1 | AR49: =_xlfn.IFS(SUM(AP49:AQ49)=2,$B$5,SUM(AP49:AQ49)=0,$B$6,AND(AP49=1,AQ49=0),$B$3,TRUE,$B$4) -> Both
B50: Only Pike's Place Market | AO50: Visitor 48 | AP50: 1 | AQ50: 0 | AR50: =_xlfn.IFS(SUM(AP50:AQ50)=2,$B$5,SUM(AP50:AQ50)=0,$B$6,AND(AP50=1,AQ50=0),$B$3,TRUE,$B$4) -> Only Space Needle
B51: Neither | AO51: Visitor 49 | AP51: 0 | AQ51: 1 | AR51: =_xlfn.IFS(SUM(AP51:AQ51)=2,$B$5,SUM(AP51:AQ51)=0,$B$6,AND(AP51=1,AQ51=0),$B$3,TRUE,$B$4) -> Only Pike's Place Market
B52: Neither | AO52: Visitor 50 | AP52: 0 | AQ52: 1 | AR52: =_xlfn.IFS(SUM(AP52:AQ52)=2,$B$5,SUM(AP52:AQ52)=0,$B$6,AND(AP52=1,AQ52=0),$B$3,TRUE,$B$4) -> Only Pike's Place Market
B53: Neither | AO53: Visitor 51 | AP53: 0 | AQ53: 0 | AR53: =_xlfn.IFS(SUM(AP53:AQ53)=2,$B$5,SUM(AP53:AQ53)=0,$B$6,AND(AP53=1,AQ53=0),$B$3,TRUE,$B$4) -> Neither
B54: Only Pike's Place Market | AO54: Visitor 52 | AP54: 0 | AQ54: 1 | AR54: =_xlfn.IFS(SUM(AP54:AQ54)=2,$B$5,SUM(AP54:AQ54)=0,$B$6,AND(AP54=1,AQ54=0),$B$3,TRUE,$B$4) -> Only Pike's Place Market
B55: Both | AO55: Visitor 53 | AP55: 0 | AQ55: 1 | AR55: =_xlfn.IFS(SUM(AP55:AQ55)=2,$B$5,SUM(AP55:AQ55)=0,$B$6,AND(AP55=1,AQ55=0),$B$3,TRUE,$B$4) -> Only Pike's Place Market
B56: Only Space Needle | AO56: Visitor 54 | AP56: 1 | AQ56: 1 | AR56: =_xlfn.IFS(SUM(AP56:AQ56)=2,$B$5,SUM(AP56:AQ56)=0,$B$6,AND(AP56=1,AQ56=0),$B$3,TRUE,$B$4) -> Both
B57: Only Pike's Place Market | AO57: Visitor 55 | AP57: 1 | AQ57: 1 | AR57: =_xlfn.IFS(SUM(AP57:AQ57)=2,$B$5,SUM(AP57:AQ57)=0,$B$6,AND(AP57=1,AQ57=0),$B$3,TRUE,$B$4) -> Both
B58: Only Pike's Place Market | AO58: Visitor 56 | AP58: 0 | AQ58: 1 | AR58: =_xlfn.IFS(SUM(AP58:AQ58)=2,$B$5,SUM(AP58:AQ58)=0,$B$6,AND(AP58=1,AQ58=0),$B$3,TRUE,$B$4) -> Only Pike's Place Market
B59: Neither | AO59: Visitor 57 | AP59: 0 | AQ59: 0 | AR59: =_xlfn.IFS(SUM(AP59:AQ59)=2,$B$5,SUM(AP59:AQ59)=0,$B$6,AND(AP59=1,AQ59=0),$B$3,TRUE,$B$4) -> Neither
B60: Only Pike's Place Market | AO60: Visitor 58 | AP60: 0 | AQ60: 0 | AR60: =_xlfn.IFS(SUM(AP60:AQ60)=2,$B$5,SUM(AP60:AQ60)=0,$B$6,AND(AP60=1,AQ60=0),$B$3,TRUE,$B$4) -> Neither
B61: Only Pike's Place Market | AO61: Visitor 59 | AP61: 0 | AQ61: 1 | AR61: =_xlfn.IFS(SUM(AP61:AQ61)=2,$B$5,SUM(AP61:AQ61)=0,$B$6,AND(AP61=1,AQ61=0),$B$3,TRUE,$B$4) -> Only Pike's Place Market
B62: Both | AO62: Visitor 60 | AP62: 0 | AQ62: 0 | AR62: =_xlfn.IFS(SUM(AP62:AQ62)=2,$B$5,SUM(AP62:AQ62)=0,$B$6,AND(AP62=1,AQ62=0),$B$3,TRUE,$B$4) -> Neither
B63: Both | AO63: Visitor 61 | AP63: 1 | AQ63: 1 | AR63: =_xlfn.IFS(SUM(AP63:AQ63)=2,$B$5,SUM(AP63:AQ63)=0,$B$6,AND(AP63=1,AQ63=0),$B$3,TRUE,$B$4) -> Both
B64: Only Pike's Place Market | AO64: Visitor 62 | AP64: 1 | AQ64: 0 | AR64: =_xlfn.IFS(SUM(AP64:AQ64)=2,$B$5,SUM(AP64:AQ64)=0,$B$6,AND(AP64=1,AQ64=0),$B$3,TRUE,$B$4) -> Only Space Needle
B65: Neither | AO65: Visitor 63 | AP65: 0 | AQ65: 1 | AR65: =_xlfn.IFS(SUM(AP65:AQ65)=2,$B$5,SUM(AP65:AQ65)=0,$B$6,AND(AP65=1,AQ65=0),$B$3,TRUE,$B$4) -> Only Pike's Place Market
B66: Neither | AO66: Visitor 64 | AP66: 1 | AQ66: 0 | AR66: =_xlfn.IFS(SUM(AP66:AQ66)=2,$B$5,SUM(AP66:AQ66)=0,$B$6,AND(AP66=1,AQ66=0),$B$3,TRUE,$B$4) -> Only Space Needle
B67: Only Pike's Place Market | AO67: Visitor 65 | AP67: 0 | AQ67: 1 | AR67: =_xlfn.IFS(SUM(AP67:AQ67)=2,$B$5,SUM(AP67:AQ67)=0,$B$6,AND(AP67=1,AQ67=0),$B$3,TRUE,$B$4) -> Only Pike's Place Market
B68: Neither | AO68: Visitor 66 | AP68: 1 | AQ68: 1 | AR68: =_xlfn.IFS(SUM(AP68:AQ68)=2,$B$5,SUM(AP68:AQ68)=0,$B$6,AND(AP68=1,AQ68=0),$B$3,TRUE,$B$4) -> Both
B69: Both | AO69: Visitor 67 | AP69: 1 | AQ69: 1 | AR69: =_xlfn.IFS(SUM(AP69:AQ69)=2,$B$5,SUM(AP69:AQ69)=0,$B$6,AND(AP69=1,AQ69=0),$B$3,TRUE,$B$4) -> Both
B70: Only Space Needle | AO70: Visitor 68 | AP70: 0 | AQ70: 1 | AR70: =_xlfn.IFS(SUM(AP70:AQ70)=2,$B$5,SUM(AP70:AQ70)=0,$B$6,AND(AP70=1,AQ70=0),$B$3,TRUE,$B$4) -> Only Pike's Place Market
B71: Only Pike's Place Market | AO71: Visitor 69 | AP71: 1 | AQ71: 0 | AR71: =_xlfn.IFS(SUM(AP71:AQ71)=2,$B$5,SUM(AP71:AQ71)=0,$B$6,AND(AP71=1,AQ71=0),$B$3,TRUE,$B$4) -> Only Space Needle
B72: Only Space Needle | AO72: Visitor 70 | AP72: 1 | AQ72: 1 | AR72: =_xlfn.IFS(SUM(AP72:AQ72)=2,$B$5,SUM(AP72:AQ72)=0,$B$6,AND(AP72=1,AQ72=0),$B$3,TRUE,$B$4) -> Both
B73: Only Pike's Place Market | AO73: Visitor 71 | AP73: 0 | AQ73: 0 | AR73: =_xlfn.IFS(SUM(AP73:AQ73)=2,$B$5,SUM(AP73:AQ73)=0,$B$6,AND(AP73=1,AQ73=0),$B$3,TRUE,$B$4) -> Neither
B74: Both | AO74: Visitor 72 | AP74: 1 | AQ74: 1 | AR74: =_xlfn.IFS(SUM(AP74:AQ74)=2,$B$5,SUM(AP74:AQ74)=0,$B$6,AND(AP74=1,AQ74=0),$B$3,TRUE,$B$4) -> Both
B75: Both | AO75: Visitor 73 | AP75: 0 | AQ75: 0 | AR75: =_xlfn.IFS(SUM(AP75:AQ75)=2,$B$5,SUM(AP75:AQ75)=0,$B$6,AND(AP75=1,AQ75=0),$B$3,TRUE,$B$4) -> Neither
B76: Only Pike's Place Market | AO76: Visitor 74 | AP76: 1 | AQ76: 1 | AR76: =_xlfn.IFS(SUM(AP76:AQ76)=2,$B$5,SUM(AP76:AQ76)=0,$B$6,AND(AP76=1,AQ76=0),$B$3,TRUE,$B$4) -> Both
B77: Only Space Needle | AO77: Visitor 75 | AP77: 0 | AQ77: 0 | AR77: =_xlfn.IFS(SUM(AP77:AQ77)=2,$B$5,SUM(AP77:AQ77)=0,$B$6,AND(AP77=1,AQ77=0),$B$3,TRUE,$B$4) -> Neither
B78: Both | AO78: Visitor 76 | AP78: 0 | AQ78: 1 | AR78: =_xlfn.IFS(SUM(AP78:AQ78)=2,$B$5,SUM(AP78:AQ78)=0,$B$6,AND(AP78=1,AQ78=0),$B$3,TRUE,$B$4) -> Only Pike's Place Market
B79: Neither | AO79: Visitor 77 | AP79: 1 | AQ79: 1 | AR79: =_xlfn.IFS(SUM(AP79:AQ79)=2,$B$5,SUM(AP79:AQ79)=0,$B$6,AND(AP79=1,AQ79=0),$B$3,TRUE,$B$4) -> Both
B80: Both | AO80: Visitor 78 | AP80: 1 | AQ80: 1 | AR80: =_xlfn.IFS(SUM(AP80:AQ80)=2,$B$5,SUM(AP80:AQ80)=0,$B$6,AND(AP80=1,AQ80=0),$B$3,TRUE,$B$4) -> Both
B81: Neither | AO81: Visitor 79 | AP81: 1 | AQ81: 1 | AR81: =_xlfn.IFS(SUM(AP81:AQ81)=2,$B$5,SUM(AP81:AQ81)=0,$B$6,AND(AP81=1,AQ81=0),$B$3,TRUE,$B$4) -> Both
B82: Both | AO82: Visitor 80 | AP82: 0 | AQ82: 0 | AR82: =_xlfn.IFS(SUM(AP82:AQ82)=2,$B$5,SUM(AP82:AQ82)=0,$B$6,AND(AP82=1,AQ82=0),$B$3,TRUE,$B$4) -> Neither
B83: Neither | AO83: Visitor 81 | AP83: 1 | AQ83: 1 | AR83: =_xlfn.IFS(SUM(AP83:AQ83)=2,$B$5,SUM(AP83:AQ83)=0,$B$6,AND(AP83=1,AQ83=0),$B$3,TRUE,$B$4) -> Both
B84: Only Pike's Place Market | AO84: Visitor 82 | AP84: 1 | AQ84: 1 | AR84: =_xlfn.IFS(SUM(AP84:AQ84)=2,$B$5,SUM(AP84:AQ84)=0,$B$6,AND(AP84=1,AQ84=0),$B$3,TRUE,$B$4) -> Both
B85: Both | AO85: Visitor 83 | AP85: 0 | AQ85: 0 | AR85: =_xlfn.IFS(SUM(AP85:AQ85)=2,$B$5,SUM(AP85:AQ85)=0,$B$6,AND(AP85=1,AQ85=0),$B$3,TRUE,$B$4) -> Neither
B86: Both | AO86: Visitor 84 | AP86: 0 | AQ86: 0 | AR86: =_xlfn.IFS(SUM(AP86:AQ86)=2,$B$5,SUM(AP86:AQ86)=0,$B$6,AND(AP86=1,AQ86=0),$B$3,TRUE,$B$4) -> Neither
B87: Both | AO87: Visitor 85 | AP87: 1 | AQ87: 1 | AR87: =_xlfn.IFS(SUM(AP87:AQ87)=2,$B$5,SUM(AP87:AQ87)=0,$B$6,AND(AP87=1,AQ87=0),$B$3,TRUE,$B$4) -> Both
B88: Neither | AO88: Visitor 86 | AP88: 0 | AQ88: 0 | AR88: =_xlfn.IFS(SUM(AP88:AQ88)=2,$B$5,SUM(AP88:AQ88)=0,$B$6,AND(AP88=1,AQ88=0),$B$3,TRUE,$B$4) -> Neither
B89: Both | AO89: Visitor 87 | AP89: 1 | AQ89: 1 | AR89: =_xlfn.IFS(SUM(AP89:AQ89)=2,$B$5,SUM(AP89:AQ89)=0,$B$6,AND(AP89=1,AQ89=0),$B$3,TRUE,$B$4) -> Both
B90: Both | AO90: Visitor 88 | AP90: 0 | AQ90: 1 | AR90: =_xlfn.IFS(SUM(AP90:AQ90)=2,$B$5,SUM(AP90:AQ90)=0,$B$6,AND(AP90=1,AQ90=0),$B$3,TRUE,$B$4) -> Only Pike's Place Market
B91: Neither | AO91: Visitor 89 | AP91: 1 | AQ91: 1 | AR91: =_xlfn.IFS(SUM(AP91:AQ91)=2,$B$5,SUM(AP91:AQ91)=0,$B$6,AND(AP91=1,AQ91=0),$B$3,TRUE,$B$4) -> Both
B92: Neither | AO92: Visitor 90 | AP92: 1 | AQ92: 1 | AR92: =_xlfn.IFS(SUM(AP92:AQ92)=2,$B$5,SUM(AP92:AQ92)=0,$B$6,AND(AP92=1,AQ92=0),$B$3,TRUE,$B$4) -> Both
B93: Both | AO93: Visitor 91 | AP93: 0 | AQ93: 1 | AR93: =_xlfn.IFS(SUM(AP93:AQ93)=2,$B$5,SUM(AP93:AQ93)=0,$B$6,AND(AP93=1,AQ93=0),$B$3,TRUE,$B$4) -> Only Pike's Place Market
B94: Neither | AO94: Visitor 92 | AP94: 0 | AQ94: 1 | AR94: =_xlfn.IFS(SUM(AP94:AQ94)=2,$B$5,SUM(AP94:AQ94)=0,$B$6,AND(AP94=1,AQ94=0),$B$3,TRUE,$B$4) -> Only Pike's Place Market
B95: Both | AO95: Visitor 93 | AP95: 0 | AQ95: 0 | AR95: =_xlfn.IFS(SUM(AP95:AQ95)=2,$B$5,SUM(AP95:AQ95)=0,$B$6,AND(AP95=1,AQ95=0),$B$3,TRUE,$B$4) -> Neither
B96: Only Pike's Place Market | AO96: Visitor 94 | AP96: 0 | AQ96: 0 | AR96: =_xlfn.IFS(SUM(AP96:AQ96)=2,$B$5,SUM(AP96:AQ96)=0,$B$6,AND(AP96=1,AQ96=0),$B$3,TRUE,$B$4) -> Neither
B97: Both | AO97: Visitor 95 | AP97: 0 | AQ97: 0 | AR97: =_xlfn.IFS(SUM(AP97:AQ97)=2,$B$5,SUM(AP97:AQ97)=0,$B$6,AND(AP97=1,AQ97=0),$B$3,TRUE,$B$4) -> Neither
B98: Both | AO98: Visitor 96 | AP98: 0 | AQ98: 0 | AR98: =_xlfn.IFS(SUM(AP98:AQ98)=2,$B$5,SUM(AP98:AQ98)=0,$B$6,AND(AP98=1,AQ98=0),$B$3,TRUE,$B$4) -> Neither
B99: Only Pike's Place Market | AO99: Visitor 97 | AP99: 1 | AQ99: 1 | AR99: =_xlfn.IFS(SUM(AP99:AQ99)=2,$B$5,SUM(AP99:AQ99)=0,$B$6,AND(AP99=1,AQ99=0),$B$3,TRUE,$B$4) -> Both
B100: Only Pike's Place Market | AO100: Visitor 98 | AP100: 0 | AQ100: 0 | AR100: =_xlfn.IFS(SUM(AP100:AQ100)=2,$B$5,SUM(AP100:AQ100)=0,$B$6,AND(AP100=1,AQ100=0),$B$3,TRUE,$B$4) -> Neither
B101: Neither | AO101: Visitor 99 | AP101: 0 | AQ101: 0 | AR101: =_xlfn.IFS(SUM(AP101:AQ101)=2,$B$5,SUM(AP101:AQ101)=0,$B$6,AND(AP101=1,AQ101=0),$B$3,TRUE,$B$4) -> Neither
B102: Neither | AO102: Visitor 100 | AP102: 0 | AQ102: 0 | AR102: =_xlfn.IFS(SUM(AP102:AQ102)=2,$B$5,SUM(AP102:AQ102)=0,$B$6,AND(AP102=1,AQ102=0),$B$3,TRUE,$B$4) -> Neither
B103: Neither | AO103: Visitor 101 | AP103: 0 | AQ103: 1 | AR103: =_xlfn.IFS(SUM(AP103:AQ103)=2,$B$5,SUM(AP103:AQ103)=0,$B$6,AND(AP103=1,AQ103=0),$B$3,TRUE,$B$4) -> Only Pike's Place Market
B104: Neither | AO104: Visitor 102 | AP104: 1 | AQ104: 1 | AR104: =_xlfn.IFS(SUM(AP104:AQ104)=2,$B$5,SUM(AP104:AQ104)=0,$B$6,AND(AP104=1,AQ104=0),$B$3,TRUE,$B$4) -> Both
B105: Both | AO105: Visitor 103 | AP105: 0 | AQ105: 0 | AR105: =_xlfn.IFS(SUM(AP105:AQ105)=2,$B$5,SUM(AP105:AQ105)=0,$B$6,AND(AP105=1,AQ105=0),$B$3,TRUE,$B$4) -> Neither
B106: Neither | AO106: Visitor 104 | AP106: 1 | AQ106: 1 | AR106: =_xlfn.IFS(SUM(AP106:AQ106)=2,$B$5,SUM(AP106:AQ106)=0,$B$6,AND(AP106=1,AQ106=0),$B$3,TRUE,$B$4) -> Both
B107: Neither | AO107: Visitor 105 | AP107: 1 | AQ107: 1 | AR107: =_xlfn.IFS(SUM(AP107:AQ107)=2,$B$5,SUM(AP107:AQ107)=0,$B$6,AND(AP107=1,AQ107=0),$B$3,TRUE,$B$4) -> Both
B108: Neither | AO108: Visitor 106 | AP108: 1 | AQ108: 1 | AR108: =_xlfn.IFS(SUM(AP108:AQ108)=2,$B$5,SUM(AP108:AQ108)=0,$B$6,AND(AP108=1,AQ108=0),$B$3,TRUE,$B$4) -> Both
B109: Only Pike's Place Market | AO109: Visitor 107 | AP109: 1 | AQ109: 1 | AR109: =_xlfn.IFS(SUM(AP109:AQ109)=2,$B$5,SUM(AP109:AQ109)=0,$B$6,AND(AP109=1,AQ109=0),$B$3,TRUE,$B$4) -> Both
B110: Both | AO110: Visitor 108 | AP110: 0 | AQ110: 0 | AR110: =_xlfn.IFS(SUM(AP110:AQ110)=2,$B$5,SUM(AP110:AQ110)=0,$B$6,AND(AP110=1,AQ110=0),$B$3,TRUE,$B$4) -> Neither
B111: Neither | AO111: Visitor 109 | AP111: 0 | AQ111: 0 | AR111: =_xlfn.IFS(SUM(AP111:AQ111)=2,$B$5,SUM(AP111:AQ111)=0,$B$6,AND(AP111=1,AQ111=0),$B$3,TRUE,$B$4) -> Neither
B112: Both | AO112: Visitor 110 | AP112: 0 | AQ112: 0 | AR112: =_xlfn.IFS(SUM(AP112:AQ112)=2,$B$5,SUM(AP112:AQ112)=0,$B$6,AND(AP112=1,AQ112=0),$B$3,TRUE,$B$4) -> Neither
B113: Both | AO113: Visitor 111 | AP113: 1 | AQ113: 1 | AR113: =_xlfn.IFS(SUM(AP113:AQ113)=2,$B$5,SUM(AP113:AQ113)=0,$B$6,AND(AP113=1,AQ113=0),$B$3,TRUE,$B$4) -> Both
B114: Both | AO114: Visitor 112 | AP114: 0 | AQ114: 0 | AR114: =_xlfn.IFS(SUM(AP114:AQ114)=2,$B$5,SUM(AP114:AQ114)=0,$B$6,AND(AP114=1,AQ114=0),$B$3,TRUE,$B$4) -> Neither
B115: Both | AO115: Visitor 113 | AP115: 0 | AQ115: 0 | AR115: =_xlfn.IFS(SUM(AP115:AQ115)=2,$B$5,SUM(AP115:AQ115)=0,$B$6,AND(AP115=1,AQ115=0),$B$3,TRUE,$B$4) -> Neither
B116: Neither | AO116: Visitor 114 | AP116: 0 | AQ116: 1 | AR116: =_xlfn.IFS(SUM(AP116:AQ116)=2,$B$5,SUM(AP116:AQ116)=0,$B$6,AND(AP116=1,AQ116=0),$B$3,TRUE,$B$4) -> Only Pike's Place Market
B117: Neither | AO117: Visitor 115 | AP117: 0 | AQ117: 0 | AR117: =_xlfn.IFS(SUM(AP117:AQ117)=2,$B$5,SUM(AP117:AQ117)=0,$B$6,AND(AP117=1,AQ117=0),$B$3,TRUE,$B$4) -> Neither
B118: Neither | AO118: Visitor 116 | AP118: 0 | AQ118: 1 | AR118: =_xlfn.IFS(SUM(AP118:AQ118)=2,$B$5,SUM(AP118:AQ118)=0,$B$6,AND(AP118=1,AQ118=0),$B$3,TRUE,$B$4) -> Only Pike's Place Market
B119: Both | AO119: Visitor 117 | AP119: 1 | AQ119: 0 | AR119: =_xlfn.IFS(SUM(AP119:AQ119)=2,$B$5,SUM(AP119:AQ119)=0,$B$6,AND(AP119=1,AQ119=0),$B$3,TRUE,$B$4) -> Only Space Needle
B120: Neither | AO120: Visitor 118 | AP120: 0 | AQ120: 1 | AR120: =_xlfn.IFS(SUM(AP120:AQ120)=2,$B$5,SUM(AP120:AQ120)=0,$B$6,AND(AP120=1,AQ120=0),$B$3,TRUE,$B$4) -> Only Pike's Place Market
B121: Neither | AO121: Visitor 119 | AP121: 0 | AQ121: 0 | AR121: =_xlfn.IFS(SUM(AP121:AQ121)=2,$B$5,SUM(AP121:AQ121)=0,$B$6,AND(AP121=1,AQ121=0),$B$3,TRUE,$B$4) -> Neither
B122: Only Pike's Place Market | AO122: Visitor 120 | AP122: 1 | AQ122: 1 | AR122: =_xlfn.IFS(SUM(AP122:AQ122)=2,$B$5,SUM(AP122:AQ122)=0,$B$6,AND(AP122=1,AQ122=0),$B$3,TRUE,$B$4) -> Both
B123: Neither | AO123: Visitor 121 | AP123: 0 | AQ123: 0 | AR123: =_xlfn.IFS(SUM(AP123:AQ123)=2,$B$5,SUM(AP123:AQ123)=0,$B$6,AND(AP123=1,AQ123=0),$B$3,TRUE,$B$4) -> Neither
B124: Only Pike's Place Market | AO124: Visitor 122 | AP124: 0 | AQ124: 0 | AR124: =_xlfn.IFS(SUM(AP124:AQ124)=2,$B$5,SUM(AP124:AQ124)=0,$B$6,AND(AP124=1,AQ124=0),$B$3,TRUE,$B$4) -> Neither
B125: Only Space Needle | AO125: Visitor 123 | AP125: 0 | AQ125: 1 | AR125: =_xlfn.IFS(SUM(AP125:AQ125)=2,$B$5,SUM(AP125:AQ125)=0,$B$6,AND(AP125=1,AQ125=0),$B$3,TRUE,$B$4) -> Only Pike's Place Market
B126: Only Pike's Place Market | AO126: Visitor 124 | AP126: 1 | AQ126: 1 | AR126: =_xlfn.IFS(SUM(AP126:AQ126)=2,$B$5,SUM(AP126:AQ126)=0,$B$6,AND(AP126=1,AQ126=0),$B$3,TRUE,$B$4) -> Both
B127: Neither | AO127: Visitor 125 | AP127: 1 | AQ127: 0 | AR127: =_xlfn.IFS(SUM(AP127:AQ127)=2,$B$5,SUM(AP127:AQ127)=0,$B$6,AND(AP127=1,AQ127=0),$B$3,TRUE,$B$4) -> Only Space Needle
B128: Both | AO128: Visitor 126 | AP128: 0 | AQ128: 1 | AR128: =_xlfn.IFS(SUM(AP128:AQ128)=2,$B$5,SUM(AP128:AQ128)=0,$B$6,AND(AP128=1,AQ128=0),$B$3,TRUE,$B$4) -> Only Pike's Place Market
B129: Neither | AO129: Visitor 127 | AP129: 0 | AQ129: 0 | AR129: =_xlfn.IFS(SUM(AP129:AQ129)=2,$B$5,SUM(AP129:AQ129)=0,$B$6,AND(AP129=1,AQ129=0),$B$3,TRUE,$B$4) -> Neither
B130: Neither | AO130: Visitor 128 | AP130: 1 | AQ130: 1 | AR130: =_xlfn.IFS(SUM(AP130:AQ130)=2,$B$5,SUM(AP130:AQ130)=0,$B$6,AND(AP130=1,AQ130=0),$B$3,TRUE,$B$4) -> Both
B131: Only Pike's Place Market | AO131: Visitor 129 | AP131: 1 | AQ131: 1 | AR131: =_xlfn.IFS(SUM(AP131:AQ131)=2,$B$5,SUM(AP131:AQ131)=0,$B$6,AND(AP131=1,AQ131=0),$B$3,TRUE,$B$4) -> Both
B132: Both | AO132: Visitor 130 | AP132: 1 | AQ132: 0 | AR132: =_xlfn.IFS(SUM(AP132:AQ132)=2,$B$5,SUM(AP132:AQ132)=0,$B$6,AND(AP132=1,AQ132=0),$B$3,TRUE,$B$4) -> Only Space Needle
B133: Only Space Needle | AO133: Visitor 131 | AP133: 0 | AQ133: 1 | AR133: =_xlfn.IFS(SUM(AP133:AQ133)=2,$B$5,SUM(AP133:AQ133)=0,$B$6,AND(AP133=1,AQ133=0),$B$3,TRUE,$B$4) -> Only Pike's Place Market
B134: Only Pike's Place Market | AO134: Visitor 132 | AP134: 1 | AQ134: 1 | AR134: =_xlfn.IFS(SUM(AP134:AQ134)=2,$B$5,SUM(AP134:AQ134)=0,$B$6,AND(AP134=1,AQ134=0),$B$3,TRUE,$B$4) -> Both
B135: Neither | AO135: Visitor 133 | AP135: 0 | AQ135: 0 | AR135: =_xlfn.IFS(SUM(AP135:AQ135)=2,$B$5,SUM(AP135:AQ135)=0,$B$6,AND(AP135=1,AQ135=0),$B$3,TRUE,$B$4) -> Neither
B136: Both | AO136: Visitor 134 | AP136: 1 | AQ136: 1 | AR136: =_xlfn.IFS(SUM(AP136:AQ136)=2,$B$5,SUM(AP136:AQ136)=0,$B$6,AND(AP136=1,AQ136=0),$B$3,TRUE,$B$4) -> Both
B137: Both | AO137: Visitor 135 | AP137: 1 | AQ137: 1 | AR137: =_xlfn.IFS(SUM(AP137:AQ137)=2,$B$5,SUM(AP137:AQ137)=0,$B$6,AND(AP137=1,AQ137=0),$B$3,TRUE,$B$4) -> Both
B138: Only Space Needle | AO138: Visitor 136 | AP138: 1 | AQ138: 1 | AR138: =_xlfn.IFS(SUM(AP138:AQ138)=2,$B$5,SUM(AP138:AQ138)=0,$B$6,AND(AP138=1,AQ138=0),$B$3,TRUE,$B$4) -> Both
B139: Only Pike's Place Market | AO139: Visitor 137 | AP139: 0 | AQ139: 0 | AR139: =_xlfn.IFS(SUM(AP139:AQ139)=2,$B$5,SUM(AP139:AQ139)=0,$B$6,AND(AP139=1,AQ139=0),$B$3,TRUE,$B$4) -> Neither
B140: Both | AO140: Visitor 138 | AP140: 1 | AQ140: 1 | AR140: =_xlfn.IFS(SUM(AP140:AQ140)=2,$B$5,SUM(AP140:AQ140)=0,$B$6,AND(AP140=1,AQ140=0),$B$3,TRUE,$B$4) -> Both
B141: Neither | AO141: Visitor 139 | AP141: 1 | AQ141: 1 | AR141: =_xlfn.IFS(SUM(AP141:AQ141)=2,$B$5,SUM(AP141:AQ141)=0,$B$6,AND(AP141=1,AQ141=0),$B$3,TRUE,$B$4) -> Both
B142: Both | AO142: Visitor 140 | AP142: 0 | AQ142: 0 | AR142: =_xlfn.IFS(SUM(AP142:AQ142)=2,$B$5,SUM(AP142:AQ142)=0,$B$6,AND(AP142=1,AQ142=0),$B$3,TRUE,$B$4) -> Neither
B143: Both | AO143: Visitor 141 | AP143: 0 | AQ143: 1 | AR143: =_xlfn.IFS(SUM(AP143:AQ143)=2,$B$5,SUM(AP143:AQ143)=0,$B$6,AND(AP143=1,AQ143=0),$B$3,TRUE,$B$4) -> Only Pike's Place Market
B144: Both | AO144: Visitor 142 | AP144: 1 | AQ144: 1 | AR144: =_xlfn.IFS(SUM(AP144:AQ144)=2,$B$5,SUM(AP144:AQ144)=0,$B$6,AND(AP144=1,AQ144=0),$B$3,TRUE,$B$4) -> Both
B145: Neither | AO145: Visitor 143 | AP145: 0 | AQ145: 1 | AR145: =_xlfn.IFS(SUM(AP145:AQ145)=2,$B$5,SUM(AP145:AQ145)=0,$B$6,AND(AP145=1,AQ145=0),$B$3,TRUE,$B$4) -> Only Pike's Place Market
B146: Both | AO146: Visitor 144 | AP146: 1 | AQ146: 1 | AR146: =_xlfn.IFS(SUM(AP146:AQ146)=2,$B$5,SUM(AP146:AQ146)=0,$B$6,AND(AP146=1,AQ146=0),$B$3,TRUE,$B$4) -> Both
B147: Both | AO147: Visitor 145 | AP147: 1 | AQ147: 0 | AR147: =_xlfn.IFS(SUM(AP147:AQ147)=2,$B$5,SUM(AP147:AQ147)=0,$B$6,AND(AP147=1,AQ147=0),$B$3,TRUE,$B$4) -> Only Space Needle
B148: Neither | AO148: Visitor 146 | AP148: 0 | AQ148: 1 | AR148: =_xlfn.IFS(SUM(AP148:AQ148)=2,$B$5,SUM(AP148:AQ148)=0,$B$6,AND(AP148=1,AQ148=0),$B$3,TRUE,$B$4) -> Only Pike's Place Market
B149: Only Pike's Place Market | AO149: Visitor 147 | AP149: 0 | AQ149: 1 | AR149: =_xlfn.IFS(SUM(AP149:AQ149)=2,$B$5,SUM(AP149:AQ149)=0,$B$6,AND(AP149=1,AQ149=0),$B$3,TRUE,$B$4) -> Only Pike's Place Market
B150: Both | AO150: Visitor 148 | AP150: 0 | AQ150: 1 | AR150: =_xlfn.IFS(SUM(AP150:AQ150)=2,$B$5,SUM(AP150:AQ150)=0,$B$6,AND(AP150=1,AQ150=0),$B$3,TRUE,$B$4) -> Only Pike's Place Market
B151: Only Pike's Place Market | AO151: Visitor 149 | AP151: 1 | AQ151: 1 | AR151: =_xlfn.IFS(SUM(AP151:AQ151)=2,$B$5,SUM(AP151:AQ151)=0,$B$6,AND(AP151=1,AQ151=0),$B$3,TRUE,$B$4) -> Both
B152: Both | AO152: Visitor 150 | AP152: 1 | AQ152: 1 | AR152: =_xlfn.IFS(SUM(AP152:AQ152)=2,$B$5,SUM(AP152:AQ152)=0,$B$6,AND(AP152=1,AQ152=0),$B$3,TRUE,$B$4) -> Both
B153: Only Space Needle | AO153: Visitor 151 | AP153: 0 | AQ153: 1 | AR153: =_xlfn.IFS(SUM(AP153:AQ153)=2,$B$5,SUM(AP153:AQ153)=0,$B$6,AND(AP153=1,AQ153=0),$B$3,TRUE,$B$4) -> Only Pike's Place Market
B154: Only Pike's Place Market | AO154: Visitor 152 | AP154: 0 | AQ154: 0 | AR154: =_xlfn.IFS(SUM(AP154:AQ154)=2,$B$5,SUM(AP154:AQ154)=0,$B$6,AND(AP154=1,AQ154=0),$B$3,TRUE,$B$4) -> Neither
B155: Only Pike's Place Market | AO155: Visitor 153 | AP155: 1 | AQ155: 1 | AR155: =_xlfn.IFS(SUM(AP155:AQ155)=2,$B$5,SUM(AP155:AQ155)=0,$B$6,AND(AP155=1,AQ155=0),$B$3,TRUE,$B$4) -> Both
B156: Only Pike's Place Market | AO156: Visitor 154 | AP156: 1 | AQ156: 1 | AR156: =_xlfn.IFS(SUM(AP156:AQ156)=2,$B$5,SUM(AP156:AQ156)=0,$B$6,AND(AP156=1,AQ156=0),$B$3,TRUE,$B$4) -> Both
B157: Both | AO157: Visitor 155 | AP157: 1 | AQ157: 0 | AR157: =_xlfn.IFS(SUM(AP157:AQ157)=2,$B$5,SUM(AP157:AQ157)=0,$B$6,AND(AP157=1,AQ157=0),$B$3,TRUE,$B$4) -> Only Space Needle
B158: Both | AO158: Visitor 156 | AP158: 0 | AQ158: 1 | AR158: =_xlfn.IFS(SUM(AP158:AQ158)=2,$B$5,SUM(AP158:AQ158)=0,$B$6,AND(AP158=1,AQ158=0),$B$3,TRUE,$B$4) -> Only Pike's Place Market
B159: Only Pike's Place Market | AO159: Visitor 157 | AP159: 1 | AQ159: 1 | AR159: =_xlfn.IFS(SUM(AP159:AQ159)=2,$B$5,SUM(AP159:AQ159)=0,$B$6,AND(AP159=1,AQ159=0),$B$3,TRUE,$B$4) -> Both
B160: Neither | AO160: Visitor 158 | AP160: 0 | AQ160: 0 | AR160: =_xlfn.IFS(SUM(AP160:AQ160)=2,$B$5,SUM(AP160:AQ160)=0,$B$6,AND(AP160=1,AQ160=0),$B$3,TRUE,$B$4) -> Neither
B161: Both | AO161: Visitor 159 | AP161: 0 | AQ161: 0 | AR161: =_xlfn.IFS(SUM(AP161:AQ161)=2,$B$5,SUM(AP161:AQ161)=0,$B$6,AND(AP161=1,AQ161=0),$B$3,TRUE,$B$4) -> Neither
B162: Both | AO162: Visitor 160 | AP162: 0 | AQ162: 1 | AR162: =_xlfn.IFS(SUM(AP162:AQ162)=2,$B$5,SUM(AP162:AQ162)=0,$B$6,AND(AP162=1,AQ162=0),$B$3,TRUE,$B$4) -> Only Pike's Place Market
B163: Only Space Needle | AO163: Visitor 161 | AP163: 1 | AQ163: 1 | AR163: =_xlfn.IFS(SUM(AP163:AQ163)=2,$B$5,SUM(AP163:AQ163)=0,$B$6,AND(AP163=1,AQ163=0),$B$3,TRUE,$B$4) -> Both
B164: Only Pike's Place Market | AO164: Visitor 162 | AP164: 0 | AQ164: 0 | AR164: =_xlfn.IFS(SUM(AP164:AQ164)=2,$B$5,SUM(AP164:AQ164)=0,$B$6,AND(AP164=1,AQ164=0),$B$3,TRUE,$B$4) -> Neither
B165: Both | AO165: Visitor 163 | AP165: 1 | AQ165: 1 | AR165: =_xlfn.IFS(SUM(AP165:AQ165)=2,$B$5,SUM(AP165:AQ165)=0,$B$6,AND(AP165=1,AQ165=0),$B$3,TRUE,$B$4) -> Both
B166: Neither | AO166: Visitor 164 | AP166: 0 | AQ166: 1 | AR166: =_xlfn.IFS(SUM(AP166:AQ166)=2,$B$5,SUM(AP166:AQ166)=0,$B$6,AND(AP166=1,AQ166=0),$B$3,TRUE,$B$4) -> Only Pike's Place Market
B167: Neither | AO167: Visitor 165 | AP167: 1 | AQ167: 1 | AR167: =_xlfn.IFS(SUM(AP167:AQ167)=2,$B$5,SUM(AP167:AQ167)=0,$B$6,AND(AP167=1,AQ167=0),$B$3,TRUE,$B$4) -> Both
B168: Only Pike's Place Market | AO168: Visitor 166 | AP168: 0 | AQ168: 0 | AR168: =_xlfn.IFS(SUM(AP168:AQ168)=2,$B$5,SUM(AP168:AQ168)=0,$B$6,AND(AP168=1,AQ168=0),$B$3,TRUE,$B$4) -> Neither
B169: Both | AO169: Visitor 167 | AP169: 0 | AQ169: 0 | AR169: =_xlfn.IFS(SUM(AP169:AQ169)=2,$B$5,SUM(AP169:AQ169)=0,$B$6,AND(AP169=1,AQ169=0),$B$3,TRUE,$B$4) -> Neither
B170: Neither | AO170: Visitor 168 | AP170: 0 | AQ170: 0 | AR170: =_xlfn.IFS(SUM(AP170:AQ170)=2,$B$5,SUM(AP170:AQ170)=0,$B$6,AND(AP170=1,AQ170=0),$B$3,TRUE,$B$4) -> Neither
B171: Both | AO171: Visitor 169 | AP171: 0 | AQ171: 1 | AR171: =_xlfn.IFS(SUM(AP171:AQ171)=2,$B$5,SUM(AP171:AQ171)=0,$B$6,AND(AP171=1,AQ171=0),$B$3,TRUE,$B$4) -> Only Pike's Place Market
B172: Only Pike's Place Market | AO172: Visitor 170 | AP172: 1 | AQ172: 1 | AR172: =_xlfn.IFS(SUM(AP172:AQ172)=2,$B$5,SUM(AP172:AQ172)=0,$B$6,AND(AP172=1,AQ172=0),$B$3,TRUE,$B$4) -> Both
B173: Both | AO173: Visitor 171 | AP173: 0 | AQ173: 0 | AR173: =_xlfn.IFS(SUM(AP173:AQ173)=2,$B$5,SUM(AP173:AQ173)=0,$B$6,AND(AP173=1,AQ173=0),$B$3,TRUE,$B$4) -> Neither
B174: Neither | AO174: Visitor 172 | AP174: 0 | AQ174: 0 | AR174: =_xlfn.IFS(SUM(AP174:AQ174)=2,$B$5,SUM(AP174:AQ174)=0,$B$6,AND(AP174=1,AQ174=0),$B$3,TRUE,$B$4) -> Neither
B175: Neither | AO175: Visitor 173 | AP175: 1 | AQ175: 1 | AR175: =_xlfn.IFS(SUM(AP175:AQ175)=2,$B$5,SUM(AP175:AQ175)=0,$B$6,AND(AP175=1,AQ175=0),$B$3,TRUE,$B$4) -> Both
B176: Neither | AO176: Visitor 174 | AP176: 0 | AQ176: 0 | AR176: =_xlfn.IFS(SUM(AP176:AQ176)=2,$B$5,SUM(AP176:AQ176)=0,$B$6,AND(AP176=1,AQ176=0),$B$3,TRUE,$B$4) -> Neither
B177: Only Pike's Place Market | AO177: Visitor 175 | AP177: 1 | AQ177: 1 | AR177: =_xlfn.IFS(SUM(AP177:AQ177)=2,$B$5,SUM(AP177:AQ177)=0,$B$6,AND(AP177=1,AQ177=0),$B$3,TRUE,$B$4) -> Both
B178: Both | AO178: Visitor 176 | AP178: 0 | AQ178: 1 | AR178: =_xlfn.IFS(SUM(AP178:AQ178)=2,$B$5,SUM(AP178:AQ178)=0,$B$6,AND(AP178=1,AQ178=0),$B$3,TRUE,$B$4) -> Only Pike's Place Market
B179: Neither | AO179: Visitor 177 | AP179: 0 | AQ179: 1 | AR179: =_xlfn.IFS(SUM(AP179:AQ179)=2,$B$5,SUM(AP179:AQ179)=0,$B$6,AND(AP179=1,AQ179=0),$B$3,TRUE,$B$4) -> Only Pike's Place Market
B180: Neither | AO180: Visitor 178 | AP180: 0 | AQ180: 1 | AR180: =_xlfn.IFS(SUM(AP180:AQ180)=2,$B$5,SUM(AP180:AQ180)=0,$B$6,AND(AP180=1,AQ180=0),$B$3,TRUE,$B$4) -> Only Pike's Place Market
B181: Both | AO181: Visitor 179 | AP181: 1 | AQ181: 1 | AR181: =_xlfn.IFS(SUM(AP181:AQ181)=2,$B$5,SUM(AP181:AQ181)=0,$B$6,AND(AP181=1,AQ181=0),$B$3,TRUE,$B$4) -> Both
B182: Neither | AO182: Visitor 180 | AP182: 1 | AQ182: 1 | AR182: =_xlfn.IFS(SUM(AP182:AQ182)=2,$B$5,SUM(AP182:AQ182)=0,$B$6,AND(AP182=1,AQ182=0),$B$3,TRUE,$B$4) -> Both
B183: Both | AO183: Visitor 181 | AP183: 0 | AQ183: 0 | AR183: =_xlfn.IFS(SUM(AP183:AQ183)=2,$B$5,SUM(AP183:AQ183)=0,$B$6,AND(AP183=1,AQ183=0),$B$3,TRUE,$B$4) -> Neither
B184: Only Pike's Place Market | AO184: Visitor 182 | AP184: 0 | AQ184: 0 | AR184: =_xlfn.IFS(SUM(AP184:AQ184)=2,$B$5,SUM(AP184:AQ184)=0,$B$6,AND(AP184=1,AQ184=0),$B$3,TRUE,$B$4) -> Neither
B185: Only Pike's Place Market | AO185: Visitor 183 | AP185: 1 | AQ185: 1 | AR185: =_xlfn.IFS(SUM(AP185:AQ185)=2,$B$5,SUM(AP185:AQ185)=0,$B$6,AND(AP185=1,AQ185=0),$B$3,TRUE,$B$4) -> Both
B186: Only Pike's Place Market | AO186: Visitor 184 | AP186: 0 | AQ186: 0 | AR186: =_xlfn.IFS(SUM(AP186:AQ186)=2,$B$5,SUM(AP186:AQ186)=0,$B$6,AND(AP186=1,AQ186=0),$B$3,TRUE,$B$4) -> Neither
B187: Both | AO187: Visitor 185 | AP187: 1 | AQ187: 1 | AR187: =_xlfn.IFS(SUM(AP187:AQ187)=2,$B$5,SUM(AP187:AQ187)=0,$B$6,AND(AP187=1,AQ187=0),$B$3,TRUE,$B$4) -> Both
B188: Both | AO188: Visitor 186 | AP188: 0 | AQ188: 0 | AR188: =_xlfn.IFS(SUM(AP188:AQ188)=2,$B$5,SUM(AP188:AQ188)=0,$B$6,AND(AP188=1,AQ188=0),$B$3,TRUE,$B$4) -> Neither
B189: Neither | AO189: Visitor 187 | AP189: 1 | AQ189: 0 | AR189: =_xlfn.IFS(SUM(AP189:AQ189)=2,$B$5,SUM(AP189:AQ189)=0,$B$6,AND(AP189=1,AQ189=0),$B$3,TRUE,$B$4) -> Only Space Needle
B190: Neither | AO190: Visitor 188 | AP190: 0 | AQ190: 1 | AR190: =_xlfn.IFS(SUM(AP190:AQ190)=2,$B$5,SUM(AP190:AQ190)=0,$B$6,AND(AP190=1,AQ190=0),$B$3,TRUE,$B$4) -> Only Pike's Place Market
B191: Both | AO191: Visitor 189 | AP191: 1 | AQ191: 1 | AR191: =_xlfn.IFS(SUM(AP191:AQ191)=2,$B$5,SUM(AP191:AQ191)=0,$B$6,AND(AP191=1,AQ191=0),$B$3,TRUE,$B$4) -> Both
B192: Neither | AO192: Visitor 190 | AP192: 0 | AQ192: 0 | AR192: =_xlfn.IFS(SUM(AP192:AQ192)=2,$B$5,SUM(AP192:AQ192)=0,$B$6,AND(AP192=1,AQ192=0),$B$3,TRUE,$B$4) -> Neither
B193: Both | AO193: Visitor 191 | AP193: 1 | AQ193: 1 | AR193: =_xlfn.IFS(SUM(AP193:AQ193)=2,$B$5,SUM(AP193:AQ193)=0,$B$6,AND(AP193=1,AQ193=0),$B$3,TRUE,$B$4) -> Both
B194: Neither | AO194: Visitor 192 | AP194: 0 | AQ194: 1 | AR194: =_xlfn.IFS(SUM(AP194:AQ194)=2,$B$5,SUM(AP194:AQ194)=0,$B$6,AND(AP194=1,AQ194=0),$B$3,TRUE,$B$4) -> Only Pike's Place Market
B195: Only Space Needle | AO195: Visitor 193 | AP195: 1 | AQ195: 1 | AR195: =_xlfn.IFS(SUM(AP195:AQ195)=2,$B$5,SUM(AP195:AQ195)=0,$B$6,AND(AP195=1,AQ195=0),$B$3,TRUE,$B$4) -> Both
B196: Only Pike's Place Market | AO196: Visitor 194 | AP196: 1 | AQ196: 1 | AR196: =_xlfn.IFS(SUM(AP196:AQ196)=2,$B$5,SUM(AP196:AQ196)=0,$B$6,AND(AP196=1,AQ196=0),$B$3,TRUE,$B$4) -> Both
B197: Both | AO197: Visitor 195 | AP197: 0 | AQ197: 0 | AR197: =_xlfn.IFS(SUM(AP197:AQ197)=2,$B$5,SUM(AP197:AQ197)=0,$B$6,AND(AP197=1,AQ197=0),$B$3,TRUE,$B$4) -> Neither
B198: Neither | AO198: Visitor 196 | AP198: 0 | AQ198: 1 | AR198: =_xlfn.IFS(SUM(AP198:AQ198)=2,$B$5,SUM(AP198:AQ198)=0,$B$6,AND(AP198=1,AQ198=0),$B$3,TRUE,$B$4) -> Only Pike's Place Market
B199: Both | AO199: Visitor 197 | AP199: 1 | AQ199: 1 | AR199: =_xlfn.IFS(SUM(AP199:AQ199)=2,$B$5,SUM(AP199:AQ199)=0,$B$6,AND(AP199=1,AQ199=0),$B$3,TRUE,$B$4) -> Both
B200: Only Pike's Place Market | AO200: Visitor 198 | AP200: 0 | AQ200: 1 | AR200: =_xlfn.IFS(SUM(AP200:AQ200)=2,$B$5,SUM(AP200:AQ200)=0,$B$6,AND(AP200=1,AQ200=0),$B$3,TRUE,$B$4) -> Only Pike's Place Market
B201: Both | AO201: Visitor 199 | AP201: 1 | AQ201: 1 | AR201: =_xlfn.IFS(SUM(AP201:AQ201)=2,$B$5,SUM(AP201:AQ201)=0,$B$6,AND(AP201=1,AQ201=0),$B$3,TRUE,$B$4) -> Both
... 7 more rows

Sheet Seattle(2an)
B2: Survey Question: For Seattle's two tourist sites Space Needle and Pike's Place Market, select one of the following choices: | AO2: Seattle Visitor | AP2: Space Needle | AQ2: Pike's Place Market | AR2: Where Did They Visit?
B3: Only Space Needle | AO3: Visitor 1 | AP3: 1 | AQ3: 1 | AR3: =_xlfn.IFS(SUM(AP3:AQ3)=2,$B$5,SUM(AP3:AQ3)=0,$B$6,AND(AP3=1,AQ3=0),$B$3,TRUE,$B$4) -> Both
B4: Only Pike's Place Market | AO4: Visitor 11 | AP4: 0 | AQ4: 1 | AR4: =_xlfn.IFS(SUM(AP4:AQ4)=2,$B$5,SUM(AP4:AQ4)=0,$B$6,AND(AP4=1,AQ4=0),$B$3,TRUE,$B$4) -> Only Pike's Place Market
B5: Both | AO5: Visitor 2 | AP5: 0 | AQ5: 0 | AR5: =_xlfn.IFS(SUM(AP5:AQ5)=2,$B$5,SUM(AP5:AQ5)=0,$B$6,AND(AP5=1,AQ5=0),$B$3,TRUE,$B$4) -> Neither
B6: Neither | AO6: Visitor 3 | AP6: 1 | AQ6: 1 | AR6: =_xlfn.IFS(SUM(AP6:AQ6)=2,$B$5,SUM(AP6:AQ6)=0,$B$6,AND(AP6=1,AQ6=0),$B$3,TRUE,$B$4) -> Both
AO7: Visitor 4 | AP7: 1 | AQ7: 1 | AR7: =_xlfn.IFS(SUM(AP7:AQ7)=2,$B$5,SUM(AP7:AQ7)=0,$B$6,AND(AP7=1,AQ7=0),$B$3,TRUE,$B$4) -> Both
B8: Results | D8: Visted in Seattle | E8: Frequency | G8: P(Space Needle) | H8: =(E12+E9)/E13 -> 0.45 | J8: =_xlfn.IFNA(_xlfn.FORMULATEXT(H8),"") -> =(E12+E9)/E13 | AO8: Visitor 5 | AP8: 1 | AQ8: 1 | AR8: =_xlfn.IFS(SUM(AP8:AQ8)=2,$B$5,SUM(AP8:AQ8)=0,$B$6,AND(AP8=1,AQ8=0),$B$3,TRUE,$B$4) -> Both
B9: Both | D9: Both | E9: 78 | G9: P(Pike's Place Market) | H9: =(E11+E9)/E13 -> 0.65 | J9: =(E11+E9)/E13 | AO9: Visitor 6 | AP9: 1 | AQ9: 0 | AR9: =_xlfn.IFS(SUM(AP9:AQ9)=2,$B$5,SUM(AP9:AQ9)=0,$B$6,AND(AP9=1,AQ9=0),$B$3,TRUE,$B$4) -> Only Space Needle
B10: Only Pike's Place Market | D10: Neither | E10: 58 | G10: P(Space Needle AND Pike's Place Market) | H10: =E9/E13 -> 0.39 | J10: =E9/E13 | AO10: Visitor 7 | AP10: 0 | AQ10: 1 | AR10: =_xlfn.IFS(SUM(AP10:AQ10)=2,$B$5,SUM(AP10:AQ10)=0,$B$6,AND(AP10=1,AQ10=0),$B$3,TRUE,$B$4) -> Only Pike's Place Market
B11: Neither | D11: Only Pike's Place Market | E11: 52 | G11: P(Space Needle OR Pike's Place Market) | H11: =H8+H9-H10 -> 0.71 | J11: =_xlfn.IFNA(_xlfn.FORMULATEXT(H11),"") -> =H8+H9-H10 | AO11: Visitor 8 | AP11: 1 | AQ11: 1 | AR11: =_xlfn.IFS(SUM(AP11:AQ11)=2,$B$5,SUM(AP11:AQ11)=0,$B$6,AND(AP11=1,AQ11=0),$B$3,TRUE,$B$4) -> Both
B12: Both | D12: Only Space Needle | E12: 12 | AO12: Visitor 9 | AP12: 1 | AQ12: 1 | AR12: =_xlfn.IFS(SUM(AP12:AQ12)=2,$B$5,SUM(AP12:AQ12)=0,$B$6,AND(AP12=1,AQ12=0),$B$3,TRUE,$B$4) -> Both
B13: Both | D13: Grand Total | E13: 200 | AO13: Visitor 10 | AP13: 0 | AQ13: 1 | AR13: =_xlfn.IFS(SUM(AP13:AQ13)=2,$B$5,SUM(AP13:AQ13)=0,$B$6,AND(AP13=1,AQ13=0),$B$3,TRUE,$B$4) -> Only Pike's Place Market
B14: Both | AO14: Visitor 12 | AP14: 0 | AQ14: 1 | AR14: =_xlfn.IFS(SUM(AP14:AQ14)=2,$B$5,SUM(AP14:AQ14)=0,$B$6,AND(AP14=1,AQ14=0),$B$3,TRUE,$B$4) -> Only Pike's Place Market
B15: Only Space Needle | AO15: Visitor 13 | AP15: 1 | AQ15: 1 | AR15: =_xlfn.IFS(SUM(AP15:AQ15)=2,$B$5,SUM(AP15:AQ15)=0,$B$6,AND(AP15=1,AQ15=0),$B$3,TRUE,$B$4) -> Both
B16: Only Pike's Place Market | AO16: Visitor 14 | AP16: 0 | AQ16: 1 | AR16: =_xlfn.IFS(SUM(AP16:AQ16)=2,$B$5,SUM(AP16:AQ16)=0,$B$6,AND(AP16=1,AQ16=0),$B$3,TRUE,$B$4) -> Only Pike's Place Market
B17: Both | AO17: Visitor 15 | AP17: 1 | AQ17: 1 | AR17: =_xlfn.IFS(SUM(AP17:AQ17)=2,$B$5,SUM(AP17:AQ17)=0,$B$6,AND(AP17=1,AQ17=0),$B$3,TRUE,$B$4) -> Both
B18: Both | AO18: Visitor 16 | AP18: 1 | AQ18: 1 | AR18: =_xlfn.IFS(SUM(AP18:AQ18)=2,$B$5,SUM(AP18:AQ18)=0,$B$6,AND(AP18=1,AQ18=0),$B$3,TRUE,$B$4) -> Both
B19: Only Pike's Place Market | AO19: Visitor 17 | AP19: 1 | AQ19: 1 | AR19: =_xlfn.IFS(SUM(AP19:AQ19)=2,$B$5,SUM(AP19:AQ19)=0,$B$6,AND(AP19=1,AQ19=0),$B$3,TRUE,$B$4) -> Both
B20: Only Pike's Place Market | AO20: Visitor 18 | AP20: 0 | AQ20: 0 | AR20: =_xlfn.IFS(SUM(AP20:AQ20)=2,$B$5,SUM(AP20:AQ20)=0,$B$6,AND(AP20=1,AQ20=0),$B$3,TRUE,$B$4) -> Neither
B21: Both | AO21: Visitor 19 | AP21: 0 | AQ21: 0 | AR21: =_xlfn.IFS(SUM(AP21:AQ21)=2,$B$5,SUM(AP21:AQ21)=0,$B$6,AND(AP21=1,AQ21=0),$B$3,TRUE,$B$4) -> Neither
B22: Only Pike's Place Market | AO22: Visitor 20 | AP22: 0 | AQ22: 1 | AR22: =_xlfn.IFS(SUM(AP22:AQ22)=2,$B$5,SUM(AP22:AQ22)=0,$B$6,AND(AP22=1,AQ22=0),$B$3,TRUE,$B$4) -> Only Pike's Place Market
B23: Both | AO23: Visitor 21 | AP23: 0 | AQ23: 0 | AR23: =_xlfn.IFS(SUM(AP23:AQ23)=2,$B$5,SUM(AP23:AQ23)=0,$B$6,AND(AP23=1,AQ23=0),$B$3,TRUE,$B$4) -> Neither
B24: Both | AO24: Visitor 22 | AP24: 0 | AQ24: 0 | AR24: =_xlfn.IFS(SUM(AP24:AQ24)=2,$B$5,SUM(AP24:AQ24)=0,$B$6,AND(AP24=1,AQ24=0),$B$3,TRUE,$B$4) -> Neither
B25: Both | AO25: Visitor 23 | AP25: 1 | AQ25: 1 | AR25: =_xlfn.IFS(SUM(AP25:AQ25)=2,$B$5,SUM(AP25:AQ25)=0,$B$6,AND(AP25=1,AQ25=0),$B$3,TRUE,$B$4) -> Both
B26: Neither | AO26: Visitor 24 | AP26: 0 | AQ26: 1 | AR26: =_xlfn.IFS(SUM(AP26:AQ26)=2,$B$5,SUM(AP26:AQ26)=0,$B$6,AND(AP26=1,AQ26=0),$B$3,TRUE,$B$4) -> Only Pike's Place Market
B27: Neither | AO27: Visitor 25 | AP27: 0 | AQ27: 1 | AR27: =_xlfn.IFS(SUM(AP27:AQ27)=2,$B$5,SUM(AP27:AQ27)=0,$B$6,AND(AP27=1,AQ27=0),$B$3,TRUE,$B$4) -> Only Pike's Place Market
B28: Only Pike's Place Market | AO28: Visitor 26 | AP28: 1 | AQ28: 1 | AR28: =_xlfn.IFS(SUM(AP28:AQ28)=2,$B$5,SUM(AP28:AQ28)=0,$B$6,AND(AP28=1,AQ28=0),$B$3,TRUE,$B$4) -> Both
B29: Neither | AO29: Visitor 27 | AP29: 1 | AQ29: 1 | AR29: =_xlfn.IFS(SUM(AP29:AQ29)=2,$B$5,SUM(AP29:AQ29)=0,$B$6,AND(AP29=1,AQ29=0),$B$3,TRUE,$B$4) -> Both
B30: Neither | AO30: Visitor 28 | AP30: 0 | AQ30: 0 | AR30: =_xlfn.IFS(SUM(AP30:AQ30)=2,$B$5,SUM(AP30:AQ30)=0,$B$6,AND(AP30=1,AQ30=0),$B$3,TRUE,$B$4) -> Neither
B31: Both | AO31: Visitor 29 | AP31: 1 | AQ31: 1 | AR31: =_xlfn.IFS(SUM(AP31:AQ31)=2,$B$5,SUM(AP31:AQ31)=0,$B$6,AND(AP31=1,AQ31=0),$B$3,TRUE,$B$4) -> Both
B32: Only Pike's Place Market | AO32: Visitor 30 | AP32: 0 | AQ32: 1 | AR32: =_xlfn.IFS(SUM(AP32:AQ32)=2,$B$5,SUM(AP32:AQ32)=0,$B$6,AND(AP32=1,AQ32=0),$B$3,TRUE,$B$4) -> Only Pike's Place Market
B33: Only Pike's Place Market | AO33: Visitor 31 | AP33: 1 | AQ33: 1 | AR33: =_xlfn.IFS(SUM(AP33:AQ33)=2,$B$5,SUM(AP33:AQ33)=0,$B$6,AND(AP33=1,AQ33=0),$B$3,TRUE,$B$4) -> Both
B34: Both | AO34: Visitor 32 | AP34: 1 | AQ34: 1 | AR34: =_xlfn.IFS(SUM(AP34:AQ34)=2,$B$5,SUM(AP34:AQ34)=0,$B$6,AND(AP34=1,AQ34=0),$B$3,TRUE,$B$4) -> Both
B35: Both | AO35: Visitor 33 | AP35: 0 | AQ35: 1 | AR35: =_xlfn.IFS(SUM(AP35:AQ35)=2,$B$5,SUM(AP35:AQ35)=0,$B$6,AND(AP35=1,AQ35=0),$B$3,TRUE,$B$4) -> Only Pike's Place Market
B36: Neither | AO36: Visitor 34 | AP36: 1 | AQ36: 1 | AR36: =_xlfn.IFS(SUM(AP36:AQ36)=2,$B$5,SUM(AP36:AQ36)=0,$B$6,AND(AP36=1,AQ36=0),$B$3,TRUE,$B$4) -> Both
B37: Both | AO37: Visitor 35 | AP37: 1 | AQ37: 1 | AR37: =_xlfn.IFS(SUM(AP37:AQ37)=2,$B$5,SUM(AP37:AQ37)=0,$B$6,AND(AP37=1,AQ37=0),$B$3,TRUE,$B$4) -> Both
B38: Only Pike's Place Market | AO38: Visitor 36 | AP38: 1 | AQ38: 1 | AR38: =_xlfn.IFS(SUM(AP38:AQ38)=2,$B$5,SUM(AP38:AQ38)=0,$B$6,AND(AP38=1,AQ38=0),$B$3,TRUE,$B$4) -> Both
B39: Both | AO39: Visitor 37 | AP39: 0 | AQ39: 1 | AR39: =_xlfn.IFS(SUM(AP39:AQ39)=2,$B$5,SUM(AP39:AQ39)=0,$B$6,AND(AP39=1,AQ39=0),$B$3,TRUE,$B$4) -> Only Pike's Place Market
B40: Both | AO40: Visitor 38 | AP40: 1 | AQ40: 0 | AR40: =_xlfn.IFS(SUM(AP40:AQ40)=2,$B$5,SUM(AP40:AQ40)=0,$B$6,AND(AP40=1,AQ40=0),$B$3,TRUE,$B$4) -> Only Space Needle
B41: Only Pike's Place Market | AO41: Visitor 39 | AP41: 0 | AQ41: 0 | AR41: =_xlfn.IFS(SUM(AP41:AQ41)=2,$B$5,SUM(AP41:AQ41)=0,$B$6,AND(AP41=1,AQ41=0),$B$3,TRUE,$B$4) -> Neither
B42: Both | AO42: Visitor 40 | AP42: 0 | AQ42: 1 | AR42: =_xlfn.IFS(SUM(AP42:AQ42)=2,$B$5,SUM(AP42:AQ42)=0,$B$6,AND(AP42=1,AQ42=0),$B$3,TRUE,$B$4) -> Only Pike's Place Market
B43: Both | AO43: Visitor 41 | AP43: 1 | AQ43: 1 | AR43: =_xlfn.IFS(SUM(AP43:AQ43)=2,$B$5,SUM(AP43:AQ43)=0,$B$6,AND(AP43=1,AQ43=0),$B$3,TRUE,$B$4) -> Both
B44: Both | AO44: Visitor 42 | AP44: 0 | AQ44: 1 | AR44: =_xlfn.IFS(SUM(AP44:AQ44)=2,$B$5,SUM(AP44:AQ44)=0,$B$6,AND(AP44=1,AQ44=0),$B$3,TRUE,$B$4) -> Only Pike's Place Market
B45: Only Pike's Place Market | AO45: Visitor 43 | AP45: 0 | AQ45: 0 | AR45: =_xlfn.IFS(SUM(AP45:AQ45)=2,$B$5,SUM(AP45:AQ45)=0,$B$6,AND(AP45=1,AQ45=0),$B$3,TRUE,$B$4) -> Neither
B46: Only Space Needle | AO46: Visitor 44 | AP46: 0 | AQ46: 0 | AR46: =_xlfn.IFS(SUM(AP46:AQ46)=2,$B$5,SUM(AP46:AQ46)=0,$B$6,AND(AP46=1,AQ46=0),$B$3,TRUE,$B$4) -> Neither
B47: Neither | AO47: Visitor 45 | AP47: 0 | AQ47: 0 | AR47: =_xlfn.IFS(SUM(AP47:AQ47)=2,$B$5,SUM(AP47:AQ47)=0,$B$6,AND(AP47=1,AQ47=0),$B$3,TRUE,$B$4) -> Neither
B48: Only Pike's Place Market | AO48: Visitor 46 | AP48: 0 | AQ48: 1 | AR48: =_xlfn.IFS(SUM(AP48:AQ48)=2,$B$5,SUM(AP48:AQ48)=0,$B$6,AND(AP48=1,AQ48=0),$B$3,TRUE,$B$4) -> Only Pike's Place Market
B49: Both | AO49: Visitor 47 | AP49: 1 | AQ49: 1 | AR49: =_xlfn.IFS(SUM(AP49:AQ49)=2,$B$5,SUM(AP49:AQ49)=0,$B$6,AND(AP49=1,AQ49=0),$B$3,TRUE,$B$4) -> Both
B50: Only Pike's Place Market | AO50: Visitor 48 | AP50: 1 | AQ50: 0 | AR50: =_xlfn.IFS(SUM(AP50:AQ50)=2,$B$5,SUM(AP50:AQ50)=0,$B$6,AND(AP50=1,AQ50=0),$B$3,TRUE,$B$4) -> Only Space Needle
B51: Neither | AO51: Visitor 49 | AP51: 0 | AQ51: 1 | AR51: =_xlfn.IFS(SUM(AP51:AQ51)=2,$B$5,SUM(AP51:AQ51)=0,$B$6,AND(AP51=1,AQ51=0),$B$3,TRUE,$B$4) -> Only Pike's Place Market
B52: Neither | AO52: Visitor 50 | AP52: 0 | AQ52: 1 | AR52: =_xlfn.IFS(SUM(AP52:AQ52)=2,$B$5,SUM(AP52:AQ52)=0,$B$6,AND(AP52=1,AQ52=0),$B$3,TRUE,$B$4) -> Only Pike's Place Market
B53: Neither | AO53: Visitor 51 | AP53: 0 | AQ53: 0 | AR53: =_xlfn.IFS(SUM(AP53:AQ53)=2,$B$5,SUM(AP53:AQ53)=0,$B$6,AND(AP53=1,AQ53=0),$B$3,TRUE,$B$4) -> Neither
B54: Only Pike's Place Market | AO54: Visitor 52 | AP54: 0 | AQ54: 1 | AR54: =_xlfn.IFS(SUM(AP54:AQ54)=2,$B$5,SUM(AP54:AQ54)=0,$B$6,AND(AP54=1,AQ54=0),$B$3,TRUE,$B$4) -> Only Pike's Place Market
B55: Both | AO55: Visitor 53 | AP55: 0 | AQ55: 1 | AR55: =_xlfn.IFS(SUM(AP55:AQ55)=2,$B$5,SUM(AP55:AQ55)=0,$B$6,AND(AP55=1,AQ55=0),$B$3,TRUE,$B$4) -> Only Pike's Place Market
B56: Only Space Needle | AO56: Visitor 54 | AP56: 1 | AQ56: 1 | AR56: =_xlfn.IFS(SUM(AP56:AQ56)=2,$B$5,SUM(AP56:AQ56)=0,$B$6,AND(AP56=1,AQ56=0),$B$3,TRUE,$B$4) -> Both
B57: Only Pike's Place Market | AO57: Visitor 55 | AP57: 1 | AQ57: 1 | AR57: =_xlfn.IFS(SUM(AP57:AQ57)=2,$B$5,SUM(AP57:AQ57)=0,$B$6,AND(AP57=1,AQ57=0),$B$3,TRUE,$B$4) -> Both
B58: Only Pike's Place Market | AO58: Visitor 56 | AP58: 0 | AQ58: 1 | AR58: =_xlfn.IFS(SUM(AP58:AQ58)=2,$B$5,SUM(AP58:AQ58)=0,$B$6,AND(AP58=1,AQ58=0),$B$3,TRUE,$B$4) -> Only Pike's Place Market
B59: Neither | AO59: Visitor 57 | AP59: 0 | AQ59: 0 | AR59: =_xlfn.IFS(SUM(AP59:AQ59)=2,$B$5,SUM(AP59:AQ59)=0,$B$6,AND(AP59=1,AQ59=0),$B$3,TRUE,$B$4) -> Neither
B60: Only Pike's Place Market | AO60: Visitor 58 | AP60: 0 | AQ60: 0 | AR60: =_xlfn.IFS(SUM(AP60:AQ60)=2,$B$5,SUM(AP60:AQ60)=0,$B$6,AND(AP60=1,AQ60=0),$B$3,TRUE,$B$4) -> Neither
B61: Only Pike's Place Market | AO61: Visitor 59 | AP61: 0 | AQ61: 1 | AR61: =_xlfn.IFS(SUM(AP61:AQ61)=2,$B$5,SUM(AP61:AQ61)=0,$B$6,AND(AP61=1,AQ61=0),$B$3,TRUE,$B$4) -> Only Pike's Place Market
B62: Both | AO62: Visitor 60 | AP62: 0 | AQ62: 0 | AR62: =_xlfn.IFS(SUM(AP62:AQ62)=2,$B$5,SUM(AP62:AQ62)=0,$B$6,AND(AP62=1,AQ62=0),$B$3,TRUE,$B$4) -> Neither
B63: Both | AO63: Visitor 61 | AP63: 1 | AQ63: 1 | AR63: =_xlfn.IFS(SUM(AP63:AQ63)=2,$B$5,SUM(AP63:AQ63)=0,$B$6,AND(AP63=1,AQ63=0),$B$3,TRUE,$B$4) -> Both
B64: Only Pike's Place Market | AO64: Visitor 62 | AP64: 1 | AQ64: 0 | AR64: =_xlfn.IFS(SUM(AP64:AQ64)=2,$B$5,SUM(AP64:AQ64)=0,$B$6,AND(AP64=1,AQ64=0),$B$3,TRUE,$B$4) -> Only Space Needle
B65: Neither | AO65: Visitor 63 | AP65: 0 | AQ65: 1 | AR65: =_xlfn.IFS(SUM(AP65:AQ65)=2,$B$5,SUM(AP65:AQ65)=0,$B$6,AND(AP65=1,AQ65=0),$B$3,TRUE,$B$4) -> Only Pike's Place Market
B66: Neither | AO66: Visitor 64 | AP66: 1 | AQ66: 0 | AR66: =_xlfn.IFS(SUM(AP66:AQ66)=2,$B$5,SUM(AP66:AQ66)=0,$B$6,AND(AP66=1,AQ66=0),$B$3,TRUE,$B$4) -> Only Space Needle
B67: Only Pike's Place Market | AO67: Visitor 65 | AP67: 0 | AQ67: 1 | AR67: =_xlfn.IFS(SUM(AP67:AQ67)=2,$B$5,SUM(AP67:AQ67)=0,$B$6,AND(AP67=1,AQ67=0),$B$3,TRUE,$B$4) -> Only Pike's Place Market
B68: Neither | AO68: Visitor 66 | AP68: 1 | AQ68: 1 | AR68: =_xlfn.IFS(SUM(AP68:AQ68)=2,$B$5,SUM(AP68:AQ68)=0,$B$6,AND(AP68=1,AQ68=0),$B$3,TRUE,$B$4) -> Both
B69: Both | AO69: Visitor 67 | AP69: 1 | AQ69: 1 | AR69: =_xlfn.IFS(SUM(AP69:AQ69)=2,$B$5,SUM(AP69:AQ69)=0,$B$6,AND(AP69=1,AQ69=0),$B$3,TRUE,$B$4) -> Both
B70: Only Space Needle | AO70: Visitor 68 | AP70: 0 | AQ70: 1 | AR70: =_xlfn.IFS(SUM(AP70:AQ70)=2,$B$5,SUM(AP70:AQ70)=0,$B$6,AND(AP70=1,AQ70=0),$B$3,TRUE,$B$4) -> Only Pike's Place Market
B71: Only Pike's Place Market | AO71: Visitor 69 | AP71: 1 | AQ71: 0 | AR71: =_xlfn.IFS(SUM(AP71:AQ71)=2,$B$5,SUM(AP71:AQ71)=0,$B$6,AND(AP71=1,AQ71=0),$B$3,TRUE,$B$4) -> Only Space Needle
B72: Only Space Needle | AO72: Visitor 70 | AP72: 1 | AQ72: 1 | AR72: =_xlfn.IFS(SUM(AP72:AQ72)=2,$B$5,SUM(AP72:AQ72)=0,$B$6,AND(AP72=1,AQ72=0),$B$3,TRUE,$B$4) -> Both
B73: Only Pike's Place Market | AO73: Visitor 71 | AP73: 0 | AQ73: 0 | AR73: =_xlfn.IFS(SUM(AP73:AQ73)=2,$B$5,SUM(AP73:AQ73)=0,$B$6,AND(AP73=1,AQ73=0),$B$3,TRUE,$B$4) -> Neither
B74: Both | AO74: Visitor 72 | AP74: 1 | AQ74: 1 | AR74: =_xlfn.IFS(SUM(AP74:AQ74)=2,$B$5,SUM(AP74:AQ74)=0,$B$6,AND(AP74=1,AQ74=0),$B$3,TRUE,$B$4) -> Both
B75: Both | AO75: Visitor 73 | AP75: 0 | AQ75: 0 | AR75: =_xlfn.IFS(SUM(AP75:AQ75)=2,$B$5,SUM(AP75:AQ75)=0,$B$6,AND(AP75=1,AQ75=0),$B$3,TRUE,$B$4) -> Neither
B76: Only Pike's Place Market | AO76: Visitor 74 | AP76: 1 | AQ76: 1 | AR76: =_xlfn.IFS(SUM(AP76:AQ76)=2,$B$5,SUM(AP76:AQ76)=0,$B$6,AND(AP76=1,AQ76=0),$B$3,TRUE,$B$4) -> Both
B77: Only Space Needle | AO77: Visitor 75 | AP77: 0 | AQ77: 0 | AR77: =_xlfn.IFS(SUM(AP77:AQ77)=2,$B$5,SUM(AP77:AQ77)=0,$B$6,AND(AP77=1,AQ77=0),$B$3,TRUE,$B$4) -> Neither
B78: Both | AO78: Visitor 76 | AP78: 0 | AQ78: 1 | AR78: =_xlfn.IFS(SUM(AP78:AQ78)=2,$B$5,SUM(AP78:AQ78)=0,$B$6,AND(AP78=1,AQ78=0),$B$3,TRUE,$B$4) -> Only Pike's Place Market
B79: Neither | AO79: Visitor 77 | AP79: 1 | AQ79: 1 | AR79: =_xlfn.IFS(SUM(AP79:AQ79)=2,$B$5,SUM(AP79:AQ79)=0,$B$6,AND(AP79=1,AQ79=0),$B$3,TRUE,$B$4) -> Both
B80: Both | AO80: Visitor 78 | AP80: 1 | AQ80: 1 | AR80: =_xlfn.IFS(SUM(AP80:AQ80)=2,$B$5,SUM(AP80:AQ80)=0,$B$6,AND(AP80=1,AQ80=0),$B$3,TRUE,$B$4) -> Both
B81: Neither | AO81: Visitor 79 | AP81: 1 | AQ81: 1 | AR81: =_xlfn.IFS(SUM(AP81:AQ81)=2,$B$5,SUM(AP81:AQ81)=0,$B$6,AND(AP81=1,AQ81=0),$B$3,TRUE,$B$4) -> Both
B82: Both | AO82: Visitor 80 | AP82: 0 | AQ82: 0 | AR82: =_xlfn.IFS(SUM(AP82:AQ82)=2,$B$5,SUM(AP82:AQ82)=0,$B$6,AND(AP82=1,AQ82=0),$B$3,TRUE,$B$4) -> Neither
B83: Neither | AO83: Visitor 81 | AP83: 1 | AQ83: 1 | AR83: =_xlfn.IFS(SUM(AP83:AQ83)=2,$B$5,SUM(AP83:AQ83)=0,$B$6,AND(AP83=1,AQ83=0),$B$3,TRUE,$B$4) -> Both
B84: Only Pike's Place Market | AO84: Visitor 82 | AP84: 1 | AQ84: 1 | AR84: =_xlfn.IFS(SUM(AP84:AQ84)=2,$B$5,SUM(AP84:AQ84)=0,$B$6,AND(AP84=1,AQ84=0),$B$3,TRUE,$B$4) -> Both
B85: Both | AO85: Visitor 83 | AP85: 0 | AQ85: 0 | AR85: =_xlfn.IFS(SUM(AP85:AQ85)=2,$B$5,SUM(AP85:AQ85)=0,$B$6,AND(AP85=1,AQ85=0),$B$3,TRUE,$B$4) -> Neither
B86: Both | AO86: Visitor 84 | AP86: 0 | AQ86: 0 | AR86: =_xlfn.IFS(SUM(AP86:AQ86)=2,$B$5,SUM(AP86:AQ86)=0,$B$6,AND(AP86=1,AQ86=0),$B$3,TRUE,$B$4) -> Neither
B87: Both | AO87: Visitor 85 | AP87: 1 | AQ87: 1 | AR87: =_xlfn.IFS(SUM(AP87:AQ87)=2,$B$5,SUM(AP87:AQ87)=0,$B$6,AND(AP87=1,AQ87=0),$B$3,TRUE,$B$4) -> Both
B88: Neither | AO88: Visitor 86 | AP88: 0 | AQ88: 0 | AR88: =_xlfn.IFS(SUM(AP88:AQ88)=2,$B$5,SUM(AP88:AQ88)=0,$B$6,AND(AP88=1,AQ88=0),$B$3,TRUE,$B$4) -> Neither
B89: Both | AO89: Visitor 87 | AP89: 1 | AQ89: 1 | AR89: =_xlfn.IFS(SUM(AP89:AQ89)=2,$B$5,SUM(AP89:AQ89)=0,$B$6,AND(AP89=1,AQ89=0),$B$3,TRUE,$B$4) -> Both
B90: Both | AO90: Visitor 88 | AP90: 0 | AQ90: 1 | AR90: =_xlfn.IFS(SUM(AP90:AQ90)=2,$B$5,SUM(AP90:AQ90)=0,$B$6,AND(AP90=1,AQ90=0),$B$3,TRUE,$B$4) -> Only Pike's Place Market
B91: Neither | AO91: Visitor 89 | AP91: 1 | AQ91: 1 | AR91: =_xlfn.IFS(SUM(AP91:AQ91)=2,$B$5,SUM(AP91:AQ91)=0,$B$6,AND(AP91=1,AQ91=0),$B$3,TRUE,$B$4) -> Both
B92: Neither | AO92: Visitor 90 | AP92: 1 | AQ92: 1 | AR92: =_xlfn.IFS(SUM(AP92:AQ92)=2,$B$5,SUM(AP92:AQ92)=0,$B$6,AND(AP92=1,AQ92=0),$B$3,TRUE,$B$4) -> Both
B93: Both | AO93: Visitor 91 | AP93: 0 | AQ93: 1 | AR93: =_xlfn.IFS(SUM(AP93:AQ93)=2,$B$5,SUM(AP93:AQ93)=0,$B$6,AND(AP93=1,AQ93=0),$B$3,TRUE,$B$4) -> Only Pike's Place Market
B94: Neither | AO94: Visitor 92 | AP94: 0 | AQ94: 1 | AR94: =_xlfn.IFS(SUM(AP94:AQ94)=2,$B$5,SUM(AP94:AQ94)=0,$B$6,AND(AP94=1,AQ94=0),$B$3,TRUE,$B$4) -> Only Pike's Place Market
B95: Both | AO95: Visitor 93 | AP95: 0 | AQ95: 0 | AR95: =_xlfn.IFS(SUM(AP95:AQ95)=2,$B$5,SUM(AP95:AQ95)=0,$B$6,AND(AP95=1,AQ95=0),$B$3,TRUE,$B$4) -> Neither
B96: Only Pike's Place Market | AO96: Visitor 94 | AP96: 0 | AQ96: 0 | AR96: =_xlfn.IFS(SUM(AP96:AQ96)=2,$B$5,SUM(AP96:AQ96)=0,$B$6,AND(AP96=1,AQ96=0),$B$3,TRUE,$B$4) -> Neither
B97: Both | AO97: Visitor 95 | AP97: 0 | AQ97: 0 | AR97: =_xlfn.IFS(SUM(AP97:AQ97)=2,$B$5,SUM(AP97:AQ97)=0,$B$6,AND(AP97=1,AQ97=0),$B$3,TRUE,$B$4) -> Neither
B98: Both | AO98: Visitor 96 | AP98: 0 | AQ98: 0 | AR98: =_xlfn.IFS(SUM(AP98:AQ98)=2,$B$5,SUM(AP98:AQ98)=0,$B$6,AND(AP98=1,AQ98=0),$B$3,TRUE,$B$4) -> Neither
B99: Only Pike's Place Market | AO99: Visitor 97 | AP99: 1 | AQ99: 1 | AR99: =_xlfn.IFS(SUM(AP99:AQ99)=2,$B$5,SUM(AP99:AQ99)=0,$B$6,AND(AP99=1,AQ99=0),$B$3,TRUE,$B$4) -> Both
B100: Only Pike's Place Market | AO100: Visitor 98 | AP100: 0 | AQ100: 0 | AR100: =_xlfn.IFS(SUM(AP100:AQ100)=2,$B$5,SUM(AP100:AQ100)=0,$B$6,AND(AP100=1,AQ100=0),$B$3,TRUE,$B$4) -> Neither
B101: Neither | AO101: Visitor 99 | AP101: 0 | AQ101: 0 | AR101: =_xlfn.IFS(SUM(AP101:AQ101)=2,$B$5,SUM(AP101:AQ101)=0,$B$6,AND(AP101=1,AQ101=0),$B$3,TRUE,$B$4) -> Neither
B102: Neither | AO102: Visitor 100 | AP102: 0 | AQ102: 0 | AR102: =_xlfn.IFS(SUM(AP102:AQ102)=2,$B$5,SUM(AP102:AQ102)=0,$B$6,AND(AP102=1,AQ102=0),$B$3,TRUE,$B$4) -> Neither
B103: Neither | AO103: Visitor 101 | AP103: 0 | AQ103: 1 | AR103: =_xlfn.IFS(SUM(AP103:AQ103)=2,$B$5,SUM(AP103:AQ103)=0,$B$6,AND(AP103=1,AQ103=0),$B$3,TRUE,$B$4) -> Only Pike's Place Market
B104: Neither | AO104: Visitor 102 | AP104: 1 | AQ104: 1 | AR104: =_xlfn.IFS(SUM(AP104:AQ104)=2,$B$5,SUM(AP104:AQ104)=0,$B$6,AND(AP104=1,AQ104=0),$B$3,TRUE,$B$4) -> Both
B105: Both | AO105: Visitor 103 | AP105: 0 | AQ105: 0 | AR105: =_xlfn.IFS(SUM(AP105:AQ105)=2,$B$5,SUM(AP105:AQ105)=0,$B$6,AND(AP105=1,AQ105=0),$B$3,TRUE,$B$4) -> Neither
B106: Neither | AO106: Visitor 104 | AP106: 1 | AQ106: 1 | AR106: =_xlfn.IFS(SUM(AP106:AQ106)=2,$B$5,SUM(AP106:AQ106)=0,$B$6,AND(AP106=1,AQ106=0),$B$3,TRUE,$B$4) -> Both
B107: Neither | AO107: Visitor 105 | AP107: 1 | AQ107: 1 | AR107: =_xlfn.IFS(SUM(AP107:AQ107)=2,$B$5,SUM(AP107:AQ107)=0,$B$6,AND(AP107=1,AQ107=0),$B$3,TRUE,$B$4) -> Both
B108: Neither | AO108: Visitor 106 | AP108: 1 | AQ108: 1 | AR108: =_xlfn.IFS(SUM(AP108:AQ108)=2,$B$5,SUM(AP108:AQ108)=0,$B$6,AND(AP108=1,AQ108=0),$B$3,TRUE,$B$4) -> Both
B109: Only Pike's Place Market | AO109: Visitor 107 | AP109: 1 | AQ109: 1 | AR109: =_xlfn.IFS(SUM(AP109:AQ109)=2,$B$5,SUM(AP109:AQ109)=0,$B$6,AND(AP109=1,AQ109=0),$B$3,TRUE,$B$4) -> Both
B110: Both | AO110: Visitor 108 | AP110: 0 | AQ110: 0 | AR110: =_xlfn.IFS(SUM(AP110:AQ110)=2,$B$5,SUM(AP110:AQ110)=0,$B$6,AND(AP110=1,AQ110=0),$B$3,TRUE,$B$4) -> Neither
B111: Neither | AO111: Visitor 109 | AP111: 0 | AQ111: 0 | AR111: =_xlfn.IFS(SUM(AP111:AQ111)=2,$B$5,SUM(AP111:AQ111)=0,$B$6,AND(AP111=1,AQ111=0),$B$3,TRUE,$B$4) -> Neither
B112: Both | AO112: Visitor 110 | AP112: 0 | AQ112: 0 | AR112: =_xlfn.IFS(SUM(AP112:AQ112)=2,$B$5,SUM(AP112:AQ112)=0,$B$6,AND(AP112=1,AQ112=0),$B$3,TRUE,$B$4) -> Neither
B113: Both | AO113: Visitor 111 | AP113: 1 | AQ113: 1 | AR113: =_xlfn.IFS(SUM(AP113:AQ113)=2,$B$5,SUM(AP113:AQ113)=0,$B$6,AND(AP113=1,AQ113=0),$B$3,TRUE,$B$4) -> Both
B114: Both | AO114: Visitor 112 | AP114: 0 | AQ114: 0 | AR114: =_xlfn.IFS(SUM(AP114:AQ114)=2,$B$5,SUM(AP114:AQ114)=0,$B$6,AND(AP114=1,AQ114=0),$B$3,TRUE,$B$4) -> Neither
B115: Both | AO115: Visitor 113 | AP115: 0 | AQ115: 0 | AR115: =_xlfn.IFS(SUM(AP115:AQ115)=2,$B$5,SUM(AP115:AQ115)=0,$B$6,AND(AP115=1,AQ115=0),$B$3,TRUE,$B$4) -> Neither
B116: Neither | AO116: Visitor 114 | AP116: 0 | AQ116: 1 | AR116: =_xlfn.IFS(SUM(AP116:AQ116)=2,$B$5,SUM(AP116:AQ116)=0,$B$6,AND(AP116=1,AQ116=0),$B$3,TRUE,$B$4) -> Only Pike's Place Market
B117: Neither | AO117: Visitor 115 | AP117: 0 | AQ117: 0 | AR117: =_xlfn.IFS(SUM(AP117:AQ117)=2,$B$5,SUM(AP117:AQ117)=0,$B$6,AND(AP117=1,AQ117=0),$B$3,TRUE,$B$4) -> Neither
B118: Neither | AO118: Visitor 116 | AP118: 0 | AQ118: 1 | AR118: =_xlfn.IFS(SUM(AP118:AQ118)=2,$B$5,SUM(AP118:AQ118)=0,$B$6,AND(AP118=1,AQ118=0),$B$3,TRUE,$B$4) -> Only Pike's Place Market
B119: Both | AO119: Visitor 117 | AP119: 1 | AQ119: 0 | AR119: =_xlfn.IFS(SUM(AP119:AQ119)=2,$B$5,SUM(AP119:AQ119)=0,$B$6,AND(AP119=1,AQ119=0),$B$3,TRUE,$B$4) -> Only Space Needle
B120: Neither | AO120: Visitor 118 | AP120: 0 | AQ120: 1 | AR120: =_xlfn.IFS(SUM(AP120:AQ120)=2,$B$5,SUM(AP120:AQ120)=0,$B$6,AND(AP120=1,AQ120=0),$B$3,TRUE,$B$4) -> Only Pike's Place Market
B121: Neither | AO121: Visitor 119 | AP121: 0 | AQ121: 0 | AR121: =_xlfn.IFS(SUM(AP121:AQ121)=2,$B$5,SUM(AP121:AQ121)=0,$B$6,AND(AP121=1,AQ121=0),$B$3,TRUE,$B$4) -> Neither
B122: Only Pike's Place Market | AO122: Visitor 120 | AP122: 1 | AQ122: 1 | AR122: =_xlfn.IFS(SUM(AP122:AQ122)=2,$B$5,SUM(AP122:AQ122)=0,$B$6,AND(AP122=1,AQ122=0),$B$3,TRUE,$B$4) -> Both
B123: Neither | AO123: Visitor 121 | AP123: 0 | AQ123: 0 | AR123: =_xlfn.IFS(SUM(AP123:AQ123)=2,$B$5,SUM(AP123:AQ123)=0,$B$6,AND(AP123=1,AQ123=0),$B$3,TRUE,$B$4) -> Neither
B124: Only Pike's Place Market | AO124: Visitor 122 | AP124: 0 | AQ124: 0 | AR124: =_xlfn.IFS(SUM(AP124:AQ124)=2,$B$5,SUM(AP124:AQ124)=0,$B$6,AND(AP124=1,AQ124=0),$B$3,TRUE,$B$4) -> Neither
B125: Only Space Needle | AO125: Visitor 123 | AP125: 0 | AQ125: 1 | AR125: =_xlfn.IFS(SUM(AP125:AQ125)=2,$B$5,SUM(AP125:AQ125)=0,$B$6,AND(AP125=1,AQ125=0),$B$3,TRUE,$B$4) -> Only Pike's Place Market
B126: Only Pike's Place Market | AO126: Visitor 124 | AP126: 1 | AQ126: 1 | AR126: =_xlfn.IFS(SUM(AP126:AQ126)=2,$B$5,SUM(AP126:AQ126)=0,$B$6,AND(AP126=1,AQ126=0),$B$3,TRUE,$B$4) -> Both
B127: Neither | AO127: Visitor 125 | AP127: 1 | AQ127: 0 | AR127: =_xlfn.IFS(SUM(AP127:AQ127)=2,$B$5,SUM(AP127:AQ127)=0,$B$6,AND(AP127=1,AQ127=0),$B$3,TRUE,$B$4) -> Only Space Needle
B128: Both | AO128: Visitor 126 | AP128: 0 | AQ128: 1 | AR128: =_xlfn.IFS(SUM(AP128:AQ128)=2,$B$5,SUM(AP128:AQ128)=0,$B$6,AND(AP128=1,AQ128=0),$B$3,TRUE,$B$4) -> Only Pike's Place Market
B129: Neither | AO129: Visitor 127 | AP129: 0 | AQ129: 0 | AR129: =_xlfn.IFS(SUM(AP129:AQ129)=2,$B$5,SUM(AP129:AQ129)=0,$B$6,AND(AP129=1,AQ129=0),$B$3,TRUE,$B$4) -> Neither
B130: Neither | AO130: Visitor 128 | AP130: 1 | AQ130: 1 | AR130: =_xlfn.IFS(SUM(AP130:AQ130)=2,$B$5,SUM(AP130:AQ130)=0,$B$6,AND(AP130=1,AQ130=0),$B$3,TRUE,$B$4) -> Both
B131: Only Pike's Place Market | AO131: Visitor 129 | AP131: 1 | AQ131: 1 | AR131: =_xlfn.IFS(SUM(AP131:AQ131)=2,$B$5,SUM(AP131:AQ131)=0,$B$6,AND(AP131=1,AQ131=0),$B$3,TRUE,$B$4) -> Both
B132: Both | AO132: Visitor 130 | AP132: 1 | AQ132: 0 | AR132: =_xlfn.IFS(SUM(AP132:AQ132)=2,$B$5,SUM(AP132:AQ132)=0,$B$6,AND(AP132=1,AQ132=0),$B$3,TRUE,$B$4) -> Only Space Needle
B133: Only Space Needle | AO133: Visitor 131 | AP133: 0 | AQ133: 1 | AR133: =_xlfn.IFS(SUM(AP133:AQ133)=2,$B$5,SUM(AP133:AQ133)=0,$B$6,AND(AP133=1,AQ133=0),$B$3,TRUE,$B$4) -> Only Pike's Place Market
B134: Only Pike's Place Market | AO134: Visitor 132 | AP134: 1 | AQ134: 1 | AR134: =_xlfn.IFS(SUM(AP134:AQ134)=2,$B$5,SUM(AP134:AQ134)=0,$B$6,AND(AP134=1,AQ134=0),$B$3,TRUE,$B$4) -> Both
B135: Neither | AO135: Visitor 133 | AP135: 0 | AQ135: 0 | AR135: =_xlfn.IFS(SUM(AP135:AQ135)=2,$B$5,SUM(AP135:AQ135)=0,$B$6,AND(AP135=1,AQ135=0),$B$3,TRUE,$B$4) -> Neither
B136: Both | AO136: Visitor 134 | AP136: 1 | AQ136: 1 | AR136: =_xlfn.IFS(SUM(AP136:AQ136)=2,$B$5,SUM(AP136:AQ136)=0,$B$6,AND(AP136=1,AQ136=0),$B$3,TRUE,$B$4) -> Both
B137: Both | AO137: Visitor 135 | AP137: 1 | AQ137: 1 | AR137: =_xlfn.IFS(SUM(AP137:AQ137)=2,$B$5,SUM(AP137:AQ137)=0,$B$6,AND(AP137=1,AQ137=0),$B$3,TRUE,$B$4) -> Both
B138: Only Space Needle | AO138: Visitor 136 | AP138: 1 | AQ138: 1 | AR138: =_xlfn.IFS(SUM(AP138:AQ138)=2,$B$5,SUM(AP138:AQ138)=0,$B$6,AND(AP138=1,AQ138=0),$B$3,TRUE,$B$4) -> Both
B139: Only Pike's Place Market | AO139: Visitor 137 | AP139: 0 | AQ139: 0 | AR139: =_xlfn.IFS(SUM(AP139:AQ139)=2,$B$5,SUM(AP139:AQ139)=0,$B$6,AND(AP139=1,AQ139=0),$B$3,TRUE,$B$4) -> Neither
B140: Both | AO140: Visitor 138 | AP140: 1 | AQ140: 1 | AR140: =_xlfn.IFS(SUM(AP140:AQ140)=2,$B$5,SUM(AP140:AQ140)=0,$B$6,AND(AP140=1,AQ140=0),$B$3,TRUE,$B$4) -> Both
B141: Neither | AO141: Visitor 139 | AP141: 1 | AQ141: 1 | AR141: =_xlfn.IFS(SUM(AP141:AQ141)=2,$B$5,SUM(AP141:AQ141)=0,$B$6,AND(AP141=1,AQ141=0),$B$3,TRUE,$B$4) -> Both
B142: Both | AO142: Visitor 140 | AP142: 0 | AQ142: 0 | AR142: =_xlfn.IFS(SUM(AP142:AQ142)=2,$B$5,SUM(AP142:AQ142)=0,$B$6,AND(AP142=1,AQ142=0),$B$3,TRUE,$B$4) -> Neither
B143: Both | AO143: Visitor 141 | AP143: 0 | AQ143: 1 | AR143: =_xlfn.IFS(SUM(AP143:AQ143)=2,$B$5,SUM(AP143:AQ143)=0,$B$6,AND(AP143=1,AQ143=0),$B$3,TRUE,$B$4) -> Only Pike's Place Market
B144: Both | AO144: Visitor 142 | AP144: 1 | AQ144: 1 | AR144: =_xlfn.IFS(SUM(AP144:AQ144)=2,$B$5,SUM(AP144:AQ144)=0,$B$6,AND(AP144=1,AQ144=0),$B$3,TRUE,$B$4) -> Both
B145: Neither | AO145: Visitor 143 | AP145: 0 | AQ145: 1 | AR145: =_xlfn.IFS(SUM(AP145:AQ145)=2,$B$5,SUM(AP145:AQ145)=0,$B$6,AND(AP145=1,AQ145=0),$B$3,TRUE,$B$4) -> Only Pike's Place Market
B146: Both | AO146: Visitor 144 | AP146: 1 | AQ146: 1 | AR146: =_xlfn.IFS(SUM(AP146:AQ146)=2,$B$5,SUM(AP146:AQ146)=0,$B$6,AND(AP146=1,AQ146=0),$B$3,TRUE,$B$4) -> Both
B147: Both | AO147: Visitor 145 | AP147: 1 | AQ147: 0 | AR147: =_xlfn.IFS(SUM(AP147:AQ147)=2,$B$5,SUM(AP147:AQ147)=0,$B$6,AND(AP147=1,AQ147=0),$B$3,TRUE,$B$4) -> Only Space Needle
B148: Neither | AO148: Visitor 146 | AP148: 0 | AQ148: 1 | AR148: =_xlfn.IFS(SUM(AP148:AQ148)=2,$B$5,SUM(AP148:AQ148)=0,$B$6,AND(AP148=1,AQ148=0),$B$3,TRUE,$B$4) -> Only Pike's Place Market
B149: Only Pike's Place Market | AO149: Visitor 147 | AP149: 0 | AQ149: 1 | AR149: =_xlfn.IFS(SUM(AP149:AQ149)=2,$B$5,SUM(AP149:AQ149)=0,$B$6,AND(AP149=1,AQ149=0),$B$3,TRUE,$B$4) -> Only Pike's Place Market
B150: Both | AO150: Visitor 148 | AP150: 0 | AQ150: 1 | AR150: =_xlfn.IFS(SUM(AP150:AQ150)=2,$B$5,SUM(AP150:AQ150)=0,$B$6,AND(AP150=1,AQ150=0),$B$3,TRUE,$B$4) -> Only Pike's Place Market
B151: Only Pike's Place Market | AO151: Visitor 149 | AP151: 1 | AQ151: 1 | AR151: =_xlfn.IFS(SUM(AP151:AQ151)=2,$B$5,SUM(AP151:AQ151)=0,$B$6,AND(AP151=1,AQ151=0),$B$3,TRUE,$B$4) -> Both
B152: Both | AO152: Visitor 150 | AP152: 1 | AQ152: 1 | AR152: =_xlfn.IFS(SUM(AP152:AQ152)=2,$B$5,SUM(AP152:AQ152)=0,$B$6,AND(AP152=1,AQ152=0),$B$3,TRUE,$B$4) -> Both
B153: Only Space Needle | AO153: Visitor 151 | AP153: 0 | AQ153: 1 | AR153: =_xlfn.IFS(SUM(AP153:AQ153)=2,$B$5,SUM(AP153:AQ153)=0,$B$6,AND(AP153=1,AQ153=0),$B$3,TRUE,$B$4) -> Only Pike's Place Market
B154: Only Pike's Place Market | AO154: Visitor 152 | AP154: 0 | AQ154: 0 | AR154: =_xlfn.IFS(SUM(AP154:AQ154)=2,$B$5,SUM(AP154:AQ154)=0,$B$6,AND(AP154=1,AQ154=0),$B$3,TRUE,$B$4) -> Neither
B155: Only Pike's Place Market | AO155: Visitor 153 | AP155: 1 | AQ155: 1 | AR155: =_xlfn.IFS(SUM(AP155:AQ155)=2,$B$5,SUM(AP155:AQ155)=0,$B$6,AND(AP155=1,AQ155=0),$B$3,TRUE,$B$4) -> Both
B156: Only Pike's Place Market | AO156: Visitor 154 | AP156: 1 | AQ156: 1 | AR156: =_xlfn.IFS(SUM(AP156:AQ156)=2,$B$5,SUM(AP156:AQ156)=0,$B$6,AND(AP156=1,AQ156=0),$B$3,TRUE,$B$4) -> Both
B157: Both | AO157: Visitor 155 | AP157: 1 | AQ157: 0 | AR157: =_xlfn.IFS(SUM(AP157:AQ157)=2,$B$5,SUM(AP157:AQ157)=0,$B$6,AND(AP157=1,AQ157=0),$B$3,TRUE,$B$4) -> Only Space Needle
B158: Both | AO158: Visitor 156 | AP158: 0 | AQ158: 1 | AR158: =_xlfn.IFS(SUM(AP158:AQ158)=2,$B$5,SUM(AP158:AQ158)=0,$B$6,AND(AP158=1,AQ158=0),$B$3,TRUE,$B$4) -> Only Pike's Place Market
B159: Only Pike's Place Market | AO159: Visitor 157 | AP159: 1 | AQ159: 1 | AR159: =_xlfn.IFS(SUM(AP159:AQ159)=2,$B$5,SUM(AP159:AQ159)=0,$B$6,AND(AP159=1,AQ159=0),$B$3,TRUE,$B$4) -> Both
B160: Neither | AO160: Visitor 158 | AP160: 0 | AQ160: 0 | AR160: =_xlfn.IFS(SUM(AP160:AQ160)=2,$B$5,SUM(AP160:AQ160)=0,$B$6,AND(AP160=1,AQ160=0),$B$3,TRUE,$B$4) -> Neither
B161: Both | AO161: Visitor 159 | AP161: 0 | AQ161: 0 | AR161: =_xlfn.IFS(SUM(AP161:AQ161)=2,$B$5,SUM(AP161:AQ161)=0,$B$6,AND(AP161=1,AQ161=0),$B$3,TRUE,$B$4) -> Neither
B162: Both | AO162: Visitor 160 | AP162: 0 | AQ162: 1 | AR162: =_xlfn.IFS(SUM(AP162:AQ162)=2,$B$5,SUM(AP162:AQ162)=0,$B$6,AND(AP162=1,AQ162=0),$B$3,TRUE,$B$4) -> Only Pike's Place Market
B163: Only Space Needle | AO163: Visitor 161 | AP163: 1 | AQ163: 1 | AR163: =_xlfn.IFS(SUM(AP163:AQ163)=2,$B$5,SUM(AP163:AQ163)=0,$B$6,AND(AP163=1,AQ163=0),$B$3,TRUE,$B$4) -> Both
B164: Only Pike's Place Market | AO164: Visitor 162 | AP164: 0 | AQ164: 0 | AR164: =_xlfn.IFS(SUM(AP164:AQ164)=2,$B$5,SUM(AP164:AQ164)=0,$B$6,AND(AP164=1,AQ164=0),$B$3,TRUE,$B$4) -> Neither
B165: Both | AO165: Visitor 163 | AP165: 1 | AQ165: 1 | AR165: =_xlfn.IFS(SUM(AP165:AQ165)=2,$B$5,SUM(AP165:AQ165)=0,$B$6,AND(AP165=1,AQ165=0),$B$3,TRUE,$B$4) -> Both
B166: Neither | AO166: Visitor 164 | AP166: 0 | AQ166: 1 | AR166: =_xlfn.IFS(SUM(AP166:AQ166)=2,$B$5,SUM(AP166:AQ166)=0,$B$6,AND(AP166=1,AQ166=0),$B$3,TRUE,$B$4) -> Only Pike's Place Market
B167: Neither | AO167: Visitor 165 | AP167: 1 | AQ167: 1 | AR167: =_xlfn.IFS(SUM(AP167:AQ167)=2,$B$5,SUM(AP167:AQ167)=0,$B$6,AND(AP167=1,AQ167=0),$B$3,TRUE,$B$4) -> Both
B168: Only Pike's Place Market | AO168: Visitor 166 | AP168: 0 | AQ168: 0 | AR168: =_xlfn.IFS(SUM(AP168:AQ168)=2,$B$5,SUM(AP168:AQ168)=0,$B$6,AND(AP168=1,AQ168=0),$B$3,TRUE,$B$4) -> Neither
B169: Both | AO169: Visitor 167 | AP169: 0 | AQ169: 0 | AR169: =_xlfn.IFS(SUM(AP169:AQ169)=2,$B$5,SUM(AP169:AQ169)=0,$B$6,AND(AP169=1,AQ169=0),$B$3,TRUE,$B$4) -> Neither
B170: Neither | AO170: Visitor 168 | AP170: 0 | AQ170: 0 | AR170: =_xlfn.IFS(SUM(AP170:AQ170)=2,$B$5,SUM(AP170:AQ170)=0,$B$6,AND(AP170=1,AQ170=0),$B$3,TRUE,$B$4) -> Neither
B171: Both | AO171: Visitor 169 | AP171: 0 | AQ171: 1 | AR171: =_xlfn.IFS(SUM(AP171:AQ171)=2,$B$5,SUM(AP171:AQ171)=0,$B$6,AND(AP171=1,AQ171=0),$B$3,TRUE,$B$4) -> Only Pike's Place Market
B172: Only Pike's Place Market | AO172: Visitor 170 | AP172: 1 | AQ172: 1 | AR172: =_xlfn.IFS(SUM(AP172:AQ172)=2,$B$5,SUM(AP172:AQ172)=0,$B$6,AND(AP172=1,AQ172=0),$B$3,TRUE,$B$4) -> Both
B173: Both | AO173: Visitor 171 | AP173: 0 | AQ173: 0 | AR173: =_xlfn.IFS(SUM(AP173:AQ173)=2,$B$5,SUM(AP173:AQ173)=0,$B$6,AND(AP173=1,AQ173=0),$B$3,TRUE,$B$4) -> Neither
B174: Neither | AO174: Visitor 172 | AP174: 0 | AQ174: 0 | AR174: =_xlfn.IFS(SUM(AP174:AQ174)=2,$B$5,SUM(AP174:AQ174)=0,$B$6,AND(AP174=1,AQ174=0),$B$3,TRUE,$B$4) -> Neither
B175: Neither | AO175: Visitor 173 | AP175: 1 | AQ175: 1 | AR175: =_xlfn.IFS(SUM(AP175:AQ175)=2,$B$5,SUM(AP175:AQ175)=0,$B$6,AND(AP175=1,AQ175=0),$B$3,TRUE,$B$4) -> Both
B176: Neither | AO176: Visitor 174 | AP176: 0 | AQ176: 0 | AR176: =_xlfn.IFS(SUM(AP176:AQ176)=2,$B$5,SUM(AP176:AQ176)=0,$B$6,AND(AP176=1,AQ176=0),$B$3,TRUE,$B$4) -> Neither
B177: Only Pike's Place Market | AO177: Visitor 175 | AP177: 1 | AQ177: 1 | AR177: =_xlfn.IFS(SUM(AP177:AQ177)=2,$B$5,SUM(AP177:AQ177)=0,$B$6,AND(AP177=1,AQ177=0),$B$3,TRUE,$B$4) -> Both
B178: Both | AO178: Visitor 176 | AP178: 0 | AQ178: 1 | AR178: =_xlfn.IFS(SUM(AP178:AQ178)=2,$B$5,SUM(AP178:AQ178)=0,$B$6,AND(AP178=1,AQ178=0),$B$3,TRUE,$B$4) -> Only Pike's Place Market
B179: Neither | AO179: Visitor 177 | AP179: 0 | AQ179: 1 | AR179: =_xlfn.IFS(SUM(AP179:AQ179)=2,$B$5,SUM(AP179:AQ179)=0,$B$6,AND(AP179=1,AQ179=0),$B$3,TRUE,$B$4) -> Only Pike's Place Market
B180: Neither | AO180: Visitor 178 | AP180: 0 | AQ180: 1 | AR180: =_xlfn.IFS(SUM(AP180:AQ180)=2,$B$5,SUM(AP180:AQ180)=0,$B$6,AND(AP180=1,AQ180=0),$B$3,TRUE,$B$4) -> Only Pike's Place Market
B181: Both | AO181: Visitor 179 | AP181: 1 | AQ181: 1 | AR181: =_xlfn.IFS(SUM(AP181:AQ181)=2,$B$5,SUM(AP181:AQ181)=0,$B$6,AND(AP181=1,AQ181=0),$B$3,TRUE,$B$4) -> Both
B182: Neither | AO182: Visitor 180 | AP182: 1 | AQ182: 1 | AR182: =_xlfn.IFS(SUM(AP182:AQ182)=2,$B$5,SUM(AP182:AQ182)=0,$B$6,AND(AP182=1,AQ182=0),$B$3,TRUE,$B$4) -> Both
B183: Both | AO183: Visitor 181 | AP183: 0 | AQ183: 0 | AR183: =_xlfn.IFS(SUM(AP183:AQ183)=2,$B$5,SUM(AP183:AQ183)=0,$B$6,AND(AP183=1,AQ183=0),$B$3,TRUE,$B$4) -> Neither
B184: Only Pike's Place Market | AO184: Visitor 182 | AP184: 0 | AQ184: 0 | AR184: =_xlfn.IFS(SUM(AP184:AQ184)=2,$B$5,SUM(AP184:AQ184)=0,$B$6,AND(AP184=1,AQ184=0),$B$3,TRUE,$B$4) -> Neither
B185: Only Pike's Place Market | AO185: Visitor 183 | AP185: 1 | AQ185: 1 | AR185: =_xlfn.IFS(SUM(AP185:AQ185)=2,$B$5,SUM(AP185:AQ185)=0,$B$6,AND(AP185=1,AQ185=0),$B$3,TRUE,$B$4) -> Both
B186: Only Pike's Place Market | AO186: Visitor 184 | AP186: 0 | AQ186: 0 | AR186: =_xlfn.IFS(SUM(AP186:AQ186)=2,$B$5,SUM(AP186:AQ186)=0,$B$6,AND(AP186=1,AQ186=0),$B$3,TRUE,$B$4) -> Neither
B187: Both | AO187: Visitor 185 | AP187: 1 | AQ187: 1 | AR187: =_xlfn.IFS(SUM(AP187:AQ187)=2,$B$5,SUM(AP187:AQ187)=0,$B$6,AND(AP187=1,AQ187=0),$B$3,TRUE,$B$4) -> Both
B188: Both | AO188: Visitor 186 | AP188: 0 | AQ188: 0 | AR188: =_xlfn.IFS(SUM(AP188:AQ188)=2,$B$5,SUM(AP188:AQ188)=0,$B$6,AND(AP188=1,AQ188=0),$B$3,TRUE,$B$4) -> Neither
B189: Neither | AO189: Visitor 187 | AP189: 1 | AQ189: 0 | AR189: =_xlfn.IFS(SUM(AP189:AQ189)=2,$B$5,SUM(AP189:AQ189)=0,$B$6,AND(AP189=1,AQ189=0),$B$3,TRUE,$B$4) -> Only Space Needle
B190: Neither | AO190: Visitor 188 | AP190: 0 | AQ190: 1 | AR190: =_xlfn.IFS(SUM(AP190:AQ190)=2,$B$5,SUM(AP190:AQ190)=0,$B$6,AND(AP190=1,AQ190=0),$B$3,TRUE,$B$4) -> Only Pike's Place Market
B191: Both | AO191: Visitor 189 | AP191: 1 | AQ191: 1 | AR191: =_xlfn.IFS(SUM(AP191:AQ191)=2,$B$5,SUM(AP191:AQ191)=0,$B$6,AND(AP191=1,AQ191=0),$B$3,TRUE,$B$4) -> Both
B192: Neither | AO192: Visitor 190 | AP192: 0 | AQ192: 0 | AR192: =_xlfn.IFS(SUM(AP192:AQ192)=2,$B$5,SUM(AP192:AQ192)=0,$B$6,AND(AP192=1,AQ192=0),$B$3,TRUE,$B$4) -> Neither
B193: Both | AO193: Visitor 191 | AP193: 1 | AQ193: 1 | AR193: =_xlfn.IFS(SUM(AP193:AQ193)=2,$B$5,SUM(AP193:AQ193)=0,$B$6,AND(AP193=1,AQ193=0),$B$3,TRUE,$B$4) -> Both
B194: Neither | AO194: Visitor 192 | AP194: 0 | AQ194: 1 | AR194: =_xlfn.IFS(SUM(AP194:AQ194)=2,$B$5,SUM(AP194:AQ194)=0,$B$6,AND(AP194=1,AQ194=0),$B$3,TRUE,$B$4) -> Only Pike's Place Market
B195: Only Space Needle | AO195: Visitor 193 | AP195: 1 | AQ195: 1 | AR195: =_xlfn.IFS(SUM(AP195:AQ195)=2,$B$5,SUM(AP195:AQ195)=0,$B$6,AND(AP195=1,AQ195=0),$B$3,TRUE,$B$4) -> Both
B196: Only Pike's Place Market | AO196: Visitor 194 | AP196: 1 | AQ196: 1 | AR196: =_xlfn.IFS(SUM(AP196:AQ196)=2,$B$5,SUM(AP196:AQ196)=0,$B$6,AND(AP196=1,AQ196=0),$B$3,TRUE,$B$4) -> Both
B197: Both | AO197: Visitor 195 | AP197: 0 | AQ197: 0 | AR197: =_xlfn.IFS(SUM(AP197:AQ197)=2,$B$5,SUM(AP197:AQ197)=0,$B$6,AND(AP197=1,AQ197=0),$B$3,TRUE,$B$4) -> Neither
B198: Neither | AO198: Visitor 196 | AP198: 0 | AQ198: 1 | AR198: =_xlfn.IFS(SUM(AP198:AQ198)=2,$B$5,SUM(AP198:AQ198)=0,$B$6,AND(AP198=1,AQ198=0),$B$3,TRUE,$B$4) -> Only Pike's Place Market
B199: Both | AO199: Visitor 197 | AP199: 1 | AQ199: 1 | AR199: =_xlfn.IFS(SUM(AP199:AQ199)=2,$B$5,SUM(AP199:AQ199)=0,$B$6,AND(AP199=1,AQ199=0),$B$3,TRUE,$B$4) -> Both
B200: Only Pike's Place Market | AO200: Visitor 198 | AP200: 0 | AQ200: 1 | AR200: =_xlfn.IFS(SUM(AP200:AQ200)=2,$B$5,SUM(AP200:AQ200)=0,$B$6,AND(AP200=1,AQ200=0),$B$3,TRUE,$B$4) -> Only Pike's Place Market
B201: Both | AO201: Visitor 199 | AP201: 1 | AQ201: 1 | AR201: =_xlfn.IFS(SUM(AP201:AQ201)=2,$B$5,SUM(AP201:AQ201)=0,$B$6,AND(AP201=1,AQ201=0),$B$3,TRUE,$B$4) -> Both
... 7 more rows

Sheet V(19)
B3: Conditional Probability
B4: The probability of an event given that another related event has already occurred.
B5: After the first event has occurred the sample space has changed (gotten smaller).
B6: The two events that make up the Conditional Probability are considered dependent.
B7: Notation: P(A | B) = "Probability of event A, given that event B has already occurred". "|" = " given that".
B8: Examples:
B9: 1) This is not conditional probability:
B10: What is probability of pulling one Queen card from a randomly shuffled deck of 52 cards?
B11: There are 4 matching sample points: Q©, Q§, Qª, Q¨
B12: When you calculated the probability, the full Sample Space is intact. Sample Space = 52 cards.
B13: P(Pull 1 Queen from deck of cards) = P(Q1) = 4/52
B15: 2) This IS conditional probability:
B16: Given that you pulled a Spade Queen card (Qª) as your first card, what is the probability that you can pull a Queen card in the second try?
B17: There are 3 matching sample points: Q©, Q§, Q¨
B18: When you calculated the probability, the Sample Space has changed. Sample Space = 51 cards.
B19: P(Pull second Queen given that you already pulled a Queen) = P(Q2 | Q1) = 3/51
B20: The events "Pulling a Second Queen" and "Pulling a First Queen" are dependent events.
B22: 3) Calculate the probability that a randomly selected American uses Facebook given that they use YouTube.
B23: A random survey of American social media use was conducted and the results are presented in a cross tab report. From the report, calculate the probability that a randomly selected American uses Facebook given that they use YouTube. Said a different way: If a randomly selected American uses YouTube, what is probability that they also use Facebook?
F24: Frequency | G24: YouTube
F25: Facebook | G25: Not Use YT | H25: Use YT | I25: Total
D26: Facebook = FB | F26: Not Use FB | G26: 16 | H26: 46 | I26: 62
D27: YouTube = YT | F27: Use FB | G27: 22 | H27: 116 | I27: 138
F28: Total | G28: 38 | H28: 162 | I28: 200
B30: For this problem, the frequencies are given to you, but you can not use the full Sample Space of 200. Because the question askes you to isolate your calculation to just the sample space for YouTube, the Sample Space changes, the denominator that you use is the total number of people who use YouTube, 162.
B32: P(Use YT) = | F32: =IF(ISBLANK(E32),""," "&H28&"/"&I28) ->  | H32: Sample Space not change
B33: P(Use FB AND Use YT) = | F33: =IF(ISBLANK(E33),""," "&H27&"/"&I28) ->  | H33: Sample Space not change
B34: P(Use FB | Use YT) = | F34: =IF(ISBLANK(E34),""," "&H27&"/"&H28) ->  | H34: ç Sample Space DOES change
B35: P(Use YT | Use FB) = | F35: =IF(ISBLANK(E35),""," "&H27&"/"&I27) ->  | H35: ç Sample Space DOES change
B37: Conditional Probability Rule:
B38: P(A | B) = P(A AND B)/P(B) = "Probability Event A occurs given that Event B has already occurred".
B39: P(B | A) = P(A AND B)/P(A) = "Probability Event B occurs given that Event A has already occurred".
B40: Textbook notation:
B41: P(A | B) = P(A ∩ B)/P(B) = | F41: Joint Probability Table | J41: AND %
B42: P(B | A) = P(A ∩ B)/P(A) = | F42: Probability | G42: YouTube
F43: Facebook | G43: Not Use YT | H43: Use YT | I43: Total
B44: P(Use FB | Use YT) = | F44: Not Use FB | G44: =G26:I28/I28 -> 0.08 | H44: 0.23 | I44: 0.31
D45: =IF(ISBLANK(D44),""," "&H45&"/"&H46) ->  | F45: Use FB | G45: 0.11 | H45: 0.58 | I45: 0.69
B46: P(Use YT | Use FB) = | F46: Total | G46: 0.19 | H46: 0.81 | I46: 1
D47: =IF(ISBLANK(D46),""," "&H45&"/"&I45) -> 
J48: Marginal %
B53: P(Not Use YT) = P(B) | F53: 0.19
B54: P(Use FB AND Not Use YT) = P(A AND B) = | F54: 0.11
B55: P(A | B) = P(Use FB | Not Use YT) =
F59: Probability | G59: Events | I59: Facebook | J59: YouTube
B60: P(Not Use YT) = P(B) | G60: Not Use YT | I60: Use FB | J60: Use YT
B61: P(Use FB AND Not Use YT) = P(A AND B) = | G61: Use FB | I61: Not Use FB | J61: Use YT
B62: P(A | B) = P(Use FB | Not Use YT) = | I62: Not Use FB | J62: Not Use YT
B63: Total Records | I63: Use FB | J63: Not Use YT
B64: P(A | B) = P(Use FB | Not Use YT) = | I64: Use FB | J64: Use YT
I65: Use FB | J65: Use YT
I66: Not Use FB | J66: Not Use YT
I67: Not Use FB | J67: Not Use YT
I68: Use FB | J68: Use YT
I69: Use FB | J69: Use YT
I70: Use FB | J70: Use YT
I71: Use FB | J71: Use YT
I72: Not Use FB | J72: Not Use YT
I73: Use FB | J73: Use YT
I74: Use FB | J74: Use YT
I75: Not Use FB | J75: Use YT
I76: Use FB | J76: Not Use YT
I77: Not Use FB | J77: Use YT
I78: Not Use FB | J78: Use YT
I79: Use FB | J79: Use YT
I80: Not Use FB | J80: Use YT
I81: Not Use FB | J81: Use YT
I82: Use FB | J82: Use YT
I83: Use FB | J83: Use YT
I84: Not Use FB | J84: Use YT
I85: Use FB | J85: Use YT
I86: Use FB | J86: Use YT
I87: Use FB | J87: Use YT
I88: Not Use FB | J88: Not Use YT
I89: Not Use FB | J89: Use YT
I90: Use FB | J90: Not Use YT
I91: Use FB | J91: Not Use YT
I92: Use FB | J92: Use YT
I93: Use FB | J93: Use YT
I94: Use FB | J94: Use YT
I95: Use FB | J95: Not Use YT
I96: Use FB | J96: Use YT
I97: Use FB | J97: Use YT
I98: Use FB | J98: Not Use YT
I99: Use FB | J99: Use YT
I100: Use FB | J100: Use YT
I101: Use FB | J101: Use YT
I102: Use FB | J102: Use YT
I103: Not Use FB | J103: Use YT
I104: Use FB | J104: Use YT
I105: Use FB | J105: Use YT
I106: Not Use FB | J106: Use YT
I107: Use FB | J107: Use YT
I108: Use FB | J108: Use YT
I109: Use FB | J109: Use YT
I110: Use FB | J110: Not Use YT
I111: Use FB | J111: Not Use YT
I112: Not Use FB | J112: Use YT
I113: Not Use FB | J113: Use YT
I114: Not Use FB | J114: Not Use YT
I115: Not Use FB | J115: Use YT
I116: Not Use FB | J116: Use YT
I117: Not Use FB | J117: Use YT
I118: Not Use FB | J118: Use YT
I119: Use FB | J119: Use YT
I120: Use FB | J120: Use YT
I121: Use FB | J121: Use YT
I122: Use FB | J122: Use YT
I123: Use FB | J123: Use YT
I124: Not Use FB | J124: Use YT
I125: Use FB | J125: Use YT
I126: Use FB | J126: Use YT
I127: Use FB | J127: Use YT
I128: Not Use FB | J128: Not Use YT
I129: Use FB | J129: Use YT
I130: Use FB | J130: Use YT
I131: Use FB | J131: Use YT
I132: Use FB | J132: Use YT
I133: Use FB | J133: Use YT
I134: Use FB | J134: Use YT
I135: Use FB | J135: Use YT
I136: Use FB | J136: Not Use YT
I137: Use FB | J137: Use YT
I138: Not Use FB | J138: Use YT
I139: Use FB | J139: Not Use YT
I140: Use FB | J140: Use YT
I141: Use FB | J141: Use YT
I142: Use FB | J142: Use YT
I143: Use FB | J143: Use YT
I144: Use FB | J144: Use YT
I145: Not Use FB | J145: Use YT
I146: Not Use FB | J146: Use YT
I147: Use FB | J147: Use YT
I148: Use FB | J148: Use YT
I149: Use FB | J149: Use YT
I150: Use FB | J150: Use YT
I151: Use FB | J151: Use YT
I152: Use FB | J152: Not Use YT
I153: Not Use FB | J153: Use YT
I154: Use FB | J154: Use YT
I155: Not Use FB | J155: Not Use YT
I156: Not Use FB | J156: Use YT
I157: Use FB | J157: Use YT
I158: Not Use FB | J158: Use YT
I159: Use FB | J159: Use YT
I160: Use FB | J160: Use YT
I161: Not Use FB | J161: Use YT
I162: Not Use FB | J162: Not Use YT
I163: Use FB | J163: Use YT
I164: Use FB | J164: Use YT
I165: Not Use FB | J165: Not Use YT
I166: Not Use FB | J166: Not Use YT
I167: Use FB | J167: Not Use YT
I168: Use FB | J168: Use YT
I169: Use FB | J169: Use YT
I170: Use FB | J170: Use YT
I171: Use FB | J171: Use YT
I172: Not Use FB | J172: Not Use YT
I173: Use FB | J173: Use YT
I174: Use FB | J174: Use YT
I175: Not Use FB | J175: Use YT
I176: Use FB | J176: Not Use YT
I177: Not Use FB | J177: Use YT
I178: Not Use FB | J178: Use YT
I179: Use FB | J179: Use YT
I180: Not Use FB | J180: Use YT
I181: Not Use FB | J181: Use YT
I182: Use FB | J182: Use YT
I183: Use FB | J183: Use YT
I184: Not Use FB | J184: Use YT
I185: Use FB | J185: Use YT
I186: Use FB | J186: Use YT
I187: Use FB | J187: Use YT
I188: Not Use FB | J188: Not Use YT
I189: Not Use FB | J189: Use YT
I190: Use FB | J190: Not Use YT
I191: Use FB | J191: Not Use YT
I192: Use FB | J192: Use YT
I193: Use FB | J193: Use YT
I194: Use FB | J194: Use YT
I195: Use FB | J195: Not Use YT
I196: Use FB | J196: Use YT
I197: Use FB | J197: Use YT
I198: Use FB | J198: Not Use YT
I199: Use FB | J199: Use YT
I200: Use FB | J200: Use YT
I201: Use FB | J201: Use YT
I202: Use FB | J202: Use YT
I203: Not Use FB | J203: Use YT
I204: Use FB | J204: Use YT
I205: Use FB | J205: Use YT
I206: Not Use FB | J206: Use YT
I207: Use FB | J207: Use YT
I208: Use FB | J208: Use YT
I209: Use FB | J209: Use YT
I210: Use FB | J210: Not Use YT
I211: Use FB | J211: Not Use YT
I212: Not Use FB | J212: Use YT
I213: Not Use FB | J213: Use YT
I214: Not Use FB | J214: Not Use YT
... 45 more rows

Sheet V(19an)
B3: Conditional Probability
B4: The probability of an event given that another related event has already occurred.
B5: After the first event has occurred the sample space has changed (gotten smaller).
B6: The two events that make up the Conditional Probability are considered dependent.
B7: Notation: P(A | B) = "Probability of event A, given that event B has already occurred". "|" = " given that".
B8: Examples:
B9: 1) This is not conditional probability:
B10: What is probability of pulling one Queen card from a randomly shuffled deck of 52 cards?
B11: There are 4 matching sample points: Q©, Q§, Qª, Q¨
B12: When you calculated the probability, the full Sample Space is intact. Sample Space = 52 cards.
B13: P(Pull 1 Queen from deck of cards) = P(Q1) = 4/52
B15: 2) This IS conditional probability:
B16: Given that you pulled a Spade Queen card (Qª) as your first card, what is the probability that you can pull a Queen card in the second try?
B17: There are 3 matching sample points: Q©, Q§, Q¨
B18: When you calculated the probability, the Sample Space has changed. Sample Space = 51 cards.
B19: P(Pull second Queen given that you already pulled a Queen) = P(Q2 | Q1) = 3/51
B20: The events "Pulling a Second Queen" and "Pulling a First Queen" are dependent events.
B22: 3) Calculate the probability that a randomly selected American uses Facebook given that they use YouTube.
B23: A random survey of American social media use was conducted and the results are presented in a cross tab report. From the report, calculate the probability that a randomly selected American uses Facebook given that they use YouTube. Said a different way: If a randomly selected American uses YouTube, what is probability that they also use Facebook?
F24: Frequency | G24: YouTube
F25: Facebook | G25: Not Use YT | H25: Use YT | I25: Total
D26: Facebook = FB | F26: Not Use FB | G26: 16 | H26: 46 | I26: 62
D27: YouTube = YT | F27: Use FB | G27: 22 | H27: 116 | I27: 138
F28: Total | G28: 38 | H28: 162 | I28: 200
B30: For this problem, the frequencies are given to you, but you can not use the full Sample Space of 200. Because the question askes you to isolate your calculation to just the sample space for YouTube, the Sample Space changes, the denominator that you use is the total number of people who use YouTube, 162.
B32: P(Use YT) = | E32: =H28/I28 -> 0.81 | F32: =IF(ISBLANK(E32),""," "&H28&"/"&I28) -> 162/200 | H32: Sample Space not change
B33: P(Use FB AND Use YT) = | E33: =H27/I28 -> 0.58 | F33: =IF(ISBLANK(E33),""," "&H27&"/"&I28) -> 116/200 | H33: Sample Space not change
B34: P(Use FB | Use YT) = | E34: =H27/H28 -> 0.7160493827 | F34: =IF(ISBLANK(E34),""," "&H27&"/"&H28) -> 116/162 | H34: ç Sample Space DOES change
B35: P(Use YT | Use FB) = | E35: =H27/I27 -> 0.8405797101 | F35: =IF(ISBLANK(E35),""," "&H27&"/"&I27) -> 116/138 | H35: ç Sample Space DOES change
B37: Conditional Probability Rule:
B38: P(A | B) = P(A AND B)/P(B) = "Probability Event A occurs given that Event B has already occurred".
B39: P(B | A) = P(A AND B)/P(A) = "Probability Event B occurs given that Event A has already occurred".
B40: Textbook notation:
B41: P(A | B) = P(A ∩ B)/P(B) = | F41: Joint Probability Table | J41: AND %
B42: P(B | A) = P(A ∩ B)/P(A) = | F42: Probability | G42: YouTube
F43: Facebook | G43: Not Use YT | H43: Use YT | I43: Total
B44: P(Use FB | Use YT) = | D44: =H45/H46 -> 0.7160493827 | F44: Not Use FB | G44: =G26:I28/I28 -> 0.08 | H44: 0.23 | I44: 0.31
D45: =IF(ISBLANK(D44),""," "&H45&"/"&H46) -> 0.58/0.81 | F45: Use FB | G45: 0.11 | H45: 0.58 | I45: 0.69
B46: P(Use YT | Use FB) = | D46: =H45/I45 -> 0.8405797101 | F46: Total | G46: 0.19 | H46: 0.81 | I46: 1
D47: =IF(ISBLANK(D46),""," "&H45&"/"&I45) -> 0.58/0.69
J48: Marginal %
B53: P(Not Use YT) = P(B) | F53: 0.19
B54: P(Use FB AND Not Use YT) = P(A AND B) = | F54: 0.11
B55: P(A | B) = P(Use FB | Not Use YT) = | F55: =F54/F53 -> 0.5789473684
F59: Probability | G59: Events | I59: Facebook | J59: YouTube
B60: P(Not Use YT) = P(B) | F60: =COUNTIFS(J60:J259,G60)/F63 -> 0.19 | G60: Not Use YT | I60: Use FB | J60: Use YT
B61: P(Use FB AND Not Use YT) = P(A AND B) = | F61: =COUNTIFS(I60:I259,G61,J60:J259,G60)/F63 -> 0.11 | G61: Use FB | I61: Not Use FB | J61: Use YT
B62: P(A | B) = P(Use FB | Not Use YT) = | F62: =F61/F60 -> 0.5789473684 | I62: Not Use FB | J62: Not Use YT
B63: Total Records | F63: =ROWS(I60:J259) -> 200 | I63: Use FB | J63: Not Use YT
B64: P(A | B) = P(Use FB | Not Use YT) = | F64: =COUNTIFS(I60:I259,G61,J60:J259,G60)/COUNTIFS(J60:J259,G60) -> 0.5789473684 | I64: Use FB | J64: Use YT
I65: Use FB | J65: Use YT
I66: Not Use FB | J66: Not Use YT
I67: Not Use FB | J67: Not Use YT
I68: Use FB | J68: Use YT
I69: Use FB | J69: Use YT
I70: Use FB | J70: Use YT
I71: Use FB | J71: Use YT
I72: Not Use FB | J72: Not Use YT
I73: Use FB | J73: Use YT
I74: Use FB | J74: Use YT
I75: Not Use FB | J75: Use YT
I76: Use FB | J76: Not Use YT
I77: Not Use FB | J77: Use YT
I78: Not Use FB | J78: Use YT
I79: Use FB | J79: Use YT
I80: Not Use FB | J80: Use YT
I81: Not Use FB | J81: Use YT
I82: Use FB | J82: Use YT
I83: Use FB | J83: Use YT
I84: Not Use FB | J84: Use YT
I85: Use FB | J85: Use YT
I86: Use FB | J86: Use YT
I87: Use FB | J87: Use YT
I88: Not Use FB | J88: Not Use YT
I89: Not Use FB | J89: Use YT
I90: Use FB | J90: Not Use YT
I91: Use FB | J91: Not Use YT
I92: Use FB | J92: Use YT
I93: Use FB | J93: Use YT
I94: Use FB | J94: Use YT
I95: Use FB | J95: Not Use YT
I96: Use FB | J96: Use YT
I97: Use FB | J97: Use YT
I98: Use FB | J98: Not Use YT
I99: Use FB | J99: Use YT
I100: Use FB | J100: Use YT
I101: Use FB | J101: Use YT
I102: Use FB | J102: Use YT
I103: Not Use FB | J103: Use YT
I104: Use FB | J104: Use YT
I105: Use FB | J105: Use YT
I106: Not Use FB | J106: Use YT
I107: Use FB | J107: Use YT
I108: Use FB | J108: Use YT
I109: Use FB | J109: Use YT
I110: Use FB | J110: Not Use YT
I111: Use FB | J111: Not Use YT
I112: Not Use FB | J112: Use YT
I113: Not Use FB | J113: Use YT
I114: Not Use FB | J114: Not Use YT
I115: Not Use FB | J115: Use YT
I116: Not Use FB | J116: Use YT
I117: Not Use FB | J117: Use YT
I118: Not Use FB | J118: Use YT
I119: Use FB | J119: Use YT
I120: Use FB | J120: Use YT
I121: Use FB | J121: Use YT
I122: Use FB | J122: Use YT
I123: Use FB | J123: Use YT
I124: Not Use FB | J124: Use YT
I125: Use FB | J125: Use YT
I126: Use FB | J126: Use YT
I127: Use FB | J127: Use YT
I128: Not Use FB | J128: Not Use YT
I129: Use FB | J129: Use YT
I130: Use FB | J130: Use YT
I131: Use FB | J131: Use YT
I132: Use FB | J132: Use YT
I133: Use FB | J133: Use YT
I134: Use FB | J134: Use YT
I135: Use FB | J135: Use YT
I136: Use FB | J136: Not Use YT
I137: Use FB | J137: Use YT
I138: Not Use FB | J138: Use YT
I139: Use FB | J139: Not Use YT
I140: Use FB | J140: Use YT
I141: Use FB | J141: Use YT
I142: Use FB | J142: Use YT
I143: Use FB | J143: Use YT
I144: Use FB | J144: Use YT
I145: Not Use FB | J145: Use YT
I146: Not Use FB | J146: Use YT
I147: Use FB | J147: Use YT
I148: Use FB | J148: Use YT
I149: Use FB | J149: Use YT
I150: Use FB | J150: Use YT
I151: Use FB | J151: Use YT
I152: Use FB | J152: Not Use YT
I153: Not Use FB | J153: Use YT
I154: Use FB | J154: Use YT
I155: Not Use FB | J155: Not Use YT
I156: Not Use FB | J156: Use YT
I157: Use FB | J157: Use YT
I158: Not Use FB | J158: Use YT
I159: Use FB | J159: Use YT
I160: Use FB | J160: Use YT
I161: Not Use FB | J161: Use YT
I162: Not Use FB | J162: Not Use YT
I163: Use FB | J163: Use YT
I164: Use FB | J164: Use YT
I165: Not Use FB | J165: Not Use YT
I166: Not Use FB | J166: Not Use YT
I167: Use FB | J167: Not Use YT
I168: Use FB | J168: Use YT
I169: Use FB | J169: Use YT
I170: Use FB | J170: Use YT
I171: Use FB | J171: Use YT
I172: Not Use FB | J172: Not Use YT
I173: Use FB | J173: Use YT
I174: Use FB | J174: Use YT
I175: Not Use FB | J175: Use YT
I176: Use FB | J176: Not Use YT
I177: Not Use FB | J177: Use YT
I178: Not Use FB | J178: Use YT
I179: Use FB | J179: Use YT
I180: Not Use FB | J180: Use YT
I181: Not Use FB | J181: Use YT
I182: Use FB | J182: Use YT
I183: Use FB | J183: Use YT
I184: Not Use FB | J184: Use YT
I185: Use FB | J185: Use YT
I186: Use FB | J186: Use YT
I187: Use FB | J187: Use YT
I188: Not Use FB | J188: Not Use YT
I189: Not Use FB | J189: Use YT
I190: Use FB | J190: Not Use YT
I191: Use FB | J191: Not Use YT
I192: Use FB | J192: Use YT
I193: Use FB | J193: Use YT
I194: Use FB | J194: Use YT
I195: Use FB | J195: Not Use YT
I196: Use FB | J196: Use YT
I197: Use FB | J197: Use YT
I198: Use FB | J198: Not Use YT
I199: Use FB | J199: Use YT
I200: Use FB | J200: Use YT
I201: Use FB | J201: Use YT
I202: Use FB | J202: Use YT
I203: Not Use FB | J203: Use YT
I204: Use FB | J204: Use YT
I205: Use FB | J205: Use YT
I206: Not Use FB | J206: Use YT
I207: Use FB | J207: Use YT
I208: Use FB | J208: Use YT
I209: Use FB | J209: Use YT
I210: Use FB | J210: Not Use YT
I211: Use FB | J211: Not Use YT
I212: Not Use FB | J212: Use YT
I213: Not Use FB | J213: Use YT
I214: Not Use FB | J214: Not Use YT
... 45 more rows

Sheet V(20)
B3: Joint Probability Tables
B4: Joint Probability Tables are cross tabulated tables that that have row and column header conditions and show AND Logical Test Probabilities (Joint Probabilities) on this inside of the table, Single Condition Probabilities (Marginal Probabilities) in the row and column total sections.
C6: Joint Probability Table | G6: AND % (Joint Probability) | L6: Survey Data:
C7: Probability | D7: YouTube
C8: Facebook | D8: Not Use YT | E8: Use YT | F8: Total | L8: Facebook | M8: YouTube
C9: Not Use FB | D9: 0.08 | E9: 0.23 | F9: 0.31 | L9: Use FB | M9: Use YT
C10: Use FB | D10: 0.11 | E10: 0.58 | F10: 0.69 | L10: Not Use FB | M10: Use YT
C11: Total | D11: 0.19 | E11: 0.81 | F11: 1 | L11: Not Use FB | M11: Not Use YT
L12: Use FB | M12: Not Use YT
G13: Marginal % (Single Condition Prob.) | L13: Use FB | M13: Use YT
B14: Examples: | L14: Use FB | M14: Use YT
B15: 1) Create Joint Probability from a proper data set | L15: Not Use FB | M15: Not Use YT
L16: Not Use FB | M16: Not Use YT
B17: When you have a proper data set with records of data, you can use the PivotTable feature to create a Cross Tabulated Frequency Distribution with the Show Values As % of Grand Total calculation. | L17: Use FB | M17: Use YT
L18: Use FB | M18: Use YT
C19: Joint Probability created with PivotTable: | L19: Use FB | M19: Use YT
L20: Use FB | M20: Use YT
L21: Not Use FB | M21: Not Use YT
L22: Use FB | M22: Use YT
L23: Use FB | M23: Use YT
L24: Not Use FB | M24: Use YT
L25: Use FB | M25: Not Use YT
L26: Not Use FB | M26: Use YT
L27: Not Use FB | M27: Use YT
B28: 2) If you are given a cross tabulated report, the fastest way to create a Joint Probability Table is to use a Spilled Array Formula. | L28: Use FB | M28: Use YT
E29: Report given to you: | F29: Frequency | G29: YouTube | L29: Not Use FB | M29: Use YT
F30: Facebook | G30: Not Use YT | H30: Use YT | I30: Total | L30: Not Use FB | M30: Use YT
D31: Facebook = FB | F31: Not Use FB | G31: 16 | H31: 46 | I31: 62 | L31: Use FB | M31: Use YT
D32: YouTube = YT | F32: Use FB | G32: 22 | H32: 116 | I32: 138 | L32: Use FB | M32: Use YT
F33: Total | G33: 38 | H33: 162 | I33: 200 | L33: Not Use FB | M33: Use YT
B34: Steps to create Joint Probability Table: | L34: Use FB | M34: Use YT
B35: 1) Copy first report | L35: Use FB | M35: Use YT
B36: 2) Delete numbers | L36: Use FB | M36: Use YT
B37: 3) Create spilled array formula | L37: Not Use FB | M37: Not Use YT
L38: Not Use FB | M38: Use YT
L39: Use FB | M39: Not Use YT
L40: Use FB | M40: Not Use YT
E41: =_xlfn.IFNA("Joint Probability Table Formula: "&_xlfn.FORMULATEXT(G37),"") ->  | L41: Use FB | M41: Use YT
L42: Use FB | M42: Use YT
H43: PT Prob. | L43: Use FB | M43: Use YT
C44: Single Condition | E44: P(Not Use YT) = | L44: Use FB | M44: Not Use YT
C45: AND Logical Test | E45: P(Not Use FB AND Use YT) = | L45: Use FB | M45: Use YT
C46: OR Logical Test | E46: P(Not Use FB OR Use YT) = | L46: Use FB | M46: Use YT
C47: Condtional Test | E47: P(Not Use YT | Not Use FB) = | L47: Use FB | M47: Not Use YT
L48: Use FB | M48: Use YT
F49: Old School: | L49: Use FB | M49: Use YT
L50: Use FB | M50: Use YT
L51: Use FB | M51: Use YT
L52: Not Use FB | M52: Use YT
L53: Use FB | M53: Use YT
L54: Use FB | M54: Use YT
L55: Not Use FB | M55: Use YT
L56: Use FB | M56: Use YT
L57: Use FB | M57: Use YT
L58: Use FB | M58: Use YT
L59: Use FB | M59: Not Use YT
L60: Use FB | M60: Not Use YT
L61: Not Use FB | M61: Use YT
L62: Not Use FB | M62: Use YT
L63: Not Use FB | M63: Not Use YT
L64: Not Use FB | M64: Use YT
L65: Not Use FB | M65: Use YT
L66: Not Use FB | M66: Use YT
L67: Not Use FB | M67: Use YT
L68: Use FB | M68: Use YT
L69: Use FB | M69: Use YT
L70: Use FB | M70: Use YT
L71: Use FB | M71: Use YT
L72: Use FB | M72: Use YT
L73: Not Use FB | M73: Use YT
L74: Use FB | M74: Use YT
L75: Use FB | M75: Use YT
L76: Use FB | M76: Use YT
L77: Not Use FB | M77: Not Use YT
L78: Use FB | M78: Use YT
L79: Use FB | M79: Use YT
L80: Use FB | M80: Use YT
L81: Use FB | M81: Use YT
L82: Use FB | M82: Use YT
L83: Use FB | M83: Use YT
L84: Use FB | M84: Use YT
L85: Use FB | M85: Not Use YT
L86: Use FB | M86: Use YT
L87: Not Use FB | M87: Use YT
L88: Use FB | M88: Not Use YT
L89: Use FB | M89: Use YT
L90: Use FB | M90: Use YT
L91: Use FB | M91: Use YT
L92: Use FB | M92: Use YT
L93: Use FB | M93: Use YT
L94: Not Use FB | M94: Use YT
L95: Not Use FB | M95: Use YT
L96: Use FB | M96: Use YT
L97: Use FB | M97: Use YT
L98: Use FB | M98: Use YT
L99: Use FB | M99: Use YT
L100: Use FB | M100: Use YT
L101: Use FB | M101: Not Use YT
L102: Not Use FB | M102: Use YT
L103: Use FB | M103: Use YT
L104: Not Use FB | M104: Not Use YT
L105: Not Use FB | M105: Use YT
L106: Use FB | M106: Use YT
L107: Not Use FB | M107: Use YT
L108: Use FB | M108: Use YT
L109: Use FB | M109: Use YT
L110: Not Use FB | M110: Use YT
L111: Not Use FB | M111: Not Use YT
L112: Use FB | M112: Use YT
L113: Use FB | M113: Use YT
L114: Not Use FB | M114: Not Use YT
L115: Not Use FB | M115: Not Use YT
L116: Use FB | M116: Not Use YT
L117: Use FB | M117: Use YT
L118: Use FB | M118: Use YT
L119: Use FB | M119: Use YT
L120: Use FB | M120: Use YT
L121: Not Use FB | M121: Not Use YT
L122: Use FB | M122: Use YT
L123: Use FB | M123: Use YT
L124: Not Use FB | M124: Use YT
L125: Use FB | M125: Not Use YT
L126: Not Use FB | M126: Use YT
L127: Not Use FB | M127: Use YT
L128: Use FB | M128: Use YT
L129: Not Use FB | M129: Use YT
L130: Not Use FB | M130: Use YT
L131: Use FB | M131: Use YT
L132: Use FB | M132: Use YT
L133: Not Use FB | M133: Use YT
L134: Use FB | M134: Use YT
L135: Use FB | M135: Use YT
L136: Use FB | M136: Use YT
L137: Not Use FB | M137: Not Use YT
L138: Not Use FB | M138: Use YT
L139: Use FB | M139: Not Use YT
L140: Use FB | M140: Not Use YT
L141: Use FB | M141: Use YT
L142: Use FB | M142: Use YT
L143: Use FB | M143: Use YT
L144: Use FB | M144: Not Use YT
L145: Use FB | M145: Use YT
L146: Use FB | M146: Use YT
L147: Use FB | M147: Not Use YT
L148: Use FB | M148: Use YT
L149: Use FB | M149: Use YT
L150: Use FB | M150: Use YT
L151: Use FB | M151: Use YT
L152: Not Use FB | M152: Use YT
L153: Use FB | M153: Use YT
L154: Use FB | M154: Use YT
L155: Not Use FB | M155: Use YT
L156: Use FB | M156: Use YT
L157: Use FB | M157: Use YT
L158: Use FB | M158: Use YT
L159: Use FB | M159: Not Use YT
L160: Use FB | M160: Not Use YT
L161: Not Use FB | M161: Use YT
L162: Not Use FB | M162: Use YT
L163: Not Use FB | M163: Not Use YT
L164: Not Use FB | M164: Use YT
L165: Not Use FB | M165: Use YT
L166: Not Use FB | M166: Use YT
L167: Not Use FB | M167: Use YT
L168: Use FB | M168: Use YT
L169: Use FB | M169: Use YT
L170: Use FB | M170: Use YT
L171: Use FB | M171: Use YT
L172: Use FB | M172: Use YT
L173: Not Use FB | M173: Use YT
L174: Use FB | M174: Use YT
L175: Use FB | M175: Use YT
L176: Use FB | M176: Use YT
L177: Not Use FB | M177: Not Use YT
L178: Use FB | M178: Use YT
L179: Use FB | M179: Use YT
L180: Use FB | M180: Use YT
L181: Use FB | M181: Use YT
L182: Use FB | M182: Use YT
L183: Use FB | M183: Use YT
L184: Use FB | M184: Use YT
L185: Use FB | M185: Not Use YT
L186: Use FB | M186: Use YT
L187: Not Use FB | M187: Use YT
L188: Use FB | M188: Not Use YT
L189: Use FB | M189: Use YT
L190: Use FB | M190: Use YT
L191: Use FB | M191: Use YT
L192: Use FB | M192: Use YT
L193: Use FB | M193: Use YT
L194: Not Use FB | M194: Use YT
L195: Not Use FB | M195: Use YT
L196: Use FB | M196: Use YT
L197: Use FB | M197: Use YT
L198: Use FB | M198: Use YT
L199: Use FB | M199: Use YT
L200: Use FB | M200: Use YT
L201: Use FB | M201: Not Use YT
L202: Not Use FB | M202: Use YT
L203: Use FB | M203: Use YT
... 5 more rows

Sheet V(20an)
B3: Joint Probability Tables
B4: Joint Probability Tables are cross tabulated tables that that have row and column header conditions and show AND Logical Test Probabilities (Joint Probabilities) on this inside of the table, Single Condition Probabilities (Marginal Probabilities) in the row and column total sections.
C6: Joint Probability Table | G6: AND % (Joint Probability) | L6: Survey Data:
C7: Probability | D7: YouTube
C8: Facebook | D8: Not Use YT | E8: Use YT | F8: Total | L8: Facebook | M8: YouTube | O8: Count of YouTube | P8: YouTube
C9: Not Use FB | D9: 0.08 | E9: 0.23 | F9: 0.31 | L9: Use FB | M9: Use YT | O9: Facebook | P9: Not Use YT | Q9: Use YT | R9: Grand Total
C10: Use FB | D10: 0.11 | E10: 0.58 | F10: 0.69 | L10: Not Use FB | M10: Use YT | O10: Not Use FB | P10: 0.08 | Q10: 0.23 | R10: 0.31
C11: Total | D11: 0.19 | E11: 0.81 | F11: 1 | L11: Not Use FB | M11: Not Use YT | O11: Use FB | P11: 0.11 | Q11: 0.58 | R11: 0.69
L12: Use FB | M12: Not Use YT | O12: Grand Total | P12: 0.19 | Q12: 0.81 | R12: 1
G13: Marginal % (Single Condition Prob.) | L13: Use FB | M13: Use YT
B14: Examples: | L14: Use FB | M14: Use YT
B15: 1) Create Joint Probability from a proper data set | L15: Not Use FB | M15: Not Use YT
L16: Not Use FB | M16: Not Use YT
B17: When you have a proper data set with records of data, you can use the PivotTable feature to create a Cross Tabulated Frequency Distribution with the Show Values As % of Grand Total calculation. | L17: Use FB | M17: Use YT
L18: Use FB | M18: Use YT
C19: Joint Probability created with PivotTable: | L19: Use FB | M19: Use YT
L20: Use FB | M20: Use YT
L21: Not Use FB | M21: Not Use YT
L22: Use FB | M22: Use YT
L23: Use FB | M23: Use YT
L24: Not Use FB | M24: Use YT
L25: Use FB | M25: Not Use YT
L26: Not Use FB | M26: Use YT
L27: Not Use FB | M27: Use YT
B28: 2) If you are given a cross tabulated report, the fastest way to create a Joint Probability Table is to use a Spilled Array Formula. | L28: Use FB | M28: Use YT
E29: Report given to you: | F29: Frequency | G29: YouTube | L29: Not Use FB | M29: Use YT
F30: Facebook | G30: Not Use YT | H30: Use YT | I30: Total | L30: Not Use FB | M30: Use YT
D31: Facebook = FB | F31: Not Use FB | G31: 16 | H31: 46 | I31: 62 | L31: Use FB | M31: Use YT
D32: YouTube = YT | F32: Use FB | G32: 22 | H32: 116 | I32: 138 | L32: Use FB | M32: Use YT
F33: Total | G33: 38 | H33: 162 | I33: 200 | L33: Not Use FB | M33: Use YT
B34: Steps to create Joint Probability Table: | L34: Use FB | M34: Use YT
B35: 1) Copy first report | L35: Use FB | M35: Use YT
B36: 2) Delete numbers | F36: Joint P. Tbl | G36: YouTube | L36: Use FB | M36: Use YT
B37: 3) Create spilled array formula | F37: Facebook | G37: Not Use YT | H37: Use YT | I37: Total | L37: Not Use FB | M37: Not Use YT
F38: Not Use FB | G38: =G31:I33/I33 -> 0.08 | H38: 0.23 | I38: 0.31 | L38: Not Use FB | M38: Use YT
F39: Use FB | G39: 0.11 | H39: 0.58 | I39: 0.69 | L39: Use FB | M39: Not Use YT
F40: Total | G40: 0.19 | H40: 0.81 | I40: 1 | L40: Use FB | M40: Not Use YT
E41: =_xlfn.IFNA("Joint Probability Table Formula: "&_xlfn.FORMULATEXT(G37),"") ->  | L41: Use FB | M41: Use YT
L42: Use FB | M42: Use YT
H43: PT Prob. | I43: Check | J43: Check2 | L43: Use FB | M43: Use YT
C44: Single Condition | E44: P(Not Use YT) = | H44: =G40 -> 0.19 | I44: =COUNTIFS(M9:M208,G37)/ROWS(L9:M208) -> 0.19 | J44: =G33/I33 -> 0.19 | L44: Use FB | M44: Not Use YT
C45: AND Logical Test | E45: P(Not Use FB AND Use YT) = | H45: =H38 -> 0.23 | I45: =COUNTIFS(L9:L208,F38,M9:M208,H37)/ROWS(L9:M208) -> 0.23 | J45: =H31/I33 -> 0.23 | L45: Use FB | M45: Use YT
C46: OR Logical Test | E46: P(Not Use FB OR Use YT) = | H46: =I38+H40-H38 -> 0.89 | I46: =ROWS(_xlfn._xlws.FILTER(L9:M208,(L9:L208=F38)+(M9:M208=H37)))/ROWS(L9:M208) -> 0.89 | J46: =(I31+H33-H31)/I33 -> 0.89 | L46: Use FB | M46: Use YT
C47: Condtional Test | E47: P(Not Use YT | Not Use FB) = | H47: =G38/I38 -> 0.2580645161 | I47: =COUNTIFS(M9:M208,G37,L9:L208,F38)/COUNTIFS(L9:L208,F38) -> 0.2580645161 | J47: =G31/I31 -> 0.2580645161 | L47: Use FB | M47: Not Use YT
L48: Use FB | M48: Use YT
F49: Old School: | L49: Use FB | M49: Use YT
F50: Joint P. Tbl | G50: YouTube | L50: Use FB | M50: Use YT
F51: Facebook | G51: Not Use YT | H51: Use YT | I51: Total | L51: Use FB | M51: Use YT
F52: Not Use FB | G52: =G31/$I$33 -> 0.08 | H52: =H31/$I$33 -> 0.23 | I52: 0.31 | L52: Not Use FB | M52: Use YT
F53: Use FB | G53: =G32/$I$33 -> 0.11 | H53: =H32/$I$33 -> 0.58 | I53: 0.69 | L53: Use FB | M53: Use YT
F54: Total | G54: 0.19 | H54: =H33/$I$33 -> 0.81 | I54: 1 | L54: Use FB | M54: Use YT
L55: Not Use FB | M55: Use YT
L56: Use FB | M56: Use YT
L57: Use FB | M57: Use YT
F58: Other Alternative based on only dataset: | L58: Use FB | M58: Use YT
F59: Joint P. Tbl | G59: YouTube | L59: Use FB | M59: Not Use YT
F60: Facebook | G60: Not Use YT | H60: Use YT | I60: Total | L60: Use FB | M60: Not Use YT
F61: Not Use FB | G61: =COUNTIFS(L9:L208,F61:F62,M9:M208,G60:H60)/ROWS(L9:M208) -> 0.08 | H61: 0.23 | I61: =COUNTIFS(L9:L208,F61:F62)/ROWS(L9:M208) -> 0.31 | L61: Not Use FB | M61: Use YT
F62: Use FB | G62: 0.11 | H62: 0.58 | I62: 0.69 | L62: Not Use FB | M62: Use YT
F63: Total | G63: =COUNTIFS(M9:M208,G60:H60)/ROWS(L9:M208) -> 0.19 | H63: 0.81 | I63: =SUM(_xlfn.ANCHORARRAY(I61)) -> 1 | L63: Not Use FB | M63: Not Use YT
L64: Not Use FB | M64: Use YT
L65: Not Use FB | M65: Use YT
L66: Not Use FB | M66: Use YT
L67: Not Use FB | M67: Use YT
L68: Use FB | M68: Use YT
L69: Use FB | M69: Use YT
L70: Use FB | M70: Use YT
L71: Use FB | M71: Use YT
L72: Use FB | M72: Use YT
L73: Not Use FB | M73: Use YT
L74: Use FB | M74: Use YT
L75: Use FB | M75: Use YT
L76: Use FB | M76: Use YT
L77: Not Use FB | M77: Not Use YT
L78: Use FB | M78: Use YT
L79: Use FB | M79: Use YT
L80: Use FB | M80: Use YT
L81: Use FB | M81: Use YT
L82: Use FB | M82: Use YT
L83: Use FB | M83: Use YT
L84: Use FB | M84: Use YT
L85: Use FB | M85: Not Use YT
L86: Use FB | M86: Use YT
L87: Not Use FB | M87: Use YT
L88: Use FB | M88: Not Use YT
L89: Use FB | M89: Use YT
L90: Use FB | M90: Use YT
L91: Use FB | M91: Use YT
L92: Use FB | M92: Use YT
L93: Use FB | M93: Use YT
L94: Not Use FB | M94: Use YT
L95: Not Use FB | M95: Use YT
L96: Use FB | M96: Use YT
L97: Use FB | M97: Use YT
L98: Use FB | M98: Use YT
L99: Use FB | M99: Use YT
L100: Use FB | M100: Use YT
L101: Use FB | M101: Not Use YT
L102: Not Use FB | M102: Use YT
L103: Use FB | M103: Use YT
L104: Not Use FB | M104: Not Use YT
L105: Not Use FB | M105: Use YT
L106: Use FB | M106: Use YT
L107: Not Use FB | M107: Use YT
L108: Use FB | M108: Use YT
L109: Use FB | M109: Use YT
L110: Not Use FB | M110: Use YT
L111: Not Use FB | M111: Not Use YT
L112: Use FB | M112: Use YT
L113: Use FB | M113: Use YT
L114: Not Use FB | M114: Not Use YT
L115: Not Use FB | M115: Not Use YT
L116: Use FB | M116: Not Use YT
L117: Use FB | M117: Use YT
L118: Use FB | M118: Use YT
L119: Use FB | M119: Use YT
L120: Use FB | M120: Use YT
L121: Not Use FB | M121: Not Use YT
L122: Use FB | M122: Use YT
L123: Use FB | M123: Use YT
L124: Not Use FB | M124: Use YT
L125: Use FB | M125: Not Use YT
L126: Not Use FB | M126: Use YT
L127: Not Use FB | M127: Use YT
L128: Use FB | M128: Use YT
L129: Not Use FB | M129: Use YT
L130: Not Use FB | M130: Use YT
L131: Use FB | M131: Use YT
L132: Use FB | M132: Use YT
L133: Not Use FB | M133: Use YT
L134: Use FB | M134: Use YT
L135: Use FB | M135: Use YT
L136: Use FB | M136: Use YT
L137: Not Use FB | M137: Not Use YT
L138: Not Use FB | M138: Use YT
L139: Use FB | M139: Not Use YT
L140: Use FB | M140: Not Use YT
L141: Use FB | M141: Use YT
L142: Use FB | M142: Use YT
L143: Use FB | M143: Use YT
L144: Use FB | M144: Not Use YT
L145: Use FB | M145: Use YT
L146: Use FB | M146: Use YT
L147: Use FB | M147: Not Use YT
L148: Use FB | M148: Use YT
L149: Use FB | M149: Use YT
L150: Use FB | M150: Use YT
L151: Use FB | M151: Use YT
L152: Not Use FB | M152: Use YT
L153: Use FB | M153: Use YT
L154: Use FB | M154: Use YT
L155: Not Use FB | M155: Use YT
L156: Use FB | M156: Use YT
L157: Use FB | M157: Use YT
L158: Use FB | M158: Use YT
L159: Use FB | M159: Not Use YT
L160: Use FB | M160: Not Use YT
L161: Not Use FB | M161: Use YT
L162: Not Use FB | M162: Use YT
L163: Not Use FB | M163: Not Use YT
L164: Not Use FB | M164: Use YT
L165: Not Use FB | M165: Use YT
L166: Not Use FB | M166: Use YT
L167: Not Use FB | M167: Use YT
L168: Use FB | M168: Use YT
L169: Use FB | M169: Use YT
L170: Use FB | M170: Use YT
L171: Use FB | M171: Use YT
L172: Use FB | M172: Use YT
L173: Not Use FB | M173: Use YT
L174: Use FB | M174: Use YT
L175: Use FB | M175: Use YT
L176: Use FB | M176: Use YT
L177: Not Use FB | M177: Not Use YT
L178: Use FB | M178: Use YT
L179: Use FB | M179: Use YT
L180: Use FB | M180: Use YT
L181: Use FB | M181: Use YT
L182: Use FB | M182: Use YT
L183: Use FB | M183: Use YT
L184: Use FB | M184: Use YT
L185: Use FB | M185: Not Use YT
L186: Use FB | M186: Use YT
L187: Not Use FB | M187: Use YT
L188: Use FB | M188: Not Use YT
L189: Use FB | M189: Use YT
L190: Use FB | M190: Use YT
L191: Use FB | M191: Use YT
L192: Use FB | M192: Use YT
L193: Use FB | M193: Use YT
L194: Not Use FB | M194: Use YT
L195: Not Use FB | M195: Use YT
L196: Use FB | M196: Use YT
L197: Use FB | M197: Use YT
L198: Use FB | M198: Use YT
L199: Use FB | M199: Use YT
L200: Use FB | M200: Use YT
L201: Use FB | M201: Not Use YT
L202: Not Use FB | M202: Use YT
L203: Use FB | M203: Use YT
... 5 more rows

Sheet V(21)
B3: Using the Multiplication Law of Probability
B4: Multiplication rule for dependent events:
B5: P(A AND B) = P(B)*P(A | B)
B6: P(A AND B) = P(A)*P(B | A)
B7: Multiplication rule for independent events:
B8: P(A AND B) = P(A)*P(B)
B9: 4 examples of calculating the probability for an AND Logical Test:
B10: 1) Calculate the probability that both Alphabet stock and Safeway stock will go up next year.
B11: 2) From a Cross Tabulated Report on American Social Media create a Probability Tree on worksheet.
B12: 3) From a Cross Tabulated Report on American Social Media create a Probability Tree on paper.
B13: 4) From a Cross Tabulated Report on Heart Attack & Smoking create a Probability Tree on paper.
B15: 1) The probability that Alphabet stock (Google) will go up next year is 0.65 and the probability that Safeway stock will go up next year is 0.35. What is probability that both will go up. Assume events are independent.
L16: P(Q1 AND Q2) = P(Q1)*P(Q2 | Q1)
D17: P(Alphabet stock will go up in 2023) | H17: 0.65 | L17: P(Q1 AND Q2) = | N17: =_xlfn.IFNA(_xlfn.FORMULATEXT(M17),"") -> 
D18: P(Safeway will go up in 2023) | H18: 0.35
D19: P(Both will go up in 2023) | I19: =IF(ISBLANK(H19),""," "&H17&"*"&H18) ->  | L19: Probability make sale on a sales call | M19: 0.15
L20: P(Sale on Call 1 AND Sale on Call 2) | N20: =_xlfn.IFNA(_xlfn.FORMULATEXT(M20),"") -> 
B21: 2) A random survey of American social media use was conducted. The random experiment will be to first ask: "Do you use YouTube, Yes, or No?". The second question will be to ask: "Do you use Facebook, Yes, or No?". From a Cross Tab Report shown below, create a Probability Tree that shows Root (Do you use YouTube?), Conditional (Do you use Facebook?) and Joint Probabilities (Do you use both?).
C23: Frequency | D23: YouTube
C24: Facebook | D24: Not Use YT | E24: Use YT | F24: Total
C25: Not Use FB | D25: 16 | E25: 46 | F25: 62
C26: Use FB | D26: 22 | E26: 116 | F26: 138 | H26: Multiplication Law of Probability
C27: Total | D27: 38 | E27: 162 | F27: 200 | H27: ê | I27: ê | J27: ê
B29: Marginal Probabilities | E29: Conditional Probabilities | H29: Joint Probabilities (AND)
B31: Use YouTube? | E31: Use Facebook? | H31: Use Both
E33: Yes = | F33: =E26&"/"&E27 -> 116/162 | H33: =$C$929&"*"&F33&" = "&CHAR(10)&E26&"/"&F27 -> *116/162 = 116/200
B36: Yes = | C36: =E27&"/"&F27 -> 162/200
E39: No = | F39: =E25&"/"&E27 -> 46/162 | H39: =$C$929&"*"&F39&" = "&CHAR(10)&E25&"/"&F27 -> *46/162 = 46/200
E43: Yes = | F43: =D26&"/"&D27 -> 22/38 | H43: =$C$939&"*"&F43&" = "&CHAR(10)&D26&"/"&F27 -> *22/38 = 22/200
B46: No = | C46: =D27&"/"&F27 -> 38/200
E49: No = | F49: =D25&"/"&D27 -> 16/38 | H49: =$C$939&"*"&F49&" = "&CHAR(10)&D25&"/"&F27 -> *16/38 = 16/200

Sheet V(21an)
B3: Using the Multiplication Law of Probability
B4: Multiplication rule for dependent events:
B5: P(A AND B) = P(B)*P(A | B)
B6: P(A AND B) = P(A)*P(B | A)
B7: Multiplication rule for independent events:
B8: P(A AND B) = P(A)*P(B)
B9: 4 examples of calculating the probability for an AND Logical Test:
B10: 1) Calculate the probability that both Alphabet stock and Safeway stock will go up next year.
B11: 2) From a Cross Tabulated Report on American Social Media create a Probability Tree on worksheet.
B12: 3) From a Cross Tabulated Report on American Social Media create a Probability Tree on paper.
B13: 4) From a Cross Tabulated Report on Heart Attack & Smoking create a Probability Tree on paper.
B15: 1) The probability that Alphabet stock (Google) will go up next year is 0.65 and the probability that Safeway stock will go up next year is 0.35. What is probability that both will go up. Assume events are independent.
L16: P(Q1 AND Q2) = P(Q1)*P(Q2 | Q1)
D17: P(Alphabet stock will go up in 2023) | H17: 0.65 | L17: P(Q1 AND Q2) = | M17: =4/52*3/51 -> 0.004524886878 | N17: =_xlfn.IFNA(_xlfn.FORMULATEXT(M17),"") -> =4/52*3/51
D18: P(Safeway will go up in 2023) | H18: 0.35
D19: P(Both will go up in 2023) | H19: =H17*H18 -> 0.2275 | I19: =IF(ISBLANK(H19),""," "&H17&"*"&H18) -> 0.65*0.35 | L19: Probability make sale on a sales call | M19: 0.15
L20: P(Sale on Call 1 AND Sale on Call 2) | M20: =M19*M19 -> 0.0225 | N20: =_xlfn.IFNA(_xlfn.FORMULATEXT(M20),"") -> =M19*M19
B21: 2) A random survey of American social media use was conducted. The random experiment will be to first ask: "Do you use YouTube, Yes, or No?". The second question will be to ask: "Do you use Facebook, Yes, or No?". From a Cross Tab Report shown below, create a Probability Tree that shows Root (Do you use YouTube?), Conditional (Do you use Facebook?) and Joint Probabilities (Do you use both?).
C23: Frequency | D23: YouTube
C24: Facebook | D24: Not Use YT | E24: Use YT | F24: Total
C25: Not Use FB | D25: 16 | E25: 46 | F25: 62
C26: Use FB | D26: 22 | E26: 116 | F26: 138 | H26: Multiplication Law of Probability
C27: Total | D27: 38 | E27: 162 | F27: 200 | H27: ê | I27: ê | J27: ê
B29: Marginal Probabilities | E29: Conditional Probabilities | H29: Joint Probabilities (AND)
B31: Use YouTube? | E31: Use Facebook? | H31: Use Both
E33: Yes = | F33: =E26&"/"&E27 -> 116/162 | G33: =E26/E27 -> 0.7160493827 | H33: =$C$929&"*"&F33&" = "&CHAR(10)&E26&"/"&F27 -> *116/162 = 116/200 | J33: =D36*G33 -> 0.58
B36: Yes = | C36: =E27&"/"&F27 -> 162/200 | D36: =E27/F27 -> 0.81
E39: No = | F39: =E25&"/"&E27 -> 46/162 | G39: =E25/E27 -> 0.2839506173 | H39: =$C$929&"*"&F39&" = "&CHAR(10)&E25&"/"&F27 -> *46/162 = 46/200 | J39: =D36*G39 -> 0.23
E43: Yes = | F43: =D26&"/"&D27 -> 22/38 | G43: =D26/D27 -> 0.5789473684 | H43: =$C$939&"*"&F43&" = "&CHAR(10)&D26&"/"&F27 -> *22/38 = 22/200 | J43: =D46*G43 -> 0.11
B46: No = | C46: =D27&"/"&F27 -> 38/200 | D46: =D27/F27 -> 0.19
E49: No = | F49: =D25&"/"&D27 -> 16/38 | G49: =D25/D27 -> 0.4210526316 | H49: =$C$939&"*"&F49&" = "&CHAR(10)&D25&"/"&F27 -> *16/38 = 16/200 | J49: =D46*G49 -> 0.08

Sheet NotIndependent
E7: Frequency | F7: YouTube
E8: Facebook | F8: Not Use YT | G8: Use YT | H8: Total
E9: Not Use FB | F9: 16 | G9: 46 | H9: 62
E10: Use FB | F10: 22 | G10: 116 | H10: 138
E11: Total | F11: 38 | G11: 162 | H11: 200
E13: ="P("&E10&" | "&G8&") = "&G10&"/"&G11&" = "&ROUND(G10/G11,4) -> P(Use FB | Use YT) = 116/162 = 0.716
E14: ="P("&E10&") = "&H10&"/"&H11&" = "&H10/H11 -> P(Use FB) = 138/200 = 0.69
E16: ="P("&E10&" | "&G8&") <> P("&E10&")" -> P(Use FB | Use YT) <> P(Use FB)
E17: =ROUND(G10/G11,4)&" <> "&H10/H11 -> 0.716 <> 0.69
E19: ="The Events "&E10&" and "&G8&" are not independent, they are dependent" -> The Events Use FB and Use YT are not independent, they are dependent

Sheet V(22an)
B3: Using Multiplication Law and Bayes' Theorem, Tabular Method can be used:
B5: Example 1:
B6: You're about to take CPA exam, and you heard from last exam that the pass rate was 25%
B7: P(Pass) | D7: 0.25
B8: P(Not Pass) | D8: =1-D7 -> 0.75 | E8: =IF(ISBLANK(D8),""," 1 - "&D7) -> 1 - 0.25
B9: Your plan is to take a preparation course before taking the CPA exam, and therefore you would like to know the probability P(Pass | Took Prep Course).
B10: Then you get new information from a survey that asked people who passed exam, whether or not they took a Preparation Course for the CPA exam:
B11: P(Took Prep Course | Pass) | E11: 0.6
B12: P(Took Prep Course | Not Pass) | E12: 0.31
B14: For this textbook, these probabilities are given | G14: Use Multiplication Rule to get AND
B15: Prior (Marginal) | D15: Conditional | G15: Joint (AND)
B16: P(Pass) | C16: =D7 -> 0.25 | D16: P(Took Prep Course | Pass) | F16: =E11 -> 0.6 | G16: P(Pass AND Took Prep Course) | I16: =C16*F16 -> 0.15 | J16: =IF(ISBLANK(I16),""," "&C16&"*"&F16) -> 0.25*0.6
B17: P(Not Pass) | C17: =1-C16 -> 0.75 | D17: P(Took Prep Course | Not Pass) | F17: 0.31 | G17: P(Not Pass AND Took Prep Course) | I17: =C17*F17 -> 0.2325 | J17: =IF(ISBLANK(I17),""," "&C17&"*"&F17) -> 0.75*0.31
B18: Total | C18: =SUM(C16:C17) -> 1 | H18: Total = Probability Took Prep Course => | I18: =SUM(I16:I17) -> 0.3825
D20: Use "Concept: compare parts to whole", or Conditional Probability Rule.
G21: Posterior (Revised Probabilities)
G22: P(Pass | Took Prep Course) | I22: =I16/I18 -> 0.3921568627 | J22: =IF(ISBLANK(I22),""," "&I16&"/"&I17) -> 0.15/0.2325
G23: P(Pass | Took Prep Course) | I23: =D7*E11/SUMPRODUCT(D7:D8,E11:E12) -> 0.3921568627
G24: =_xlfn.IFNA(_xlfn.FORMULATEXT(I23),"") -> =D7*E11/SUMPRODUCT(D7:D8,E11:E12)

Sheet BT-CPA
B2: Survey of people who took CPA exam:
B3: Q1: What was your score (0-1000)?
B4: Q2: Did you take a Preparation Course (PC or NPC)?
B6: Score | C6: Prep Course | E6: P(Not Pass | Took PC) =
B7: 927 | C7: Not Take Prep Course | E7: P(Pass | Took PC) = | K7: P(Pass | Took PC) = P(Pass AND Took PC)/P(Took PC)
B8: 343 | C8: Not Take Prep Course
B9: 757 | C9: Took Prep Course | E9: P(Not Pass | Took PC) = | K9: # Took Prep Course
B10: 834 | C10: Took Prep Course | E10: P(Pass | Took PC) = | K10: # Pass AND Took PC
B11: 641 | C11: Not Take Prep Course | K11: P(Pass | Took PC) =
B12: 204 | C12: Not Take Prep Course
B13: 139 | C13: Not Take Prep Course | K13: Criteria 1
B14: 475 | C14: Not Take Prep Course | K14: Criteria 2
B15: 197 | C15: Took Prep Course
B16: 757 | C16: Took Prep Course
B17: 143 | C17: Not Take Prep Course
B18: 46 | C18: Not Take Prep Course
B19: 108 | C19: Not Take Prep Course
B20: 544 | C20: Took Prep Course
B21: 535 | C21: Not Take Prep Course
B22: 363 | C22: Not Take Prep Course
B23: 891 | C23: Took Prep Course
B24: 891 | C24: Took Prep Course
B25: 145 | C25: Not Take Prep Course
B26: 688 | C26: Not Take Prep Course
B27: 420 | C27: Not Take Prep Course
B28: 817 | C28: Not Take Prep Course
B29: 768 | C29: Took Prep Course
B30: 885 | C30: Took Prep Course
B31: 676 | C31: Not Take Prep Course
B32: 536 | C32: Took Prep Course
B33: 744 | C33: Not Take Prep Course
B34: 917 | C34: Took Prep Course
B35: 623 | C35: Not Take Prep Course
B36: 989 | C36: Not Take Prep Course
B37: 649 | C37: Not Take Prep Course
B38: 251 | C38: Took Prep Course
B39: 383 | C39: Not Take Prep Course
B40: 822 | C40: Not Take Prep Course
B41: 643 | C41: Took Prep Course
B42: 877 | C42: Took Prep Course
B43: 46 | C43: Not Take Prep Course
B44: 706 | C44: Not Take Prep Course
B45: 816 | C45: Not Take Prep Course
B46: 325 | C46: Not Take Prep Course
B47: 332 | C47: Not Take Prep Course
B48: 157 | C48: Took Prep Course
B49: 142 | C49: Not Take Prep Course
B50: 621 | C50: Not Take Prep Course
B51: 657 | C51: Took Prep Course
B52: 902 | C52: Not Take Prep Course
B53: 806 | C53: Took Prep Course
B54: 560 | C54: Took Prep Course
B55: 265 | C55: Not Take Prep Course
B56: 99 | C56: Took Prep Course
B57: 287 | C57: Not Take Prep Course
B58: 942 | C58: Not Take Prep Course
B59: 187 | C59: Took Prep Course
B60: 335 | C60: Not Take Prep Course
B61: 194 | C61: Took Prep Course
B62: 248 | C62: Took Prep Course
B63: 130 | C63: Took Prep Course
B64: 209 | C64: Took Prep Course
B65: 536 | C65: Not Take Prep Course
B66: 433 | C66: Not Take Prep Course
B67: 185 | C67: Took Prep Course
B68: 481 | C68: Took Prep Course
B69: 454 | C69: Not Take Prep Course
B70: 257 | C70: Not Take Prep Course
B71: 223 | C71: Took Prep Course
B72: 920 | C72: Took Prep Course
B73: 515 | C73: Not Take Prep Course
B74: 822 | C74: Took Prep Course
B75: 593 | C75: Not Take Prep Course
B76: 439 | C76: Not Take Prep Course
B77: 271 | C77: Not Take Prep Course
B78: 644 | C78: Took Prep Course
B79: 587 | C79: Not Take Prep Course
B80: 232 | C80: Not Take Prep Course
B81: 827 | C81: Not Take Prep Course
B82: 750 | C82: Took Prep Course
B83: 958 | C83: Took Prep Course
B84: 668 | C84: Took Prep Course
B85: 521 | C85: Not Take Prep Course
B86: 619 | C86: Not Take Prep Course
B87: 886 | C87: Not Take Prep Course
B88: 146 | C88: Not Take Prep Course
B89: 110 | C89: Not Take Prep Course
B90: 303 | C90: Not Take Prep Course
B91: 167 | C91: Took Prep Course
B92: 935 | C92: Not Take Prep Course
B93: 650 | C93: Not Take Prep Course
B94: 220 | C94: Not Take Prep Course
B95: 149 | C95: Not Take Prep Course
B96: 227 | C96: Not Take Prep Course
B97: 391 | C97: Not Take Prep Course
B98: 801 | C98: Took Prep Course
B99: 304 | C99: Took Prep Course
B100: 647 | C100: Took Prep Course
B101: 947 | C101: Took Prep Course
B102: 853 | C102: Not Take Prep Course
B103: 794 | C103: Took Prep Course
B104: 764 | C104: Not Take Prep Course
B105: 45 | C105: Took Prep Course
B106: 533 | C106: Took Prep Course
B107: 521 | C107: Not Take Prep Course
B108: 721 | C108: Took Prep Course
B109: 224 | C109: Not Take Prep Course
B110: 20 | C110: Not Take Prep Course
B111: 451 | C111: Not Take Prep Course
B112: 985 | C112: Took Prep Course
B113: 192 | C113: Took Prep Course
B114: 988 | C114: Took Prep Course
B115: 872 | C115: Not Take Prep Course
B116: 846 | C116: Not Take Prep Course
B117: 435 | C117: Not Take Prep Course
B118: 298 | C118: Not Take Prep Course
B119: 367 | C119: Not Take Prep Course
B120: 613 | C120: Not Take Prep Course
B121: 70 | C121: Took Prep Course
B122: 160 | C122: Took Prep Course
B123: 484 | C123: Not Take Prep Course
B124: 825 | C124: Not Take Prep Course
B125: 916 | C125: Took Prep Course
B126: 977 | C126: Took Prep Course
B127: 701 | C127: Took Prep Course
B128: 669 | C128: Not Take Prep Course
B129: 555 | C129: Took Prep Course
B130: 260 | C130: Took Prep Course
B131: 207 | C131: Took Prep Course
B132: 899 | C132: Took Prep Course
B133: 825 | C133: Took Prep Course
B134: 583 | C134: Not Take Prep Course
B135: 638 | C135: Not Take Prep Course
B136: 55 | C136: Not Take Prep Course
B137: 175 | C137: Not Take Prep Course
B138: 540 | C138: Took Prep Course
B139: 930 | C139: Took Prep Course
B140: 847 | C140: Not Take Prep Course
B141: 207 | C141: Not Take Prep Course
B142: 65 | C142: Not Take Prep Course
B143: 637 | C143: Took Prep Course
B144: 201 | C144: Not Take Prep Course
B145: 194 | C145: Not Take Prep Course
B146: 267 | C146: Not Take Prep Course
B147: 645 | C147: Took Prep Course
B148: 463 | C148: Took Prep Course
B149: 456 | C149: Not Take Prep Course
B150: 157 | C150: Not Take Prep Course
B151: 766 | C151: Not Take Prep Course
B152: 438 | C152: Not Take Prep Course
B153: 397 | C153: Not Take Prep Course
B154: 754 | C154: Took Prep Course
B155: 774 | C155: Took Prep Course
B156: 463 | C156: Not Take Prep Course
B157: 515 | C157: Took Prep Course
B158: 559 | C158: Took Prep Course
B159: 658 | C159: Not Take Prep Course
B160: 484 | C160: Not Take Prep Course
B161: 228 | C161: Took Prep Course
B162: 896 | C162: Took Prep Course
B163: 60 | C163: Not Take Prep Course
B164: 491 | C164: Not Take Prep Course
B165: 823 | C165: Took Prep Course
B166: 247 | C166: Not Take Prep Course
B167: 639 | C167: Not Take Prep Course
B168: 449 | C168: Not Take Prep Course
B169: 654 | C169: Not Take Prep Course
B170: 498 | C170: Not Take Prep Course
B171: 906 | C171: Not Take Prep Course
B172: 638 | C172: Not Take Prep Course
B173: 907 | C173: Not Take Prep Course
B174: 257 | C174: Took Prep Course
B175: 750 | C175: Took Prep Course
B176: 628 | C176: Took Prep Course
B177: 380 | C177: Not Take Prep Course
B178: 634 | C178: Not Take Prep Course
B179: 402 | C179: Not Take Prep Course
B180: 101 | C180: Not Take Prep Course
B181: 983 | C181: Not Take Prep Course
B182: 529 | C182: Not Take Prep Course
B183: 100 | C183: Not Take Prep Course
B184: 214 | C184: Not Take Prep Course
B185: 557 | C185: Took Prep Course
B186: 715 | C186: Not Take Prep Course
B187: 452 | C187: Not Take Prep Course
B188: 855 | C188: Took Prep Course
B189: 593 | C189: Not Take Prep Course
B190: 84 | C190: Not Take Prep Course
B191: 606 | C191: Not Take Prep Course
B192: 490 | C192: Not Take Prep Course
B193: 442 | C193: Not Take Prep Course
B194: 552 | C194: Not Take Prep Course
B195: 49 | C195: Took Prep Course
B196: 389 | C196: Not Take Prep Course
B197: 88 | C197: Took Prep Course
B198: 447 | C198: Not Take Prep Course
B199: 548 | C199: Not Take Prep Course
B200: 945 | C200: Not Take Prep Course
B201: 749 | C201: Took Prep Course
B202: 147 | C202: Not Take Prep Course
... 9804 more rows

Sheet BT-CPA (an)
B2: Survey of people who took CPA exam:
B3: Q1: What was your score (0-1000)?
B4: Q2: Did you take a Preparation Course (PC or NPC)?
B6: Score | C6: Prep Course | E6: P(Not Pass | Took PC) = | G6: =G15/G17 -> 0.6078431373 | I6: =IF(ISBLANK(G6),""," "&G13&"/"&ROUND($G$15,4)) -> /2325
B7: 927 | C7: Not Take Prep Course | E7: P(Pass | Took PC) = | G7: =G16/G17 -> 0.3921568627 | I7: =IF(ISBLANK(G7),""," "&G14&"/"&ROUND($G$15,4)) -> Took PC/2325 | K7: P(Pass | Took PC) = P(Pass AND Took PC)/P(Took PC)
B8: 343 | C8: Not Take Prep Course
B9: 757 | C9: Took Prep Course | E9: P(Not Pass | Took PC) = | G9: =G21:G22/G23 -> 0.6078431373 | K9: # Took Prep Course | M9: =COUNTIFS(C7:C10006,L14) -> 3825
B10: 834 | C10: Took Prep Course | E10: P(Pass | Took PC) = | G10: 0.3921568627 | K10: # Pass AND Took PC | M10: =COUNTIFS(C7:C10006,L14,B7:B10006,">="&L13) -> 1500
B11: 641 | C11: Not Take Prep Course | K11: P(Pass | Took PC) = | M11: =M10/M9 -> 0.3921568627
B12: 204 | C12: Not Take Prep Course
B13: 139 | C13: Not Take Prep Course | E13: Frequency | F13: Prep Course | K13: Criteria 1 | L13: 750
B14: 475 | C14: Not Take Prep Course | E14: Score | F14: Not Take PC | G14: Took PC | H14: Grand Total | K14: Criteria 2 | L14: Took Prep Course
B15: 197 | C15: Took Prep Course | E15: Not Pass | F15: 5175 | G15: 2325 | H15: 7500
B16: 757 | C16: Took Prep Course | E16: Pass | F16: 1000 | G16: 1500 | H16: 2500
B17: 143 | C17: Not Take Prep Course | E17: Grand Total | F17: 6175 | G17: 3825 | H17: 10000
B18: 46 | C18: Not Take Prep Course
B19: 108 | C19: Not Take Prep Course | E19: Joint Pr. T. | F19: Prep Course
B20: 544 | C20: Took Prep Course | E20: Score | F20: Not Take PC | G20: Took PC | H20: Grand Total
B21: 535 | C21: Not Take Prep Course | E21: Not Pass | F21: 0.5175 | G21: 0.2325 | H21: 0.75
B22: 363 | C22: Not Take Prep Course | E22: Pass | F22: 0.1 | G22: 0.15 | H22: 0.25
B23: 891 | C23: Took Prep Course | E23: Grand Total | F23: 0.6175 | G23: 0.3825 | H23: 1
B24: 891 | C24: Took Prep Course
B25: 145 | C25: Not Take Prep Course
B26: 688 | C26: Not Take Prep Course | E26: Prior (Marginal) | G26: Conditional | I26: Joint (AND) | L26: Posterior (Conditional)
B27: 420 | C27: Not Take Prep Course | E27: P(Pass) | F27: 0.25 | G27: P(PC | Pass) | H27: 0.6 | I27: P(Pass AND PC) | K27: =F27*H27 -> 0.15 | L27: P(Pass | PC) | M27: =K27:K28/K29 -> 0.3921568627
B28: 817 | C28: Not Take Prep Course | E28: P(Not Pass) | F28: =1-F27 -> 0.75 | G28: P(PC | Not Pass) | H28: 0.31 | I28: P(NOT Pass AND PC) | K28: =F28*H28 -> 0.2325 | L28: P(NOT Pass | PC) | M28: 0.6078431373
B29: 768 | C29: Took Prep Course | J29: P(PC) | K29: =SUM(K27:K28) -> 0.3825
B30: 885 | C30: Took Prep Course
B31: 676 | C31: Not Take Prep Course | L31: P(Pass | PC) | M31: =F27*H27/SUMPRODUCT(F27:F28,H27:H28) -> 0.3921568627
B32: 536 | C32: Took Prep Course
B33: 744 | C33: Not Take Prep Course
B34: 917 | C34: Took Prep Course
B35: 623 | C35: Not Take Prep Course
B36: 989 | C36: Not Take Prep Course
B37: 649 | C37: Not Take Prep Course
B38: 251 | C38: Took Prep Course
B39: 383 | C39: Not Take Prep Course
B40: 822 | C40: Not Take Prep Course
B41: 643 | C41: Took Prep Course
B42: 877 | C42: Took Prep Course
B43: 46 | C43: Not Take Prep Course
B44: 706 | C44: Not Take Prep Course
B45: 816 | C45: Not Take Prep Course
B46: 325 | C46: Not Take Prep Course
B47: 332 | C47: Not Take Prep Course
B48: 157 | C48: Took Prep Course
B49: 142 | C49: Not Take Prep Course
B50: 621 | C50: Not Take Prep Course
B51: 657 | C51: Took Prep Course
B52: 902 | C52: Not Take Prep Course
B53: 806 | C53: Took Prep Course
B54: 560 | C54: Took Prep Course
B55: 265 | C55: Not Take Prep Course
B56: 99 | C56: Took Prep Course
B57: 287 | C57: Not Take Prep Course
B58: 942 | C58: Not Take Prep Course
B59: 187 | C59: Took Prep Course
B60: 335 | C60: Not Take Prep Course
B61: 194 | C61: Took Prep Course
B62: 248 | C62: Took Prep Course
B63: 130 | C63: Took Prep Course
B64: 209 | C64: Took Prep Course
B65: 536 | C65: Not Take Prep Course
B66: 433 | C66: Not Take Prep Course
B67: 185 | C67: Took Prep Course
B68: 481 | C68: Took Prep Course
B69: 454 | C69: Not Take Prep Course
B70: 257 | C70: Not Take Prep Course
B71: 223 | C71: Took Prep Course
B72: 920 | C72: Took Prep Course
B73: 515 | C73: Not Take Prep Course
B74: 822 | C74: Took Prep Course
B75: 593 | C75: Not Take Prep Course
B76: 439 | C76: Not Take Prep Course
B77: 271 | C77: Not Take Prep Course
B78: 644 | C78: Took Prep Course
B79: 587 | C79: Not Take Prep Course
B80: 232 | C80: Not Take Prep Course
B81: 827 | C81: Not Take Prep Course
B82: 750 | C82: Took Prep Course
B83: 958 | C83: Took Prep Course
B84: 668 | C84: Took Prep Course
B85: 521 | C85: Not Take Prep Course
B86: 619 | C86: Not Take Prep Course
B87: 886 | C87: Not Take Prep Course
B88: 146 | C88: Not Take Prep Course
B89: 110 | C89: Not Take Prep Course
B90: 303 | C90: Not Take Prep Course
B91: 167 | C91: Took Prep Course
B92: 935 | C92: Not Take Prep Course
B93: 650 | C93: Not Take Prep Course
B94: 220 | C94: Not Take Prep Course
B95: 149 | C95: Not Take Prep Course
B96: 227 | C96: Not Take Prep Course
B97: 391 | C97: Not Take Prep Course
B98: 801 | C98: Took Prep Course
B99: 304 | C99: Took Prep Course
B100: 647 | C100: Took Prep Course
B101: 947 | C101: Took Prep Course
B102: 853 | C102: Not Take Prep Course
B103: 794 | C103: Took Prep Course
B104: 764 | C104: Not Take Prep Course
B105: 45 | C105: Took Prep Course
B106: 533 | C106: Took Prep Course
B107: 521 | C107: Not Take Prep Course
B108: 721 | C108: Took Prep Course
B109: 224 | C109: Not Take Prep Course
B110: 20 | C110: Not Take Prep Course
B111: 451 | C111: Not Take Prep Course
B112: 985 | C112: Took Prep Course
B113: 192 | C113: Took Prep Course
B114: 988 | C114: Took Prep Course
B115: 872 | C115: Not Take Prep Course
B116: 846 | C116: Not Take Prep Course
B117: 435 | C117: Not Take Prep Course
B118: 298 | C118: Not Take Prep Course
B119: 367 | C119: Not Take Prep Course
B120: 613 | C120: Not Take Prep Course
B121: 70 | C121: Took Prep Course
B122: 160 | C122: Took Prep Course
B123: 484 | C123: Not Take Prep Course
B124: 825 | C124: Not Take Prep Course
B125: 916 | C125: Took Prep Course
B126: 977 | C126: Took Prep Course
B127: 701 | C127: Took Prep Course
B128: 669 | C128: Not Take Prep Course
B129: 555 | C129: Took Prep Course
B130: 260 | C130: Took Prep Course
B131: 207 | C131: Took Prep Course
B132: 899 | C132: Took Prep Course
B133: 825 | C133: Took Prep Course
B134: 583 | C134: Not Take Prep Course
B135: 638 | C135: Not Take Prep Course
B136: 55 | C136: Not Take Prep Course
B137: 175 | C137: Not Take Prep Course
B138: 540 | C138: Took Prep Course
B139: 930 | C139: Took Prep Course
B140: 847 | C140: Not Take Prep Course
B141: 207 | C141: Not Take Prep Course
B142: 65 | C142: Not Take Prep Course
B143: 637 | C143: Took Prep Course
B144: 201 | C144: Not Take Prep Course
B145: 194 | C145: Not Take Prep Course
B146: 267 | C146: Not Take Prep Course
B147: 645 | C147: Took Prep Course
B148: 463 | C148: Took Prep Course
B149: 456 | C149: Not Take Prep Course
B150: 157 | C150: Not Take Prep Course
B151: 766 | C151: Not Take Prep Course
B152: 438 | C152: Not Take Prep Course
B153: 397 | C153: Not Take Prep Course
B154: 754 | C154: Took Prep Course
B155: 774 | C155: Took Prep Course
B156: 463 | C156: Not Take Prep Course
B157: 515 | C157: Took Prep Course
B158: 559 | C158: Took Prep Course
B159: 658 | C159: Not Take Prep Course
B160: 484 | C160: Not Take Prep Course
B161: 228 | C161: Took Prep Course
B162: 896 | C162: Took Prep Course
B163: 60 | C163: Not Take Prep Course
B164: 491 | C164: Not Take Prep Course
B165: 823 | C165: Took Prep Course
B166: 247 | C166: Not Take Prep Course
B167: 639 | C167: Not Take Prep Course
B168: 449 | C168: Not Take Prep Course
B169: 654 | C169: Not Take Prep Course
B170: 498 | C170: Not Take Prep Course
B171: 906 | C171: Not Take Prep Course
B172: 638 | C172: Not Take Prep Course
B173: 907 | C173: Not Take Prep Course
B174: 257 | C174: Took Prep Course
B175: 750 | C175: Took Prep Course
B176: 628 | C176: Took Prep Course
B177: 380 | C177: Not Take Prep Course
B178: 634 | C178: Not Take Prep Course
B179: 402 | C179: Not Take Prep Course
B180: 101 | C180: Not Take Prep Course
B181: 983 | C181: Not Take Prep Course
B182: 529 | C182: Not Take Prep Course
B183: 100 | C183: Not Take Prep Course
B184: 214 | C184: Not Take Prep Course
B185: 557 | C185: Took Prep Course
B186: 715 | C186: Not Take Prep Course
B187: 452 | C187: Not Take Prep Course
B188: 855 | C188: Took Prep Course
B189: 593 | C189: Not Take Prep Course
B190: 84 | C190: Not Take Prep Course
B191: 606 | C191: Not Take Prep Course
B192: 490 | C192: Not Take Prep Course
B193: 442 | C193: Not Take Prep Course
B194: 552 | C194: Not Take Prep Course
B195: 49 | C195: Took Prep Course
B196: 389 | C196: Not Take Prep Course
B197: 88 | C197: Took Prep Course
B198: 447 | C198: Not Take Prep Course
B199: 548 | C199: Not Take Prep Course
B200: 945 | C200: Not Take Prep Course
B201: 749 | C201: Took Prep Course
B202: 147 | C202: Not Take Prep Course
... 9804 more rows

Sheet Garage-BT
A1: Array: Bayes' Theorem
A2: SUMPRODUCT function
B4: Events:
A5: Prior | B5: GO = Garage Open
A6: Prior | B6: GNO = Garage Not Open
B7: SS = Stuff Stolen
B8: SNS = Stuff Not Stolen
A10: Event & P(x) | B10: Prior Probability or Marginal Prob | C10: P(x) | D10: Conditional Probability | E10: P(x) | F10: Joint Probability | G10: P(x) | H10: Posterior Probability
A11: Leave garage open = P(GO) | B11: 0.2 | C11: Stuff Stolen, Given Leave Garage Open = P(SS | GO) | D11: 0.05 | E11: P(GO AND SS) | G11: P(GO | SS) | J11: Conditional = P(A AND B)/P(B)
A12: Not Leave garage open = P(GNO) | C12: Stuff Stolen, Given Not Leave Garage Open = P(SS | GNO) | D12: 0.01 | E12: P(GNO AND SS) | G12: P(GNO | SS) | J12: Conditional = P(A AND B)/P(B)
E13: P(Stuff Stolen)
A15: Single Cell Formula: | B15: P(GO | SS) | E15: P(SNS)

Sheet Garage-BT (an)
A1: Array: Bayes' Theorem
A2: SUMPRODUCT function
B4: Events:
A5: Prior | B5: GO = Garage Open
A6: Prior | B6: GNO = Garage Not Open
B7: SS = Stuff Stolen
B8: SNS = Stuff Not Stolen
A10: Event & P(x) | B10: Prior Probability or Marginal Prob | C10: P(x) | D10: Conditional Probability | E10: P(x) | F10: Joint Probability | G10: P(x) | H10: Posterior Probability
A11: Leave garage open = P(GO) | B11: 0.2 | C11: Stuff Stolen, Given Leave garage open = P(SS | GO) | D11: 0.05 | E11: P(GO AND SS) | F11: =B11:B12*D11:D12 -> 0.01 | G11: P(GO | SS) | H11: =_xlfn.ANCHORARRAY(F11)/F13 -> 0.5555555556 | J11: Conditional = P(A AND B)/P(B)
A12: Not Leave garage open = P(GNO) | B12: =1-B11 -> 0.8 | C12: Stuff Stolen, Given Not Leave garage open = P(SS | GNO) | D12: 0.01 | E12: P(GNO AND SS) | F12: 0.008 | G12: P(GNO | SS) | H12: 0.4444444444 | J12: Conditional = P(A AND B)/P(B)
B13: =SUM(B11:B12) -> 1 | E13: P(Stuff Stolen) | F13: =SUM(_xlfn.ANCHORARRAY(F11)) -> 0.018
A15: Single Cell Formula: | B15: P(GO | SS) | C15: =(B11*D11)/SUMPRODUCT(B11:B12,D11:D12) -> 0.5555555556 | E15: P(SNS) | F15: =1-F13 -> 0.982
